{"text_format":"1","workbook":"xlsx","n_sheets":6,"sheets":["説明","基本情報登録","入力","健保正","健保副","年金正"],"not_rendered":{"charts":0,"images":1,"macros":1,"external_links":0,"defined_names":0,"comments":0,"pivot_tables":0},"unopened":[],"bounds":{"document_bytes":16777216,"sheet_cells":100000,"rows_first":2000,"rows_last":500,"rows_between":2000,"halvings":0,"cell_chars":16384,"cell_head_chars":4096},"cells_cut":0,"cells_raw":0,"read":"whole","date_system":"1900"}

{"sheet":"説明","index":0,"n_rows":11,"n_cols":3,"rows_kept":11,"cut":false,"hidden":false,"merged":[]}
[]
["１．","シート「基本情報登録」で事業所の基本情報を入力してください。"]
["２．","シート「入力」で、入力欄を備考を参考に入力してください。"]
[null,"下に進めば５人まで入力できます。"]
[null,"１人目のところには記入例をのせているので、クリアして入力するか、上書きしてください"]
["３．","入力欄は漢字入力等は自動でオン・オフします。"]
["４．","数値のみを入力する欄は日本語入力がオフになっています。"]
[null,null,"欄は必須項目です。"]
[null,null,"欄は該当する場合入力して下さい。"]
["５．","入力が終わったらシート「入力」の［印刷］ボタンを押してください。"]
[null,"シート「健保正」・「健保副」・「年金正」の3枚が印刷されます。"]

{"sheet":"基本情報登録","index":1,"n_rows":11,"n_cols":5,"rows_kept":11,"cut":false,"hidden":false,"merged":[[5,4,5,11],[1,4,1,11],[2,1,3,1],[2,4,2,11],[3,4,3,11],[4,4,4,11],[6,4,6,11],[7,4,7,11],[8,4,8,11],[9,4,9,11],[10,4,10,11]]}
[]
[null,"提出年月日",{"$f":"TODAY()","v":"2021-04-22"},null,"TODAY関数が入力されています。提出日を変更する場合のみ入力してください。"]
[null,"年金整理記号","南",null,"年金記号の「南」、「北」、「豊中」を入力してください。"]
[null,null,"ＷＥＤ",null,"年金記号の「ＷＥＤ」、「ＳＦＨ」を入力してください"]
[null,"年金納入告知書番号","00687",null,"「00687」のように必ず５ケタの数字を入力してください。"]
[null,"健康保険記号","532",null,"健康保険の記号を入力してください。"]
[null,"郵便番号","542-0066",null,"「542-0066」と－（ハイフン）を入力してください。"]
[null,"事業所所在地","大阪府大阪市中央区瓦屋町2-3-1",null,"住所が長い場合は、Alt+Enterで折り返してください。"]
[null,"事業所名称","大阪自動車整備健康保険組合",null,"事業所名を入力してください。"]
[null,"事業主氏名","理事長　健保　太郎",null,"代表者名を入力してください。"]
[null,"電話番号","06-6762-6371",null,"「06-6762-6371」と－（ハイフン)を入力してください。"]

{"sheet":"入力","index":2,"n_rows":141,"n_cols":9,"rows_kept":141,"cut":false,"hidden":false,"merged":[[114,0,140,0],[114,1,127,1],[121,4,123,4],[124,4,126,4],[128,1,140,1],[128,2,129,2],[133,2,134,2],[135,2,136,2],[137,4,139,4],[86,0,112,0],[86,1,99,1],[93,4,95,4],[96,4,98,4],[100,1,112,1],[100,2,101,2],[105,2,106,2],[107,2,108,2],[109,4,111,4],[58,0,84,0],[58,1,71,1],[65,4,67,4],[68,4,70,4],[72,1,84,1],[72,2,73,2],[77,2,78,2],[79,2,80,2],[81,4,83,4],[30,0,56,0],[30,1,43,1],[37,4,39,4],[40,4,42,4],[44,1,56,1],[44,2,45,2],[49,2,50,2],[51,2,52,2],[53,4,55,4],[16,1,28,1],[1,1,1,2],[2,0,28,0],[9,4,11,4],[12,4,14,4],[25,4,27,4],[16,2,17,2],[21,2,22,2],[23,2,24,2],[2,1,15,1]]}
[]
[null,"入力項目",null,"入力欄","備考"]
[1,"必須項目","保険証の番号",5402,"健康保険証の番号を入力"]
[null,null,"氏名","大阪健保　整太郎","氏名を入力"]
[null,null,"生年月日","1946-10-10","「S21.10.10」のように和暦で入力して下さい。"]
[null,null,"健保の従前の標準報酬月額",710,"「1390」・「58」等健保の従前の標準報酬月額を入力して下さい。",null,null,null,{"$f":"D8+95","v":"2018-04-06"}]
[null,null,"従前の改定年月日","2017-09-01","従前の改定月を「H29.9.1」と和暦で入力して下さい。",null,1,"1.昇給"]
[null,null,"固定給の変動した月","2018-01-01","昇(降)給月を「H30.1.1」と和暦で入力して下さい。\n※他のセルと連動していますので必ず変動月の初日を入力して下さい。",null,2,"2.降給",{"$f":"IF(ISNUMBER(D9),VLOOKUP(D9,G7:H8,2,0),\"\")","v":"1.昇給"}]
[null,null,"昇給降給の別",1,"昇給の場合は「1」降給の場合は「2」を入力して下さい。"]
[null,null,{"$f":"I10","v":"2018-01-01"},31,"上記3ヶ月の支払基礎日数を入力(31日の場合「31」と入力)\n月給制の場合は〆から〆の日数を入力\n日給、パートの場合は出勤日数を入力",null,{"$f":"IF(ISNUMBER(D29),D29,D3)","v":5555},null,{"$f":"D8","v":"2018-01-01"}]
[null,null,{"$f":"I11","v":"2018-02-01"},31,null,null,null,null,{"$f":"I10+31","v":"2018-02-01"}]
[null,null,"2018-03-04",28,null,null,null,null,{"$f":"I11+31","v":"2018-03-04"}]
[null,null,{"$f":"I10","v":"2018-01-01"},1500000,"各月の金銭による報酬を入力\n300,000円の場合「300000」と入力",null,{"$f":"D13+D26","v":1500000}]
[null,null,{"$f":"I11","v":"2018-02-01"},1500000,null,null,{"$f":"D14+D27","v":1500000},null,{"$f":"D13+D14+D15+D26+D27+D28","v":4500000}]
[null,null,"2018-03-04",1500000,null,null,{"$f":"D15+D28","v":1500000},null,{"$f":"ROUNDDOWN(I14/3,0)","v":1500000}]
[null,null,"備考4","基本給増","昇給・降給の理由を入力（基本給増・家族手当増・通勤手当増等）",null,null,null,{"$f":"I14-D25","v":4500000}]
[null,"該当する場合入力","備考1",1,"70歳以上被用者に該当する場合「1」を入力",null,null,null,{"$f":"ROUNDDOWN(I16/3,0)","v":1500000}]
[null,null,null,"123456789012","備考1に「1」を入力した場合個人番号12桁を入力"]
[null,null,"備考2",null,"二以上事業所勤務者に該当する場合は「2」を入力",null,{"$f":"IF(I14=I16,I14,I16)","v":4500000},{"$f":"IF(ISNUMBER(D13),G19/3,0)","v":1500000},{"$f":"IF(AND(1<=H19,93000>H19),IF(AND(1<=H19,63000>H19),58,IF(AND(63000<=H19,73000>H19),68,IF(AND(73000<=H19,83000>H19),78,IF(AND(83000<=H19,93000>H19),88)))),\"\")","v":""}]
[null,null,"備考3",null,"短時間労働者(特定適用事業所）に該当する場合は「3」を入力",null,null,{"$f":"IF(AND(1<=H19,93000>H19),I19,IF(AND(93000<=H19,175000>H19),I20,IF(AND(175000<=H19,350000>H19),I21,IF(AND(350000<=H19,635000>H19),I22,IF(AND(635000<=H19,1005000>H19),I23,IF(AND(1005000<=H19),I24,\"\"))))))","v":1390},{"$f":"IF(AND(93000<=H19,130000>H19),IF(AND(93000<=H19,101000>H19),98,IF(AND(101000<=H19,107000>H19),104,IF(AND(107000<=H19,114000>H19),110,IF(AND(114000<=H19,122000>H19),118,IF(AND(122000<=H19,130000>H19),126,\"\"))))),IF(AND(130000<=H19,138000>H19),134,IF(AND(138000<=H19,146000>H19),142,IF(AND(146000<=H19,155000>H19),150,IF(AND(155000<=H19,165000>H19),160,IF(AND(165000<=H19,175000>H19),170,\"\"))))))","v":""}]
[null,null,"備考5",null,"健康保険のみ月額変更に該当する場合は「5」を入力(88以下・620以上の変動）",null,null,{"$f":"IF(AND(1<=H19,175000>H19),I25,IF(AND(175000<=H19,350000>H19),I26,IF(AND(350000<=H19,635000>H19),I27,IF(635000<=H19,I28,\"\"))))","v":650},{"$f":"IF(AND(175000<=H19,250000>H19),IF(AND(175000<=H19,185000>H19),180,IF(AND(185000<=H19,195000>H19),190,IF(AND(195000<=H19,210000>H19),200,IF(AND(210000<=H19,230000>H19),220,IF(AND(230000<=H19,250000>H19),240,\"\"))))),IF(AND(250000<=H19,270000>H19),260,IF(AND(270000<=H19,290000>H19),280,IF(AND(290000<=H19,310000>H19),300,IF(AND(310000<=H19,330000>H19),320,IF(AND(330000<=H19,350000>H19),340,\"\"))))))","v":""}]
[null,null,"備考6",null,"その他の事由がある場合は「6」を入力",null,"健保の従前",null,{"$f":"IF(AND(350000<=H19,485000>H19),IF(AND(350000<=H19,370000>H19),360,IF(AND(370000<=H19,395000>H19),380,IF(AND(395000<=H19,425000>H19),410,IF(AND(425000<=H19,455000>H19),440,IF(AND(455000<=H19,485000>H19),470,\"\"))))),IF(AND(485000<=H19,515000>H19),500,IF(AND(515000<=H19,545000>H19),530,IF(AND(545000<=H19,575000>H19),560,IF(AND(575000<=H19,605000>H19),590,IF(AND(605000<=H19,635000>H19),620,\"\"))))))","v":""}]
[null,null,null,null,"「6」を入力した場合その事由を入力",null,{"$f":"IF(ISNUMBER(D6),D6,\"\")","v":710},null,{"$f":"IF(AND(635000<=H19,810000>H19),IF(AND(635000<=H19,665000>H19),650,IF(AND(665000<=H19,695000>H19),680,IF(AND(695000<=H19,730000>H19),710,IF(AND(730000<=H19,770000>H19),750,IF(AND(770000<=H19,810000>H19),790,\"\"))))),IF(AND(810000<=H19,855000>H19),830,IF(AND(855000<=H19,905000>H19),880,IF(AND(905000<=H19,955000>H19),930,IF(AND(955000<=H19,1005000>H19),980,\"\")))))","v":""}]
[null,null,"遡及支払がある場合","2018-01-01","遡及支払のある月を「H29.9.1」と和暦で入力して下さい。",null,"厚年の従前",null,{"$f":"IF(AND(1005000<=H19,1055000>H19),1030,IF(AND(1055000<=H19,1115000>H19),1090,IF(AND(1115000<=H19,1175000>H19),1150,IF(AND(1175000<=H19,1235000>H19),1210,IF(AND(1235000<=H19,1295000>H19),1270,IF(AND(1295000<=H19,1355000>H19),1330,IF(1355000<=H19,1390,\"\")))))))","v":1390}]
[null,null,null,null,"遡及支払の金額を入力",null,{"$f":"IF(D6<58,0,IF(D6<88,88,IF(D6>650,650,D6)))","v":650},null,{"$f":"IF(AND(1<=H19,130000>H19),IF(AND(1<=H19,93000>H19),88,IF(AND(93000<=H19,101000>H19),98,IF(AND(101000<=H19,107000>H19),104,IF(AND(107000<=H19,114000>H19),110,IF(AND(114000<=H19,122000>H19),118,IF(AND(122000<=H19,130000>H19),126,\"\")))))),IF(AND(130000<=H19,138000>H19),134,IF(AND(138000<=H19,146000>H19),142,IF(AND(146000<=H19,155000>H19),150,IF(AND(155000<=H19,165000>H19),\"160\",IF(AND(165000<=H19,175000>H19),170,\"\"))))))","v":""}]
[null,null,{"$f":"I10","v":"2018-01-01"},null,"各月に現物で支給した場合その額を入力\n基本ブランクで結構です",null,null,null,{"$f":"IF(AND(175000<=H19,250000>H19),IF(AND(175000<=H19,185000>H19),180,IF(AND(185000<=H19,195000>H19),190,IF(AND(195000<=H19,210000>H19),200,IF(AND(210000<=H19,230000>H19),220,IF(AND(230000<=H19,250000>H19),240,\"\"))))),IF(AND(250000<=H19,270000>H19),260,IF(AND(270000<=H19,290000>H19),280,IF(AND(290000<=H19,310000>H19),300,IF(AND(310000<=H19,330000>H19),320,IF(AND(330000<=H19,350000>H19),340,\"\"))))))","v":""}]
[null,null,{"$f":"I11","v":"2018-02-01"},null,null,null,null,null,{"$f":"IF(AND(350000<=H19,485000>H19),IF(AND(350000<=H19,370000>H19),360,IF(AND(370000<=H19,395000>H19),380,IF(AND(395000<=H19,425000>H19),410,IF(AND(425000<=H19,455000>H19),440,IF(AND(455000<=H19,485000>H19),470,\"\"))))),IF(AND(485000<=H19,515000>H19),500,IF(AND(515000<=H19,545000>H19),530,IF(AND(545000<=H19,575000>H19),560,IF(AND(575000<=H19,605000>H19),590,IF(AND(605000<=H19,635000>H19),620,\"\"))))))","v":""}]
[null,null,"2018-03-04",null,null,null,null,null,{"$f":"IF(635000<=H19,650,\"\")","v":650}]
[null,null,"年金番号",5555,"健保の番号と年金の番号が違うときのみ入力してください。"]
[]
[2,"必須項目","保険証の番号",5403,"健康保険証の番号を入力"]
[null,null,"氏名","大阪　花","氏名を入力"]
[null,null,"生年月日","1947-12-12","「H10.10.10」のように和暦で入力して下さい。"]
[null,null,"健保の従前の標準報酬月額",98,"「1390」・「58」等健保の従前の標準報酬月額を入力して下さい。",null,null,null,{"$f":"D36+95","v":"2018-03-06"}]
[null,null,"従前の改定年月日","2017-09-01","従前の改定月を「H29.9.1」と和暦で入力して下さい。",null,1,"1.昇給"]
[null,null,"固定給の変動した月","2017-12-01","昇(降)給月を「H30.1.1」と和暦で入力して下さい。\n※他のセルと連動していますので必ず変動月の初日を入力して下さい。",null,2,"2.降給",{"$f":"IF(ISNUMBER(D37),VLOOKUP(D37,G35:H36,2,0),\"\")","v":"2.降給"}]
[null,null,"昇給降給の別",2,"昇給の場合は「1」降給の場合は「2」を入力して下さい。"]
[null,null,{"$f":"I38","v":"2017-12-01"},30,"上記3ヶ月の支払基礎日数を入力(31日の場合「31」と入力)\n月給制の場合は〆から〆の日数を入力\n日給、パートの場合は出勤日数を入力",null,{"$f":"IF(ISNUMBER(D57),D57,D31)","v":5403},null,{"$f":"D36","v":"2017-12-01"}]
[null,null,{"$f":"I39","v":"2018-01-01"},31,null,null,null,null,{"$f":"I38+31","v":"2018-01-01"}]
[null,null,"2018-02-01",31,null,null,null,null,{"$f":"I39+31","v":"2018-02-01"}]
[null,null,{"$f":"I38","v":"2017-12-01"},50000,"各月の金銭による報酬を入力\n300,000円の場合「300000」と入力",null,{"$f":"D41+D54","v":50000}]
[null,null,{"$f":"I39","v":"2018-01-01"},50000,null,null,{"$f":"D42+D55","v":50000},null,{"$f":"D41+D42+D43+D54+D55+D56","v":150000}]
[null,null,"2018-02-01",50000,null,null,{"$f":"D43+D56","v":50000},null,{"$f":"ROUNDDOWN(I42/3,0)","v":50000}]
[null,null,"備考4","基本給減","昇給・降給の理由を入力（基本給増・家族手当増・通勤手当増等）",null,null,null,{"$f":"I42-D53","v":150000}]
[null,"該当する場合入力","備考1",1,"70歳以上被用者に該当する場合「1」を入力",null,null,null,{"$f":"ROUNDDOWN(I44/3,0)","v":50000}]
[null,null,null,"987654321098","備考1に「1」を入力した場合個人番号12桁を入力"]
[null,null,"備考2",null,"二以上事業所勤務者に該当する場合は「2」を入力",null,{"$f":"IF(I42=I44,I42,I44)","v":150000},{"$f":"IF(ISNUMBER(D41),G47/3,0)","v":50000},{"$f":"IF(AND(1<=H47,93000>H47),IF(AND(1<=H47,63000>H47),58,IF(AND(63000<=H47,73000>H47),68,IF(AND(73000<=H47,83000>H47),78,IF(AND(83000<=H47,93000>H47),88)))),\"\")","v":58}]
[null,null,"備考3",null,"短時間労働者(特定適用事業所）に該当する場合は「3」を入力",null,null,{"$f":"IF(AND(1<=H47,93000>H47),I47,IF(AND(93000<=H47,175000>H47),I48,IF(AND(175000<=H47,350000>H47),I49,IF(AND(350000<=H47,635000>H47),I50,IF(AND(635000<=H47,1005000>H47),I51,IF(AND(1005000<=H47),I52,\"\"))))))","v":58},{"$f":"IF(AND(93000<=H47,130000>H47),IF(AND(93000<=H47,101000>H47),98,IF(AND(101000<=H47,107000>H47),104,IF(AND(107000<=H47,114000>H47),110,IF(AND(114000<=H47,122000>H47),118,IF(AND(122000<=H47,130000>H47),126,\"\"))))),IF(AND(130000<=H47,138000>H47),134,IF(AND(138000<=H47,146000>H47),142,IF(AND(146000<=H47,155000>H47),150,IF(AND(155000<=H47,165000>H47),160,IF(AND(165000<=H47,175000>H47),170,\"\"))))))","v":""}]
[null,null,"備考5",null,"健康保険のみ月額変更に該当する場合は「5」を入力(88以下・620以上の変動）",null,null,{"$f":"IF(AND(1<=H47,175000>H47),I53,IF(AND(175000<=H47,350000>H47),I54,IF(AND(350000<=H47,635000>H47),I55,IF(635000<=H47,I56,\"\"))))","v":88},{"$f":"IF(AND(175000<=H47,250000>H47),IF(AND(175000<=H47,185000>H47),180,IF(AND(185000<=H47,195000>H47),190,IF(AND(195000<=H47,210000>H47),200,IF(AND(210000<=H47,230000>H47),220,IF(AND(230000<=H47,250000>H47),240,\"\"))))),IF(AND(250000<=H47,270000>H47),260,IF(AND(270000<=H47,290000>H47),280,IF(AND(290000<=H47,310000>H47),300,IF(AND(310000<=H47,330000>H47),320,IF(AND(330000<=H47,350000>H47),340,\"\"))))))","v":""}]
[null,null,"備考6",null,"その他の事由がある場合は「6」を入力",null,"健保の従前",null,{"$f":"IF(AND(350000<=H47,485000>H47),IF(AND(350000<=H47,370000>H47),360,IF(AND(370000<=H47,395000>H47),380,IF(AND(395000<=H47,425000>H47),410,IF(AND(425000<=H47,455000>H47),440,IF(AND(455000<=H47,485000>H47),470,\"\"))))),IF(AND(485000<=H47,515000>H47),500,IF(AND(515000<=H47,545000>H47),530,IF(AND(545000<=H47,575000>H47),560,IF(AND(575000<=H47,605000>H47),590,IF(AND(605000<=H47,635000>H47),620,\"\"))))))","v":""}]
[null,null,null,null,"「6」を入力した場合その事由を入力",null,{"$f":"IF(ISNUMBER(D34),D34,\"\")","v":98},null,{"$f":"IF(AND(635000<=H47,810000>H47),IF(AND(635000<=H47,665000>H47),650,IF(AND(665000<=H47,695000>H47),680,IF(AND(695000<=H47,730000>H47),710,IF(AND(730000<=H47,770000>H47),750,IF(AND(770000<=H47,810000>H47),790,\"\"))))),IF(AND(810000<=H47,855000>H47),830,IF(AND(855000<=H47,905000>H47),880,IF(AND(905000<=H47,955000>H47),930,IF(AND(955000<=H47,1005000>H47),980,\"\")))))","v":""}]
[null,null,"遡及支払がある場合",null,"遡及支払のある月を「H29.9.1」と和暦で入力して下さい。",null,"厚年の従前",null,{"$f":"IF(AND(1005000<=H47,1055000>H47),1030,IF(AND(1055000<=H47,1115000>H47),1090,IF(AND(1115000<=H47,1175000>H47),1150,IF(AND(1175000<=H47,1235000>H47),1210,IF(AND(1235000<=H47,1295000>H47),1270,IF(AND(1295000<=H47,1355000>H47),1330,IF(1355000<=H47,1390,\"\")))))))","v":""}]
[null,null,null,null,"遡及支払の金額を入力",null,{"$f":"IF(D34<58,0,IF(D34<88,88,IF(D34>650,650,D34)))","v":98},null,{"$f":"IF(AND(1<=H47,130000>H47),IF(AND(1<=H47,93000>H47),88,IF(AND(93000<=H47,101000>H47),98,IF(AND(101000<=H47,107000>H47),104,IF(AND(107000<=H47,114000>H47),110,IF(AND(114000<=H47,122000>H47),118,IF(AND(122000<=H47,130000>H47),126,\"\")))))),IF(AND(130000<=H47,138000>H47),134,IF(AND(138000<=H47,146000>H47),142,IF(AND(146000<=H47,155000>H47),150,IF(AND(155000<=H47,165000>H47),\"160\",IF(AND(165000<=H47,175000>H47),170,\"\"))))))","v":88}]
[null,null,{"$f":"I38","v":"2017-12-01"},null,"各月に現物で支給した場合その額を入力\n基本ブランクで結構です",null,null,null,{"$f":"IF(AND(175000<=H47,250000>H47),IF(AND(175000<=H47,185000>H47),180,IF(AND(185000<=H47,195000>H47),190,IF(AND(195000<=H47,210000>H47),200,IF(AND(210000<=H47,230000>H47),220,IF(AND(230000<=H47,250000>H47),240,\"\"))))),IF(AND(250000<=H47,270000>H47),260,IF(AND(270000<=H47,290000>H47),280,IF(AND(290000<=H47,310000>H47),300,IF(AND(310000<=H47,330000>H47),320,IF(AND(330000<=H47,350000>H47),340,\"\"))))))","v":""}]
[null,null,{"$f":"I39","v":"2018-01-01"},null,null,null,null,null,{"$f":"IF(AND(350000<=H47,485000>H47),IF(AND(350000<=H47,370000>H47),360,IF(AND(370000<=H47,395000>H47),380,IF(AND(395000<=H47,425000>H47),410,IF(AND(425000<=H47,455000>H47),440,IF(AND(455000<=H47,485000>H47),470,\"\"))))),IF(AND(485000<=H47,515000>H47),500,IF(AND(515000<=H47,545000>H47),530,IF(AND(545000<=H47,575000>H47),560,IF(AND(575000<=H47,605000>H47),590,IF(AND(605000<=H47,635000>H47),620,\"\"))))))","v":""}]
[null,null,"2018-02-01",null,null,null,null,null,{"$f":"IF(635000<=H47,650,\"\")","v":""}]
[null,null,"年金番号",null,"健保の番号と年金の番号が違うときのみ入力してください。"]
[]
[3,"必須項目","保険証の番号",5404,"健康保険証の番号を入力"]
[null,null,"氏名","クリス　ジョンソン","氏名を入力"]
[null,null,"生年月日","1986-02-03","「H10.10.10」のように和暦で入力して下さい。"]
[null,null,"健保の従前の標準報酬月額",620,"「1390」・「58」等健保の従前の標準報酬月額を入力して下さい。",null,null,null,{"$f":"D64+95","v":"2018-05-07"}]
[null,null,"従前の改定年月日","2017-12-01","従前の改定月を「H29.9.1」と和暦で入力して下さい。",null,1,"1.昇給"]
[null,null,"固定給の変動した月","2018-02-01","昇(降)給月を「H30.1.1」と和暦で入力して下さい。\n※他のセルと連動していますので必ず変動月の初日を入力して下さい。",null,2,"2.降給",{"$f":"IF(ISNUMBER(D65),VLOOKUP(D65,G63:H64,2,0),\"\")","v":"1.昇給"}]
[null,null,"昇給降給の別",1,"昇給の場合は「1」降給の場合は「2」を入力して下さい。"]
[null,null,{"$f":"I66","v":"2018-02-01"},31,"上記3ヶ月の支払基礎日数を入力(31日の場合「31」と入力)\n月給制の場合は〆から〆の日数を入力\n日給、パートの場合は出勤日数を入力",null,{"$f":"IF(ISNUMBER(D85),D85,D59)","v":5600},null,{"$f":"D64","v":"2018-02-01"}]
[null,null,{"$f":"I67","v":"2018-03-04"},28,null,null,null,null,{"$f":"I66+31","v":"2018-03-04"}]
[null,null,"2018-04-04",31,null,null,null,null,{"$f":"I67+31","v":"2018-04-04"}]
[null,null,{"$f":"I66","v":"2018-02-01"},1500000,"各月の金銭による報酬を入力\n300,000円の場合「300000」と入力",null,{"$f":"D69+D82","v":1500000}]
[null,null,{"$f":"I67","v":"2018-03-04"},1500000,null,null,{"$f":"D70+D83","v":1500000},null,{"$f":"D69+D70+D71+D82+D83+D84","v":4500000}]
[null,null,"2018-04-04",1500000,null,null,{"$f":"D71+D84","v":1500000},null,{"$f":"ROUNDDOWN(I70/3,0)","v":1500000}]
[null,null,"備考4","基本給増","昇給・降給の理由を入力（基本給増・家族手当増・通勤手当増等）",null,null,null,{"$f":"I70-D81","v":4500000}]
[null,"該当する場合入力","備考1",null,"70歳以上被用者に該当する場合「1」を入力",null,null,null,{"$f":"ROUNDDOWN(I72/3,0)","v":1500000}]
[null,null,null,null,"備考1に「1」を入力した場合個人番号12桁を入力"]
[null,null,"備考2",null,"二以上事業所勤務者に該当する場合は「2」を入力",null,{"$f":"IF(I70=I72,I70,I72)","v":4500000},{"$f":"IF(ISNUMBER(D69),G75/3,0)","v":1500000},{"$f":"IF(AND(1<=H75,93000>H75),IF(AND(1<=H75,63000>H75),58,IF(AND(63000<=H75,73000>H75),68,IF(AND(73000<=H75,83000>H75),78,IF(AND(83000<=H75,93000>H75),88)))),\"\")","v":""}]
[null,null,"備考3",null,"短時間労働者(特定適用事業所）に該当する場合は「3」を入力",null,null,{"$f":"IF(AND(1<=H75,93000>H75),I75,IF(AND(93000<=H75,175000>H75),I76,IF(AND(175000<=H75,350000>H75),I77,IF(AND(350000<=H75,635000>H75),I78,IF(AND(635000<=H75,1005000>H75),I79,IF(AND(1005000<=H75),I80,\"\"))))))","v":1390},{"$f":"IF(AND(93000<=H75,130000>H75),IF(AND(93000<=H75,101000>H75),98,IF(AND(101000<=H75,107000>H75),104,IF(AND(107000<=H75,114000>H75),110,IF(AND(114000<=H75,122000>H75),118,IF(AND(122000<=H75,130000>H75),126,\"\"))))),IF(AND(130000<=H75,138000>H75),134,IF(AND(138000<=H75,146000>H75),142,IF(AND(146000<=H75,155000>H75),150,IF(AND(155000<=H75,165000>H75),160,IF(AND(165000<=H75,175000>H75),170,\"\"))))))","v":""}]
[null,null,"備考5",5,"健康保険のみ月額変更に該当する場合は「5」を入力(88以下・620以上の変動）",null,null,{"$f":"IF(AND(1<=H75,175000>H75),I81,IF(AND(175000<=H75,350000>H75),I82,IF(AND(350000<=H75,635000>H75),I83,IF(635000<=H75,I84,\"\"))))","v":650},{"$f":"IF(AND(175000<=H75,250000>H75),IF(AND(175000<=H75,185000>H75),180,IF(AND(185000<=H75,195000>H75),190,IF(AND(195000<=H75,210000>H75),200,IF(AND(210000<=H75,230000>H75),220,IF(AND(230000<=H75,250000>H75),240,\"\"))))),IF(AND(250000<=H75,270000>H75),260,IF(AND(270000<=H75,290000>H75),280,IF(AND(290000<=H75,310000>H75),300,IF(AND(310000<=H75,330000>H75),320,IF(AND(330000<=H75,350000>H75),340,\"\"))))))","v":""}]
[null,null,"備考6",null,"その他の事由がある場合は「6」を入力",null,"健保の従前",null,{"$f":"IF(AND(350000<=H75,485000>H75),IF(AND(350000<=H75,370000>H75),360,IF(AND(370000<=H75,395000>H75),380,IF(AND(395000<=H75,425000>H75),410,IF(AND(425000<=H75,455000>H75),440,IF(AND(455000<=H75,485000>H75),470,\"\"))))),IF(AND(485000<=H75,515000>H75),500,IF(AND(515000<=H75,545000>H75),530,IF(AND(545000<=H75,575000>H75),560,IF(AND(575000<=H75,605000>H75),590,IF(AND(605000<=H75,635000>H75),620,\"\"))))))","v":""}]
[null,null,null,null,"「6」を入力した場合その事由を入力",null,{"$f":"IF(ISNUMBER(D62),D62,\"\")","v":620},null,{"$f":"IF(AND(635000<=H75,810000>H75),IF(AND(635000<=H75,665000>H75),650,IF(AND(665000<=H75,695000>H75),680,IF(AND(695000<=H75,730000>H75),710,IF(AND(730000<=H75,770000>H75),750,IF(AND(770000<=H75,810000>H75),790,\"\"))))),IF(AND(810000<=H75,855000>H75),830,IF(AND(855000<=H75,905000>H75),880,IF(AND(905000<=H75,955000>H75),930,IF(AND(955000<=H75,1005000>H75),980,\"\")))))","v":""}]
[null,null,"遡及支払がある場合",null,"遡及支払のある月を「H29.9.1」と和暦で入力して下さい。",null,"厚年の従前",null,{"$f":"IF(AND(1005000<=H75,1055000>H75),1030,IF(AND(1055000<=H75,1115000>H75),1090,IF(AND(1115000<=H75,1175000>H75),1150,IF(AND(1175000<=H75,1235000>H75),1210,IF(AND(1235000<=H75,1295000>H75),1270,IF(AND(1295000<=H75,1355000>H75),1330,IF(1355000<=H75,1390,\"\")))))))","v":1390}]
[null,null,null,null,"遡及支払の金額を入力",null,{"$f":"IF(D62<58,0,IF(D62<88,88,IF(D62>650,650,D62)))","v":620},null,{"$f":"IF(AND(1<=H75,130000>H75),IF(AND(1<=H75,93000>H75),88,IF(AND(93000<=H75,101000>H75),98,IF(AND(101000<=H75,107000>H75),104,IF(AND(107000<=H75,114000>H75),110,IF(AND(114000<=H75,122000>H75),118,IF(AND(122000<=H75,130000>H75),126,\"\")))))),IF(AND(130000<=H75,138000>H75),134,IF(AND(138000<=H75,146000>H75),142,IF(AND(146000<=H75,155000>H75),150,IF(AND(155000<=H75,165000>H75),\"160\",IF(AND(165000<=H75,175000>H75),170,\"\"))))))","v":""}]
[null,null,{"$f":"I66","v":"2018-02-01"},null,"各月に現物で支給した場合その額を入力\n基本ブランクで結構です",null,null,null,{"$f":"IF(AND(175000<=H75,250000>H75),IF(AND(175000<=H75,185000>H75),180,IF(AND(185000<=H75,195000>H75),190,IF(AND(195000<=H75,210000>H75),200,IF(AND(210000<=H75,230000>H75),220,IF(AND(230000<=H75,250000>H75),240,\"\"))))),IF(AND(250000<=H75,270000>H75),260,IF(AND(270000<=H75,290000>H75),280,IF(AND(290000<=H75,310000>H75),300,IF(AND(310000<=H75,330000>H75),320,IF(AND(330000<=H75,350000>H75),340,\"\"))))))","v":""}]
[null,null,{"$f":"I67","v":"2018-03-04"},null,null,null,null,null,{"$f":"IF(AND(350000<=H75,485000>H75),IF(AND(350000<=H75,370000>H75),360,IF(AND(370000<=H75,395000>H75),380,IF(AND(395000<=H75,425000>H75),410,IF(AND(425000<=H75,455000>H75),440,IF(AND(455000<=H75,485000>H75),470,\"\"))))),IF(AND(485000<=H75,515000>H75),500,IF(AND(515000<=H75,545000>H75),530,IF(AND(545000<=H75,575000>H75),560,IF(AND(575000<=H75,605000>H75),590,IF(AND(605000<=H75,635000>H75),620,\"\"))))))","v":""}]
[null,null,"2018-04-04",null,null,null,null,null,{"$f":"IF(635000<=H75,650,\"\")","v":650}]
[null,null,"年金番号",5600,"健保の番号と年金の番号が違うときのみ入力してください。"]
[]
[4,"必須項目","保険証の番号",5405,"健康保険証の番号を入力"]
[null,null,"氏名","ブラッド　エルドレッド","氏名を入力"]
[null,null,"生年月日","1981-04-08","「H10.10.10」のように和暦で入力して下さい。"]
[null,null,"健保の従前の標準報酬月額",300,"「1390」・「58」等健保の従前の標準報酬月額を入力して下さい。",null,null,null,{"$f":"D92+95","v":"2018-05-07"}]
[null,null,"従前の改定年月日","2018-01-01","従前の改定月を「H29.9.1」と和暦で入力して下さい。",null,1,"1.昇給"]
[null,null,"固定給の変動した月","2018-02-01","昇(降)給月を「H30.1.1」と和暦で入力して下さい。\n※他のセルと連動していますので必ず変動月の初日を入力して下さい。",null,2,"2.降給",{"$f":"IF(ISNUMBER(D93),VLOOKUP(D93,G91:H92,2,0),\"\")","v":"1.昇給"}]
[null,null,"昇給降給の別",1,"昇給の場合は「1」降給の場合は「2」を入力して下さい。"]
[null,null,{"$f":"I94","v":"2018-02-01"},31,"上記3ヶ月の支払基礎日数を入力(31日の場合「31」と入力)\n月給制の場合は〆から〆の日数を入力\n日給、パートの場合は出勤日数を入力",null,{"$f":"IF(ISNUMBER(D113),D113,D87)","v":5405},null,{"$f":"D92","v":"2018-02-01"}]
[null,null,{"$f":"I95","v":"2018-03-04"},28,null,null,null,null,{"$f":"I94+31","v":"2018-03-04"}]
[null,null,"2018-04-04",31,null,null,null,null,{"$f":"I95+31","v":"2018-04-04"}]
[null,null,{"$f":"I94","v":"2018-02-01"},820000,"各月の金銭による報酬を入力\n300,000円の場合「300000」と入力",null,{"$f":"D97+D110","v":820000}]
[null,null,{"$f":"I95","v":"2018-03-04"},800000,null,null,{"$f":"D98+D111","v":800000},null,{"$f":"D97+D98+D99+D110+D111+D112","v":2420000}]
[null,null,"2018-04-04",800000,null,null,{"$f":"D99+D112","v":800000},null,{"$f":"ROUNDDOWN(I98/3,0)","v":806666}]
[null,null,"備考4",null,"昇給・降給の理由を入力（基本給増・家族手当増・通勤手当増等）",null,null,null,{"$f":"I98-D109","v":2400000}]
[null,"該当する場合入力","備考1",null,"70歳以上被用者に該当する場合「1」を入力",null,null,null,{"$f":"ROUNDDOWN(I100/3,0)","v":800000}]
[null,null,null,null,"備考1に「1」を入力した場合個人番号12桁を入力"]
[null,null,"備考2",2,"二以上事業所勤務者に該当する場合は「2」を入力",null,{"$f":"IF(I98=I100,I98,I100)","v":2400000},{"$f":"IF(ISNUMBER(D97),G103/3,0)","v":800000},{"$f":"IF(AND(1<=H103,93000>H103),IF(AND(1<=H103,63000>H103),58,IF(AND(63000<=H103,73000>H103),68,IF(AND(73000<=H103,83000>H103),78,IF(AND(83000<=H103,93000>H103),88)))),\"\")","v":""}]
[null,null,"備考3",null,"短時間労働者(特定適用事業所）に該当する場合は「3」を入力",null,null,{"$f":"IF(AND(1<=H103,93000>H103),I103,IF(AND(93000<=H103,175000>H103),I104,IF(AND(175000<=H103,350000>H103),I105,IF(AND(350000<=H103,635000>H103),I106,IF(AND(635000<=H103,1005000>H103),I107,IF(AND(1005000<=H103),I108,\"\"))))))","v":790},{"$f":"IF(AND(93000<=H103,130000>H103),IF(AND(93000<=H103,101000>H103),98,IF(AND(101000<=H103,107000>H103),104,IF(AND(107000<=H103,114000>H103),110,IF(AND(114000<=H103,122000>H103),118,IF(AND(122000<=H103,130000>H103),126,\"\"))))),IF(AND(130000<=H103,138000>H103),134,IF(AND(138000<=H103,146000>H103),142,IF(AND(146000<=H103,155000>H103),150,IF(AND(155000<=H103,165000>H103),160,IF(AND(165000<=H103,175000>H103),170,\"\"))))))","v":""}]
[null,null,"備考5",null,"健康保険のみ月額変更に該当する場合は「5」を入力(88以下・620以上の変動）",null,null,{"$f":"IF(AND(1<=H103,175000>H103),I109,IF(AND(175000<=H103,350000>H103),I110,IF(AND(350000<=H103,635000>H103),I111,IF(635000<=H103,I112,\"\"))))","v":650},{"$f":"IF(AND(175000<=H103,250000>H103),IF(AND(175000<=H103,185000>H103),180,IF(AND(185000<=H103,195000>H103),190,IF(AND(195000<=H103,210000>H103),200,IF(AND(210000<=H103,230000>H103),220,IF(AND(230000<=H103,250000>H103),240,\"\"))))),IF(AND(250000<=H103,270000>H103),260,IF(AND(270000<=H103,290000>H103),280,IF(AND(290000<=H103,310000>H103),300,IF(AND(310000<=H103,330000>H103),320,IF(AND(330000<=H103,350000>H103),340,\"\"))))))","v":""}]
[null,null,"備考6",null,"その他の事由がある場合は「6」を入力",null,"健保の従前",null,{"$f":"IF(AND(350000<=H103,485000>H103),IF(AND(350000<=H103,370000>H103),360,IF(AND(370000<=H103,395000>H103),380,IF(AND(395000<=H103,425000>H103),410,IF(AND(425000<=H103,455000>H103),440,IF(AND(455000<=H103,485000>H103),470,\"\"))))),IF(AND(485000<=H103,515000>H103),500,IF(AND(515000<=H103,545000>H103),530,IF(AND(545000<=H103,575000>H103),560,IF(AND(575000<=H103,605000>H103),590,IF(AND(605000<=H103,635000>H103),620,\"\"))))))","v":""}]
[null,null,null,null,"「6」を入力した場合その事由を入力",null,{"$f":"IF(ISNUMBER(D90),D90,\"\")","v":300},null,{"$f":"IF(AND(635000<=H103,810000>H103),IF(AND(635000<=H103,665000>H103),650,IF(AND(665000<=H103,695000>H103),680,IF(AND(695000<=H103,730000>H103),710,IF(AND(730000<=H103,770000>H103),750,IF(AND(770000<=H103,810000>H103),790,\"\"))))),IF(AND(810000<=H103,855000>H103),830,IF(AND(855000<=H103,905000>H103),880,IF(AND(905000<=H103,955000>H103),930,IF(AND(955000<=H103,1005000>H103),980,\"\")))))","v":790}]
[null,null,"遡及支払がある場合","2018-02-01","遡及支払のある月を「H29.9.1」と和暦で入力して下さい。",null,"厚年の従前",null,{"$f":"IF(AND(1005000<=H103,1055000>H103),1030,IF(AND(1055000<=H103,1115000>H103),1090,IF(AND(1115000<=H103,1175000>H103),1150,IF(AND(1175000<=H103,1235000>H103),1210,IF(AND(1235000<=H103,1295000>H103),1270,IF(AND(1295000<=H103,1355000>H103),1330,IF(1355000<=H103,1390,\"\")))))))","v":""}]
[null,null,null,20000,"遡及支払の金額を入力",null,{"$f":"IF(D90<58,0,IF(D90<88,88,IF(D90>650,650,D90)))","v":300},null,{"$f":"IF(AND(1<=H103,130000>H103),IF(AND(1<=H103,93000>H103),88,IF(AND(93000<=H103,101000>H103),98,IF(AND(101000<=H103,107000>H103),104,IF(AND(107000<=H103,114000>H103),110,IF(AND(114000<=H103,122000>H103),118,IF(AND(122000<=H103,130000>H103),126,\"\")))))),IF(AND(130000<=H103,138000>H103),134,IF(AND(138000<=H103,146000>H103),142,IF(AND(146000<=H103,155000>H103),150,IF(AND(155000<=H103,165000>H103),\"160\",IF(AND(165000<=H103,175000>H103),170,\"\"))))))","v":""}]
[null,null,{"$f":"I94","v":"2018-02-01"},null,"各月に現物で支給した場合その額を入力\n基本ブランクで結構です",null,null,null,{"$f":"IF(AND(175000<=H103,250000>H103),IF(AND(175000<=H103,185000>H103),180,IF(AND(185000<=H103,195000>H103),190,IF(AND(195000<=H103,210000>H103),200,IF(AND(210000<=H103,230000>H103),220,IF(AND(230000<=H103,250000>H103),240,\"\"))))),IF(AND(250000<=H103,270000>H103),260,IF(AND(270000<=H103,290000>H103),280,IF(AND(290000<=H103,310000>H103),300,IF(AND(310000<=H103,330000>H103),320,IF(AND(330000<=H103,350000>H103),340,\"\"))))))","v":""}]
[null,null,{"$f":"I95","v":"2018-03-04"},null,null,null,null,null,{"$f":"IF(AND(350000<=H103,485000>H103),IF(AND(350000<=H103,370000>H103),360,IF(AND(370000<=H103,395000>H103),380,IF(AND(395000<=H103,425000>H103),410,IF(AND(425000<=H103,455000>H103),440,IF(AND(455000<=H103,485000>H103),470,\"\"))))),IF(AND(485000<=H103,515000>H103),500,IF(AND(515000<=H103,545000>H103),530,IF(AND(545000<=H103,575000>H103),560,IF(AND(575000<=H103,605000>H103),590,IF(AND(605000<=H103,635000>H103),620,\"\"))))))","v":""}]
[null,null,"2018-04-04",null,null,null,null,null,{"$f":"IF(635000<=H103,650,\"\")","v":650}]
[null,null,"年金番号",null,"健保の番号と年金の番号が違うときのみ入力してください。"]
[]
[5,"必須項目","保険証の番号",5406,"健康保険証の番号を入力"]
[null,null,"氏名","ジェイ　ジャクソン","氏名を入力"]
[null,null,"生年月日","1993-07-26","「H10.10.10」のように和暦で入力して下さい。"]
[null,null,"健保の従前の標準報酬月額",58,"「1390」・「58」等健保の従前の標準報酬月額を入力して下さい。",null,null,null,{"$f":"D120+95","v":"2018-06-04"}]
[null,null,"従前の改定年月日","2017-11-01","従前の改定月を「H29.9.1」と和暦で入力して下さい。",null,1,"1.昇給"]
[null,null,"固定給の変動した月","2018-03-01","昇(降)給月を「H30.1.1」と和暦で入力して下さい。\n※他のセルと連動していますので必ず変動月の初日を入力して下さい。",null,2,"2.降給",{"$f":"IF(ISNUMBER(D121),VLOOKUP(D121,G119:H120,2,0),\"\")","v":"1.昇給"}]
[null,null,"昇給降給の別",1,"昇給の場合は「1」降給の場合は「2」を入力して下さい。"]
[null,null,{"$f":"I122","v":"2018-03-01"},28,"上記3ヶ月の支払基礎日数を入力(31日の場合「31」と入力)\n月給制の場合は〆から〆の日数を入力\n日給、パートの場合は出勤日数を入力",null,{"$f":"IF(ISNUMBER(D141),D141,D115)","v":5800},null,{"$f":"D120","v":"2018-03-01"}]
[null,null,{"$f":"I123","v":"2018-04-01"},31,null,null,null,null,{"$f":"I122+31","v":"2018-04-01"}]
[null,null,"2018-05-02",30,null,null,null,null,{"$f":"I123+31","v":"2018-05-02"}]
[null,null,{"$f":"I122","v":"2018-03-01"},2000000,"各月の金銭による報酬を入力\n300,000円の場合「300000」と入力",null,{"$f":"D125+D138","v":2050000}]
[null,null,{"$f":"I123","v":"2018-04-01"},2000000,null,null,{"$f":"D126+D139","v":2050000},null,{"$f":"D125+D126+D127+D138+D139+D140","v":6150000}]
[null,null,"2018-05-02",2000000,null,null,{"$f":"D127+D140","v":2050000},null,{"$f":"ROUNDDOWN(I126/3,0)","v":2050000}]
[null,null,"備考4","役員就任","昇給・降給の理由を入力（基本給増・家族手当増・通勤手当増等）",null,null,null,{"$f":"I126-D137","v":6150000}]
[null,"該当する場合入力","備考1",null,"70歳以上被用者に該当する場合「1」を入力",null,null,null,{"$f":"ROUNDDOWN(I128/3,0)","v":2050000}]
[null,null,null,null,"備考1に「1」を入力した場合個人番号12桁を入力"]
[null,null,"備考2",null,"二以上事業所勤務者に該当する場合は「2」を入力",null,{"$f":"IF(I126=I128,I126,I128)","v":6150000},{"$f":"IF(ISNUMBER(D125),G131/3,0)","v":2050000},{"$f":"IF(AND(1<=H131,93000>H131),IF(AND(1<=H131,63000>H131),58,IF(AND(63000<=H131,73000>H131),68,IF(AND(73000<=H131,83000>H131),78,IF(AND(83000<=H131,93000>H131),88)))),\"\")","v":""}]
[null,null,"備考3",3,"短時間労働者(特定適用事業所）に該当する場合は「3」を入力",null,null,{"$f":"IF(AND(1<=H131,93000>H131),I131,IF(AND(93000<=H131,175000>H131),I132,IF(AND(175000<=H131,350000>H131),I133,IF(AND(350000<=H131,635000>H131),I134,IF(AND(635000<=H131,1005000>H131),I135,IF(AND(1005000<=H131),I136,\"\"))))))","v":1390},{"$f":"IF(AND(93000<=H131,130000>H131),IF(AND(93000<=H131,101000>H131),98,IF(AND(101000<=H131,107000>H131),104,IF(AND(107000<=H131,114000>H131),110,IF(AND(114000<=H131,122000>H131),118,IF(AND(122000<=H131,130000>H131),126,\"\"))))),IF(AND(130000<=H131,138000>H131),134,IF(AND(138000<=H131,146000>H131),142,IF(AND(146000<=H131,155000>H131),150,IF(AND(155000<=H131,165000>H131),160,IF(AND(165000<=H131,175000>H131),170,\"\"))))))","v":""}]
[null,null,"備考5",null,"健康保険のみ月額変更に該当する場合は「5」を入力(88以下・620以上の変動）",null,null,{"$f":"IF(AND(1<=H131,175000>H131),I137,IF(AND(175000<=H131,350000>H131),I138,IF(AND(350000<=H131,635000>H131),I139,IF(635000<=H131,I140,\"\"))))","v":650},{"$f":"IF(AND(175000<=H131,250000>H131),IF(AND(175000<=H131,185000>H131),180,IF(AND(185000<=H131,195000>H131),190,IF(AND(195000<=H131,210000>H131),200,IF(AND(210000<=H131,230000>H131),220,IF(AND(230000<=H131,250000>H131),240,\"\"))))),IF(AND(250000<=H131,270000>H131),260,IF(AND(270000<=H131,290000>H131),280,IF(AND(290000<=H131,310000>H131),300,IF(AND(310000<=H131,330000>H131),320,IF(AND(330000<=H131,350000>H131),340,\"\"))))))","v":""}]
[null,null,"備考6",6,"その他の事由がある場合は「6」を入力",null,"健保の従前",null,{"$f":"IF(AND(350000<=H131,485000>H131),IF(AND(350000<=H131,370000>H131),360,IF(AND(370000<=H131,395000>H131),380,IF(AND(395000<=H131,425000>H131),410,IF(AND(425000<=H131,455000>H131),440,IF(AND(455000<=H131,485000>H131),470,\"\"))))),IF(AND(485000<=H131,515000>H131),500,IF(AND(515000<=H131,545000>H131),530,IF(AND(545000<=H131,575000>H131),560,IF(AND(575000<=H131,605000>H131),590,IF(AND(605000<=H131,635000>H131),620,\"\"))))))","v":""}]
[null,null,null,"短時間役員","「6」を入力した場合その事由を入力",null,{"$f":"IF(ISNUMBER(D118),D118,\"\")","v":58},null,{"$f":"IF(AND(635000<=H131,810000>H131),IF(AND(635000<=H131,665000>H131),650,IF(AND(665000<=H131,695000>H131),680,IF(AND(695000<=H131,730000>H131),710,IF(AND(730000<=H131,770000>H131),750,IF(AND(770000<=H131,810000>H131),790,\"\"))))),IF(AND(810000<=H131,855000>H131),830,IF(AND(855000<=H131,905000>H131),880,IF(AND(905000<=H131,955000>H131),930,IF(AND(955000<=H131,1005000>H131),980,\"\")))))","v":""}]
[null,null,"遡及支払がある場合",null,"遡及支払のある月を「H29.9.1」と和暦で入力して下さい。",null,"厚年の従前",null,{"$f":"IF(AND(1005000<=H131,1055000>H131),1030,IF(AND(1055000<=H131,1115000>H131),1090,IF(AND(1115000<=H131,1175000>H131),1150,IF(AND(1175000<=H131,1235000>H131),1210,IF(AND(1235000<=H131,1295000>H131),1270,IF(AND(1295000<=H131,1355000>H131),1330,IF(1355000<=H131,1390,\"\")))))))","v":1390}]
[null,null,null,null,"遡及支払の金額を入力",null,{"$f":"IF(D118<58,0,IF(D118<88,88,IF(D118>650,650,D118)))","v":88},null,{"$f":"IF(AND(1<=H131,130000>H131),IF(AND(1<=H131,93000>H131),88,IF(AND(93000<=H131,101000>H131),98,IF(AND(101000<=H131,107000>H131),104,IF(AND(107000<=H131,114000>H131),110,IF(AND(114000<=H131,122000>H131),118,IF(AND(122000<=H131,130000>H131),126,\"\")))))),IF(AND(130000<=H131,138000>H131),134,IF(AND(138000<=H131,146000>H131),142,IF(AND(146000<=H131,155000>H131),150,IF(AND(155000<=H131,165000>H131),\"160\",IF(AND(165000<=H131,175000>H131),170,\"\"))))))","v":""}]
[null,null,{"$f":"I122","v":"2018-03-01"},50000,"各月に現物で支給した場合その額を入力\n基本ブランクで結構です",null,null,null,{"$f":"IF(AND(175000<=H131,250000>H131),IF(AND(175000<=H131,185000>H131),180,IF(AND(185000<=H131,195000>H131),190,IF(AND(195000<=H131,210000>H131),200,IF(AND(210000<=H131,230000>H131),220,IF(AND(230000<=H131,250000>H131),240,\"\"))))),IF(AND(250000<=H131,270000>H131),260,IF(AND(270000<=H131,290000>H131),280,IF(AND(290000<=H131,310000>H131),300,IF(AND(310000<=H131,330000>H131),320,IF(AND(330000<=H131,350000>H131),340,\"\"))))))","v":""}]
[null,null,{"$f":"I123","v":"2018-04-01"},50000,null,null,null,null,{"$f":"IF(AND(350000<=H131,485000>H131),IF(AND(350000<=H131,370000>H131),360,IF(AND(370000<=H131,395000>H131),380,IF(AND(395000<=H131,425000>H131),410,IF(AND(425000<=H131,455000>H131),440,IF(AND(455000<=H131,485000>H131),470,\"\"))))),IF(AND(485000<=H131,515000>H131),500,IF(AND(515000<=H131,545000>H131),530,IF(AND(545000<=H131,575000>H131),560,IF(AND(575000<=H131,605000>H131),590,IF(AND(605000<=H131,635000>H131),620,\"\"))))))","v":""}]
[null,null,"2018-05-02",50000,null,null,null,null,{"$f":"IF(635000<=H131,650,\"\")","v":650}]
[null,null,"年金番号",5800,"健保の番号と年金の番号が違うときのみ入力してください。"]

{"sheet":"健保正","index":3,"n_rows":228,"n_cols":130,"rows_kept":228,"cut":false,"hidden":false,"merged":[[227,104,230,138],[220,44,224,46],[220,47,224,60],[220,61,224,62],[220,63,224,65],[220,66,224,81],[220,82,224,83],[220,84,224,86],[220,87,224,102],[220,103,224,104],[220,5,224,7],[220,8,224,11],[220,12,224,13],[220,14,224,16],[220,17,224,20],[220,21,224,22],[220,23,224,25],[220,26,224,41],[220,42,224,43],[215,44,219,46],[215,47,219,60],[215,61,219,62],[215,63,219,65],[215,66,219,81],[215,82,219,83],[215,84,219,86],[215,87,219,102],[215,103,219,104],[215,5,219,7],[215,8,219,11],[215,12,219,13],[215,14,219,16],[215,17,219,20],[215,21,219,22],[215,23,219,25],[215,26,219,41],[215,42,219,43],[210,84,214,86],[210,87,214,102],[210,103,214,104],[210,105,217,106],[210,107,215,113],[210,117,212,118],[210,119,212,139],[213,117,215,118],[213,119,215,139],[216,107,217,113],[216,117,218,118],[216,119,218,139],[218,105,224,106],[218,107,222,113],[219,117,221,118],[219,119,221,139],[222,117,224,118],[222,119,224,123],[222,124,224,139],[223,107,224,113],[200,114,203,139],[204,114,224,116],[204,117,206,118],[204,119,206,139],[205,5,209,7],[205,8,209,10],[205,11,209,20],[205,21,209,24],[205,25,209,27],[205,28,209,39],[205,40,209,43],[205,44,209,45],[205,46,209,62],[205,63,209,64],[205,65,209,69],[205,70,209,71],[205,72,209,83],[205,84,209,85],[205,86,209,90],[205,91,209,92],[205,93,209,111],[205,112,209,113],[207,117,209,118],[207,119,209,139],[200,0,224,4],[200,5,204,7],[200,8,204,19],[200,20,204,22],[200,23,204,66],[200,67,204,68],[200,69,204,94],[200,95,204,96],[200,97,204,113],[210,5,214,7],[210,8,214,11],[210,12,214,13],[210,14,214,16],[210,17,214,20],[210,21,214,22],[210,23,214,25],[210,26,214,41],[210,42,214,43],[210,44,214,46],[210,47,214,60],[210,61,214,62],[210,63,214,65],[210,66,214,81],[210,82,214,83],[192,44,196,46],[192,47,196,60],[192,61,196,62],[192,63,196,65],[192,66,196,81],[192,82,196,83],[192,84,196,86],[192,87,196,102],[192,103,196,104],[192,5,196,7],[192,8,196,11],[192,12,196,13],[192,14,196,16],[192,17,196,20],[192,21,196,22],[192,23,196,25],[192,26,196,41],[192,42,196,43],[187,44,191,46],[187,47,191,60],[187,61,191,62],[187,63,191,65],[187,66,191,81],[187,82,191,83],[187,84,191,86],[187,87,191,102],[187,103,191,104],[187,5,191,7],[187,8,191,11],[187,12,191,13],[187,14,191,16],[187,17,191,20],[187,21,191,22],[187,23,191,25],[187,26,191,41],[187,42,191,43],[182,84,186,86],[182,87,186,102],[182,103,186,104],[182,105,189,106],[182,107,187,113],[182,117,184,118],[182,119,184,139],[185,117,187,118],[185,119,187,139],[188,107,189,113],[188,117,190,118],[188,119,190,139],[190,105,196,106],[190,107,194,113],[191,117,193,118],[191,119,193,139],[194,117,196,118],[194,119,196,123],[194,124,196,139],[195,107,196,113],[172,114,175,139],[176,114,196,116],[176,117,178,118],[176,119,178,139],[177,5,181,7],[177,8,181,10],[177,11,181,20],[177,21,181,24],[177,25,181,27],[177,28,181,39],[177,40,181,43],[177,44,181,45],[177,46,181,62],[177,63,181,64],[177,65,181,69],[177,70,181,71],[177,72,181,83],[177,84,181,85],[177,86,181,90],[177,91,181,92],[177,93,181,111],[177,112,181,113],[179,117,181,118],[179,119,181,139],[172,0,196,4],[172,5,176,7],[172,8,176,19],[172,20,176,22],[172,23,176,66],[172,67,176,68],[172,69,176,94],[172,95,176,96],[172,97,176,113],[182,5,186,7],[182,8,186,11],[182,12,186,13],[182,14,186,16],[182,17,186,20],[182,21,186,22],[182,23,186,25],[182,26,186,41],[182,42,186,43],[182,44,186,46],[182,47,186,60],[182,61,186,62],[182,63,186,65],[182,66,186,81],[182,82,186,83],[164,44,168,46],[164,47,168,60],[164,61,168,62],[164,63,168,65],[164,66,168,81],[164,82,168,83],[164,84,168,86],[164,87,168,102],[164,103,168,104],[164,5,168,7],[164,8,168,11],[164,12,168,13],[164,14,168,16],[164,17,168,20],[164,21,168,22],[164,23,168,25],[164,26,168,41],[164,42,168,43],[159,44,163,46],[159,47,163,60],[159,61,163,62],[159,63,163,65],[159,66,163,81],[159,82,163,83],[159,84,163,86],[159,87,163,102],[159,103,163,104],[159,5,163,7],[159,8,163,11],[159,12,163,13],[159,14,163,16],[159,17,163,20],[159,21,163,22],[159,23,163,25],[159,26,163,41],[159,42,163,43],[154,84,158,86],[154,87,158,102],[154,103,158,104],[154,105,161,106],[154,107,159,113],[154,117,156,118],[154,119,156,139],[157,117,159,118],[157,119,159,139],[160,107,161,113],[160,117,162,118],[160,119,162,139],[162,105,168,106],[162,107,166,113],[163,117,165,118],[163,119,165,139],[166,117,168,118],[166,119,168,123],[166,124,168,139],[167,107,168,113],[144,114,147,139],[148,114,168,116],[148,117,150,118],[148,119,150,139],[149,5,153,7],[149,8,153,10],[149,11,153,20],[149,21,153,24],[149,25,153,27],[149,28,153,39],[149,40,153,43],[149,44,153,45],[149,46,153,62],[149,63,153,64],[149,65,153,69],[149,70,153,71],[149,72,153,83],[149,84,153,85],[149,86,153,90],[149,91,153,92],[149,93,153,111],[149,112,153,113],[151,117,153,118],[151,119,153,139],[144,0,168,4],[144,5,148,7],[144,8,148,19],[144,20,148,22],[144,23,148,66],[144,67,148,68],[144,69,148,94],[144,95,148,96],[144,97,148,113],[154,5,158,7],[154,8,158,11],[154,12,158,13],[154,14,158,16],[154,17,158,20],[154,21,158,22],[154,23,158,25],[154,26,158,41],[154,42,158,43],[154,44,158,46],[154,47,158,60],[154,61,158,62],[154,63,158,65],[154,66,158,81],[154,82,158,83],[136,44,140,46],[136,47,140,60],[136,61,140,62],[136,63,140,65],[136,66,140,81],[136,82,140,83],[136,84,140,86],[136,87,140,102],[136,103,140,104],[136,5,140,7],[136,8,140,11],[136,12,140,13],[136,14,140,16],[136,17,140,20],[136,21,140,22],[136,23,140,25],[136,26,140,41],[136,42,140,43],[131,44,135,46],[131,47,135,60],[131,61,135,62],[131,63,135,65],[131,66,135,81],[131,82,135,83],[131,84,135,86],[131,87,135,102],[131,103,135,104],[131,5,135,7],[131,8,135,11],[131,12,135,13],[131,14,135,16],[131,17,135,20],[131,21,135,22],[131,23,135,25],[131,26,135,41],[131,42,135,43],[126,84,130,86],[126,87,130,102],[126,103,130,104],[126,105,133,106],[126,107,131,113],[126,117,128,118],[126,119,128,139],[129,117,131,118],[129,119,131,139],[132,107,133,113],[132,117,134,118],[132,119,134,139],[134,105,140,106],[134,107,138,113],[135,117,137,118],[135,119,137,139],[138,117,140,118],[138,119,140,123],[138,124,140,139],[139,107,140,113],[116,114,119,139],[120,114,140,116],[120,117,122,118],[120,119,122,139],[121,5,125,7],[121,8,125,10],[121,11,125,20],[121,21,125,24],[121,25,125,27],[121,28,125,39],[121,40,125,43],[121,44,125,45],[121,46,125,62],[121,63,125,64],[121,65,125,69],[121,70,125,71],[121,72,125,83],[121,84,125,85],[121,86,125,90],[121,91,125,92],[121,93,125,111],[121,112,125,113],[123,117,125,118],[123,119,125,139],[116,0,140,4],[116,5,120,7],[116,8,120,19],[116,20,120,22],[116,23,120,66],[116,67,120,68],[116,69,120,94],[116,95,120,96],[116,97,120,113],[126,5,130,7],[126,8,130,11],[126,12,130,13],[126,14,130,16],[126,17,130,20],[126,21,130,22],[126,23,130,25],[126,26,130,41],[126,42,130,43],[126,44,130,46],[126,47,130,60],[126,61,130,62],[126,63,130,65],[126,66,130,81],[126,82,130,83],[15,0,53,4],[9,0,12,27],[20,105,23,139],[24,105,52,139],[15,5,18,15],[15,16,18,23],[34,5,39,15],[34,16,39,69],[40,5,40,15],[40,16,40,69],[41,5,46,15],[41,16,46,61],[41,62,46,69],[50,71,54,101],[3,129,12,139],[1,14,7,73],[20,5,24,15],[20,16,22,69],[23,16,25,18],[23,19,25,31],[23,32,25,69],[25,5,30,15],[26,16,32,69],[31,5,33,15],[55,131,64,139],[55,71,64,130],[80,63,84,83],[76,23,79,83],[79,84,81,104],[76,84,78,104],[82,84,84,104],[76,105,84,113],[68,114,71,139],[68,95,71,113],[47,5,47,15],[47,16,47,69],[48,5,53,15],[48,16,53,69],[0,74,2,84],[0,85,2,95],[0,96,2,106],[0,107,2,117],[0,118,2,128],[33,16,33,69],[0,129,2,139],[3,74,12,84],[3,85,12,95],[3,96,12,106],[3,107,12,117],[3,118,12,128],[111,107,112,113],[103,103,107,104],[108,103,112,104],[108,87,112,102],[98,107,103,113],[98,105,105,106],[106,105,112,106],[106,107,110,113],[93,112,97,113],[104,107,105,113],[98,103,102,104],[103,87,107,102],[98,87,102,102],[108,82,112,83],[108,84,112,86],[103,82,107,83],[103,84,107,86],[101,119,103,139],[98,5,102,7],[98,8,102,11],[98,12,102,13],[98,14,102,16],[98,17,102,20],[98,21,102,22],[98,23,102,25],[98,26,102,41],[98,42,102,43],[103,63,107,65],[103,66,107,81],[108,5,112,7],[108,8,112,11],[108,12,112,13],[108,14,112,16],[108,17,112,20],[108,21,112,22],[108,23,112,25],[108,26,112,41],[108,42,112,43],[103,44,107,46],[103,47,107,60],[103,61,107,62],[103,5,107,7],[103,8,107,11],[103,12,107,13],[103,14,107,16],[103,17,107,20],[103,21,107,22],[103,23,107,25],[103,26,107,41],[103,42,107,43],[104,117,106,118],[104,119,106,139],[107,117,109,118],[107,119,109,139],[92,114,112,116],[110,117,112,118],[110,119,112,123],[110,124,112,139],[101,117,103,118],[88,114,91,139],[92,117,94,118],[92,119,94,139],[95,117,97,118],[95,119,97,139],[98,117,100,118],[98,119,100,139],[72,114,84,139],[93,93,97,111],[88,95,92,96],[88,97,92,113],[93,44,97,45],[93,8,97,10],[98,44,102,46],[98,47,102,60],[98,61,102,62],[98,63,102,65],[98,66,102,81],[76,14,84,22],[80,23,84,43],[80,44,84,62],[93,46,97,62],[88,69,92,94],[93,91,97,92],[93,86,97,90],[93,84,97,85],[93,72,97,83],[93,70,97,71],[93,63,97,64],[93,65,97,69],[88,67,92,68],[98,84,102,86],[88,23,92,66],[98,82,102,83],[68,0,84,4],[93,25,97,27],[93,21,97,24],[93,40,97,43],[93,11,97,20],[93,28,97,39],[88,5,92,7],[88,20,92,22],[93,5,97,7],[88,0,112,4],[68,5,71,19],[68,20,71,66],[108,44,112,46],[108,47,112,60],[108,61,112,62],[108,63,112,65],[108,66,112,81],[68,67,71,94],[72,5,75,43],[72,44,75,62],[72,63,75,83],[72,84,75,113],[76,5,84,13],[88,8,92,19]]}
[null,null,null,null,null,null,null,null,null,null,null,null,null,null,null,null,null,null,null,null,null,null,null,null,null,null,null,null,null,null,null,null,null,null,null,null,null,null,null,null,null,null,null,null,null,null,null,null,null,null,null,null,null,null,null,null,null,null,null,null,null,null,null,null,null,null,null,null,null,null,null,null,null,null,"常務理事",null,null,null,null,null,null,null,null,null,null,"事務長",null,null,null,null,null,null,null,null,null,null,"部長",null,null,null,null,null,null,null,null,null,null,"課長",null,null,null,null,null,null,null,null,null,null,"係長",null,null,null,null,null,null,null,null,null,null,"係"]
[null,null,null,null,null,null,null,null,null,null,null,null,null,null,"健康保険　被保険者報酬月額変更届"]
[]
[]
[]
[]
[]
[]
[]
[{"$f":"基本情報登録!C2","v":"2021-04-22"}]
[]
[]
[]
[]
[]
["提出者記入欄",null,null,null,null,"記号",null,null,null,null,null,null,null,null,null,null,{"$f":"基本情報登録!C6","v":"532"}]
[]
[]
[]
[]
[null,null,null,null,null,null,null,null,null,null,null,null,null,null,null,null,"届書記入の個人番号(基礎年金番号)に誤りがないことを確認しました。",null,null,null,null,null,null,null,null,null,null,null,null,null,null,null,null,null,null,null,null,null,null,null,null,null,null,null,null,null,null,null,null,null,null,null,null,null,null,null,null,null,null,null,null,null,null,null,null,null,null,null,null,null,null,null,null,null,null,null,null,null,null,null,null,null,null,null,null,null,null,null,null,null,null,null,null,null,null,null,null,null,null,null,null,null,null,null,null,"受付印"]
[]
[]
[null,null,null,null,null,null,null,null,null,null,null,null,null,null,null,null,"〒",null,null,{"$f":"基本情報登録!C7","v":"542-0066"}]
[]
[null,null,null,null,null,"事業所\n所在地"]
[null,null,null,null,null,null,null,null,null,null,null,null,null,null,null,null,{"$f":"基本情報登録!C8","v":"大阪府大阪市中央区瓦屋町2-3-1"}]
[]
[]
[]
[]
[]
[]
[]
[null,null,null,null,null,"事業所\n名称",null,null,null,null,null,null,null,null,null,null,{"$f":"基本情報登録!C9","v":"大阪自動車整備健康保険組合"}]
[]
[]
[]
[]
[]
[]
[null,null,null,null,null,"事業主\n氏名",null,null,null,null,null,null,null,null,null,null,{"$f":"基本情報登録!C10","v":"理事長　健保　太郎"}]
[]
[]
[]
[]
[]
[]
[null,null,null,null,null,"電話番号",null,null,null,null,null,null,null,null,null,null,{"$f":"基本情報登録!C11","v":"06-6762-6371"}]
[]
[null,null,null,null,null,null,null,null,null,null,null,null,null,null,null,null,null,null,null,null,null,null,null,null,null,null,null,null,null,null,null,null,null,null,null,null,null,null,null,null,null,null,null,null,null,null,null,null,null,null,null,null,null,null,null,null,null,null,null,null,null,null,null,null,null,null,null,null,null,null,null,"社会保険労務士記載欄"]
[]
[]
[]
[]
[]
[]
[]
[]
[]
[]
[]
[]
[]
[]
[]
[]
[]
["項目名",null,null,null,null,"1保険証番号",null,null,null,null,null,null,null,null,null,null,null,null,null,null,"2被保険者氏名",null,null,null,null,null,null,null,null,null,null,null,null,null,null,null,null,null,null,null,null,null,null,null,null,null,null,null,null,null,null,null,null,null,null,null,null,null,null,null,null,null,null,null,null,null,null,"3生年月日",null,null,null,null,null,null,null,null,null,null,null,null,null,null,null,null,null,null,null,null,null,null,null,null,null,null,null,"4改定年月",null,null,null,null,null,null,null,null,null,null,null,null,null,null,null,null,null,null,"10個人番号(基礎年金番号)"]
[]
[]
[]
[null,null,null,null,null,"5従前の標準報酬月額",null,null,null,null,null,null,null,null,null,null,null,null,null,null,null,null,null,null,null,null,null,null,null,null,null,null,null,null,null,null,null,null,null,null,null,null,null,null,"6従前改定月",null,null,null,null,null,null,null,null,null,null,null,null,null,null,null,null,null,null,"7昇(降)給",null,null,null,null,null,null,null,null,null,null,null,null,null,null,null,null,null,null,null,null,"8遡及支払額",null,null,null,null,null,null,null,null,null,null,null,null,null,null,null,null,null,null,null,null,null,null,null,null,null,null,null,null,null,"18備考"]
[]
[]
[]
[null,null,null,null,null,"9給与\n支払月",null,null,null,null,null,null,null,null,"10給料計算の基礎日数",null,null,null,null,null,null,null,null,"報酬月額",null,null,null,null,null,null,null,null,null,null,null,null,null,null,null,null,null,null,null,null,null,null,null,null,null,null,null,null,null,null,null,null,null,null,null,null,null,null,null,null,null,null,null,null,null,null,null,null,null,null,null,null,null,null,null,null,null,null,null,null,"14総計",null,null,null,null,null,null,null,null,null,null,null,null,null,null,null,null,null,null,null,null,"決定後標準報酬月額"]
[]
[]
[null,null,null,null,null,null,null,null,null,null,null,null,null,null,null,null,null,null,null,null,null,null,null,null,null,null,null,null,null,null,null,null,null,null,null,null,null,null,null,null,null,null,null,null,null,null,null,null,null,null,null,null,null,null,null,null,null,null,null,null,null,null,null,null,null,null,null,null,null,null,null,null,null,null,null,null,null,null,null,null,null,null,null,null,"15平均額"]
[null,null,null,null,null,null,null,null,null,null,null,null,null,null,null,null,null,null,null,null,null,null,null,"11通貨によるものの額",null,null,null,null,null,null,null,null,null,null,null,null,null,null,null,null,null,null,null,null,"12現物によるものの額",null,null,null,null,null,null,null,null,null,null,null,null,null,null,null,null,null,null,"13合計11+12"]
[]
[null,null,null,null,null,null,null,null,null,null,null,null,null,null,null,null,null,null,null,null,null,null,null,null,null,null,null,null,null,null,null,null,null,null,null,null,null,null,null,null,null,null,null,null,null,null,null,null,null,null,null,null,null,null,null,null,null,null,null,null,null,null,null,null,null,null,null,null,null,null,null,null,null,null,null,null,null,null,null,null,null,null,null,null,"16修正平均額"]
[]
[]
[]
[]
[]
["１",null,null,null,null,1,null,null,{"$f":"IF(ISNUMBER(入力!D3),入力!D3,\"\")","v":5402},null,null,null,null,null,null,null,null,null,null,null,2,null,null,{"$f":"IF(ISTEXT(入力!D4),入力!D4,\"\")","v":"大阪健保　整太郎"},null,null,null,null,null,null,null,null,null,null,null,null,null,null,null,null,null,null,null,null,null,null,null,null,null,null,null,null,null,null,null,null,null,null,null,null,null,null,null,null,null,null,null,3,null,{"$f":"IF(ISNUMBER(入力!D5),入力!D5,\"\")","v":"1946-10-10"},null,null,null,null,null,null,null,null,null,null,null,null,null,null,null,null,null,null,null,null,null,null,null,null,null,4,null,{"$f":"IF(ISNUMBER(入力!D8),入力!I6,\"\")","v":"2018-04-06"}]
[]
[]
[]
[null,null,null,null,null,null,null,null,null,null,null,null,null,null,null,null,null,null,null,null,null,null,null,null,null,null,null,null,null,null,null,null,null,null,null,null,null,null,null,null,null,null,null,null,null,null,null,null,null,null,null,null,null,null,null,null,null,null,null,null,null,null,null,null,null,null,null,null,null,null,null,null,null,null,null,null,null,null,null,null,null,null,null,null,null,null,null,null,null,null,null,null,null,null,null,null,null,null,null,null,null,null,null,null,null,null,null,null,null,null,null,null,null,null,18,null,null,{"$f":"IF(ISNUMBER(入力!D17),1,\"\")","v":1},null,{"$f":"IF(ISNUMBER(入力!D17),\"70歳以上被用者月額変更\",\"\")","v":"70歳以上被用者月額変更"}]
[null,null,null,null,null,5,null,null,"健",null,null,{"$f":"IF(ISNUMBER(入力!D6),入力!G23,\"\")","v":710},null,null,null,null,null,null,null,null,null,"千円",null,null,null,"年",null,null,{"$f":"IF(ISNUMBER(入力!D6),入力!G25,\"\")","v":650},null,null,null,null,null,null,null,null,null,null,null,"千円",null,null,null,6,null,{"$f":"IF(ISNUMBER(入力!D7),入力!D7,\"\")","v":"2017-09-01"},null,null,null,null,null,null,null,null,null,null,null,null,null,null,null,null,7,null,{"$f":"IF(ISNUMBER(入力!D8),入力!D8,\"\")","v":"2018-01-01"},null,null,null,null,"月",null,{"$f":"IF(ISNUMBER(入力!D9),入力!I8,\"\")","v":"1.昇給"},null,null,null,null,null,null,null,null,null,null,null,8,null,{"$f":"IF(ISNUMBER(入力!D24),入力!D24,\"\")","v":"2018-01-01"},null,null,null,null,"月",null,{"$f":"IF(ISNUMBER(入力!D25),入力!D25,\"\")","v":""},null,null,null,null,null,null,null,null,null,null,null,null,null,null,null,null,null,null,"円"]
[]
[null,null,null,null,null,null,null,null,null,null,null,null,null,null,null,null,null,null,null,null,null,null,null,null,null,null,null,null,null,null,null,null,null,null,null,null,null,null,null,null,null,null,null,null,null,null,null,null,null,null,null,null,null,null,null,null,null,null,null,null,null,null,null,null,null,null,null,null,null,null,null,null,null,null,null,null,null,null,null,null,null,null,null,null,null,null,null,null,null,null,null,null,null,null,null,null,null,null,null,null,null,null,null,null,null,null,null,null,null,null,null,null,null,null,null,null,null,{"$f":"IF(ISNUMBER(入力!D19),2,\"\")","v":""},null,{"$f":"IF(ISNUMBER(入力!D19),\"二以上勤務\",\"\")","v":""}]
[]
[]
[null,null,null,null,null,9,null,null,{"$f":"IF(ISNUMBER(入力!D8),入力!I10,\"\")","v":"2018-01-01"},null,null,null,"月",null,10,null,null,{"$f":"IF(ISNUMBER(入力!D10),入力!D10,\"\")","v":31},null,null,null,"日",null,11,null,null,{"$f":"IF(ISNUMBER(入力!D13),入力!D13,\"\")","v":1500000},null,null,null,null,null,null,null,null,null,null,null,null,null,null,null,"円",null,12,null,null,{"$f":"IF(ISNUMBER(入力!D26),入力!D26,\"\")","v":""},null,null,null,null,null,null,null,null,null,null,null,null,null,"円",null,13,null,null,{"$f":"IF(ISNUMBER(入力!D13),入力!G13,\"\")","v":1500000},null,null,null,null,null,null,null,null,null,null,null,null,null,null,null,"円",null,14,null,null,{"$f":"IF(ISNUMBER(入力!D13),入力!I14,\"\")","v":4500000},null,null,null,null,null,null,null,null,null,null,null,null,null,null,null,"円",null,"健",null,{"$f":"IF(ISNUMBER(入力!D13),入力!H20,\"\")","v":1390},null,null,null,null,null,null,null,null,null,{"$f":"IF(ISNUMBER(入力!D20),3,\"\")","v":""},null,{"$f":"IF(ISNUMBER(入力!D20),\"短時間労働者(特定適用事業所\",\"\")","v":""}]
[]
[]
[null,null,null,null,null,null,null,null,null,null,null,null,null,null,null,null,null,null,null,null,null,null,null,null,null,null,null,null,null,null,null,null,null,null,null,null,null,null,null,null,null,null,null,null,null,null,null,null,null,null,null,null,null,null,null,null,null,null,null,null,null,null,null,null,null,null,null,null,null,null,null,null,null,null,null,null,null,null,null,null,null,null,null,null,null,null,null,null,null,null,null,null,null,null,null,null,null,null,null,null,null,null,null,null,null,null,null,null,null,null,null,null,null,null,null,null,null,4,null,"昇給・降給の理由"]
[]
[null,null,null,null,null,null,null,null,{"$f":"IF(ISNUMBER(入力!D8),入力!I11,\"\")","v":"2018-02-01"},null,null,null,"月",null,null,null,null,{"$f":"IF(ISNUMBER(入力!D11),入力!D11,\"\")","v":31},null,null,null,"日",null,null,null,null,{"$f":"IF(ISNUMBER(入力!D14),入力!D14,\"\")","v":1500000},null,null,null,null,null,null,null,null,null,null,null,null,null,null,null,"円",null,null,null,null,{"$f":"IF(ISNUMBER(入力!D27),入力!D27,\"\")","v":""},null,null,null,null,null,null,null,null,null,null,null,null,null,"円",null,null,null,null,{"$f":"IF(ISNUMBER(入力!D14),入力!G14,\"\")","v":1500000},null,null,null,null,null,null,null,null,null,null,null,null,null,null,null,"円",null,15,null,null,{"$f":"IF(ISNUMBER(入力!D13),入力!I15,\"\")","v":1500000},null,null,null,null,null,null,null,null,null,null,null,null,null,null,null,"円"]
[null,null,null,null,null,null,null,null,null,null,null,null,null,null,null,null,null,null,null,null,null,null,null,null,null,null,null,null,null,null,null,null,null,null,null,null,null,null,null,null,null,null,null,null,null,null,null,null,null,null,null,null,null,null,null,null,null,null,null,null,null,null,null,null,null,null,null,null,null,null,null,null,null,null,null,null,null,null,null,null,null,null,null,null,null,null,null,null,null,null,null,null,null,null,null,null,null,null,null,null,null,null,null,null,null,null,null,"千円",null,null,null,null,null,null,null,null,null,null,null,{"$f":"IF(ISTEXT(入力!D16),入力!D16,\"\")","v":"基本給増"}]
[]
[null,null,null,null,null,null,null,null,null,null,null,null,null,null,null,null,null,null,null,null,null,null,null,null,null,null,null,null,null,null,null,null,null,null,null,null,null,null,null,null,null,null,null,null,null,null,null,null,null,null,null,null,null,null,null,null,null,null,null,null,null,null,null,null,null,null,null,null,null,null,null,null,null,null,null,null,null,null,null,null,null,null,null,null,null,null,null,null,null,null,null,null,null,null,null,null,null,null,null,null,null,null,null,null,null,"厚",null,{"$f":"IF(ISNUMBER(入力!D13),入力!H21,\"\")","v":650}]
[null,null,null,null,null,null,null,null,null,null,null,null,null,null,null,null,null,null,null,null,null,null,null,null,null,null,null,null,null,null,null,null,null,null,null,null,null,null,null,null,null,null,null,null,null,null,null,null,null,null,null,null,null,null,null,null,null,null,null,null,null,null,null,null,null,null,null,null,null,null,null,null,null,null,null,null,null,null,null,null,null,null,null,null,null,null,null,null,null,null,null,null,null,null,null,null,null,null,null,null,null,null,null,null,null,null,null,null,null,null,null,null,null,null,null,null,null,{"$f":"IF(ISNUMBER(入力!D21),5,\"\")","v":""},null,{"$f":"IF(ISNUMBER(入力!D21),\"健康保険のみ月額変更\",\"\")","v":""}]
[null,null,null,null,null,null,null,null,{"$f":"IF(ISNUMBER(入力!D8),入力!I12,\"\")","v":"2018-03-04"},null,null,null,"月",null,null,null,null,{"$f":"IF(ISNUMBER(入力!D12),入力!D12,\"\")","v":28},null,null,null,"日",null,null,null,null,{"$f":"IF(ISNUMBER(入力!D15),入力!D15,\"\")","v":1500000},null,null,null,null,null,null,null,null,null,null,null,null,null,null,null,"円",null,null,null,null,{"$f":"IF(ISNUMBER(入力!D28),入力!D28,\"\")","v":""},null,null,null,null,null,null,null,null,null,null,null,null,null,"円",null,null,null,null,{"$f":"IF(ISNUMBER(入力!D15),入力!G15,\"\")","v":1500000},null,null,null,null,null,null,null,null,null,null,null,null,null,null,null,"円",null,16,null,null,{"$f":"IF(ISNUMBER(入力!D25),入力!I17,\"\")","v":""},null,null,null,null,null,null,null,null,null,null,null,null,null,null,null,"円"]
[]
[null,null,null,null,null,null,null,null,null,null,null,null,null,null,null,null,null,null,null,null,null,null,null,null,null,null,null,null,null,null,null,null,null,null,null,null,null,null,null,null,null,null,null,null,null,null,null,null,null,null,null,null,null,null,null,null,null,null,null,null,null,null,null,null,null,null,null,null,null,null,null,null,null,null,null,null,null,null,null,null,null,null,null,null,null,null,null,null,null,null,null,null,null,null,null,null,null,null,null,null,null,null,null,null,null,null,null,null,null,null,null,null,null,null,null,null,null,{"$f":"IF(ISNUMBER(入力!D22),6,\"\")","v":""},null,{"$f":"IF(ISNUMBER(入力!D22),\"その他\",\"\")","v":""},null,null,null,null,{"$f":"IF(ISTEXT(入力!D23),入力!D23,\"\")","v":""}]
[null,null,null,null,null,null,null,null,null,null,null,null,null,null,null,null,null,null,null,null,null,null,null,null,null,null,null,null,null,null,null,null,null,null,null,null,null,null,null,null,null,null,null,null,null,null,null,null,null,null,null,null,null,null,null,null,null,null,null,null,null,null,null,null,null,null,null,null,null,null,null,null,null,null,null,null,null,null,null,null,null,null,null,null,null,null,null,null,null,null,null,null,null,null,null,null,null,null,null,null,null,null,null,null,null,null,null,"千円"]
[]
[]
[]
[]
["２",null,null,null,null,1,null,null,{"$f":"IF(ISNUMBER(入力!D31),入力!D31,\"\")","v":5403},null,null,null,null,null,null,null,null,null,null,null,2,null,null,{"$f":"IF(ISTEXT(入力!D32),入力!D32,\"\")","v":"大阪　花"},null,null,null,null,null,null,null,null,null,null,null,null,null,null,null,null,null,null,null,null,null,null,null,null,null,null,null,null,null,null,null,null,null,null,null,null,null,null,null,null,null,null,null,3,null,{"$f":"IF(ISNUMBER(入力!D33),入力!D33,\"\")","v":"1947-12-12"},null,null,null,null,null,null,null,null,null,null,null,null,null,null,null,null,null,null,null,null,null,null,null,null,null,4,null,{"$f":"IF(ISNUMBER(入力!D36),入力!I34,\"\")","v":"2018-03-06"}]
[]
[]
[]
[null,null,null,null,null,null,null,null,null,null,null,null,null,null,null,null,null,null,null,null,null,null,null,null,null,null,null,null,null,null,null,null,null,null,null,null,null,null,null,null,null,null,null,null,null,null,null,null,null,null,null,null,null,null,null,null,null,null,null,null,null,null,null,null,null,null,null,null,null,null,null,null,null,null,null,null,null,null,null,null,null,null,null,null,null,null,null,null,null,null,null,null,null,null,null,null,null,null,null,null,null,null,null,null,null,null,null,null,null,null,null,null,null,null,18,null,null,{"$f":"IF(ISNUMBER(入力!D45),1,\"\")","v":1},null,{"$f":"IF(ISNUMBER(入力!D45),\"70歳以上被用者月額変更\",\"\")","v":"70歳以上被用者月額変更"}]
[null,null,null,null,null,5,null,null,"健",null,null,{"$f":"IF(ISNUMBER(入力!D34),入力!G51,\"\")","v":98},null,null,null,null,null,null,null,null,null,"千円",null,null,null,"年",null,null,{"$f":"IF(ISNUMBER(入力!D34),入力!G53,\"\")","v":98},null,null,null,null,null,null,null,null,null,null,null,"千円",null,null,null,6,null,{"$f":"IF(ISNUMBER(入力!D35),入力!D35,\"\")","v":"2017-09-01"},null,null,null,null,null,null,null,null,null,null,null,null,null,null,null,null,7,null,{"$f":"IF(ISNUMBER(入力!D36),入力!D36,\"\")","v":"2017-12-01"},null,null,null,null,"月",null,{"$f":"IF(ISNUMBER(入力!D37),入力!I36,\"\")","v":"2.降給"},null,null,null,null,null,null,null,null,null,null,null,8,null,{"$f":"IF(ISNUMBER(入力!D52),入力!D52,\"\")","v":""},null,null,null,null,"月",null,{"$f":"IF(ISNUMBER(入力!D53),入力!D53,\"\")","v":""},null,null,null,null,null,null,null,null,null,null,null,null,null,null,null,null,null,null,"円"]
[]
[null,null,null,null,null,null,null,null,null,null,null,null,null,null,null,null,null,null,null,null,null,null,null,null,null,null,null,null,null,null,null,null,null,null,null,null,null,null,null,null,null,null,null,null,null,null,null,null,null,null,null,null,null,null,null,null,null,null,null,null,null,null,null,null,null,null,null,null,null,null,null,null,null,null,null,null,null,null,null,null,null,null,null,null,null,null,null,null,null,null,null,null,null,null,null,null,null,null,null,null,null,null,null,null,null,null,null,null,null,null,null,null,null,null,null,null,null,{"$f":"IF(ISNUMBER(入力!D47),2,\"\")","v":""},null,{"$f":"IF(ISNUMBER(入力!D47),\"二以上勤務\",\"\")","v":""}]
[]
[]
[null,null,null,null,null,9,null,null,{"$f":"IF(ISNUMBER(入力!D36),入力!I38,\"\")","v":"2017-12-01"},null,null,null,"月",null,10,null,null,{"$f":"IF(ISNUMBER(入力!D38),入力!D38,\"\")","v":30},null,null,null,"日",null,11,null,null,{"$f":"IF(ISNUMBER(入力!D41),入力!D41,\"\")","v":50000},null,null,null,null,null,null,null,null,null,null,null,null,null,null,null,"円",null,12,null,null,{"$f":"IF(ISNUMBER(入力!D54),入力!D54,\"\")","v":""},null,null,null,null,null,null,null,null,null,null,null,null,null,"円",null,13,null,null,{"$f":"IF(ISNUMBER(入力!D41),入力!G41,\"\")","v":50000},null,null,null,null,null,null,null,null,null,null,null,null,null,null,null,"円",null,14,null,null,{"$f":"IF(ISNUMBER(入力!D41),入力!I42,\"\")","v":150000},null,null,null,null,null,null,null,null,null,null,null,null,null,null,null,"円",null,"健",null,{"$f":"IF(ISNUMBER(入力!D41),入力!H48,\"\")","v":58},null,null,null,null,null,null,null,null,null,{"$f":"IF(ISNUMBER(入力!D48),3,\"\")","v":""},null,{"$f":"IF(ISNUMBER(入力!D48),\"短時間労働者(特定適用事業所\",\"\")","v":""}]
[]
[]
[null,null,null,null,null,null,null,null,null,null,null,null,null,null,null,null,null,null,null,null,null,null,null,null,null,null,null,null,null,null,null,null,null,null,null,null,null,null,null,null,null,null,null,null,null,null,null,null,null,null,null,null,null,null,null,null,null,null,null,null,null,null,null,null,null,null,null,null,null,null,null,null,null,null,null,null,null,null,null,null,null,null,null,null,null,null,null,null,null,null,null,null,null,null,null,null,null,null,null,null,null,null,null,null,null,null,null,null,null,null,null,null,null,null,null,null,null,4,null,"昇給・降給の理由"]
[]
[null,null,null,null,null,null,null,null,{"$f":"IF(ISNUMBER(入力!D36),入力!I39,\"\")","v":"2018-01-01"},null,null,null,"月",null,null,null,null,{"$f":"IF(ISNUMBER(入力!D39),入力!D39,\"\")","v":31},null,null,null,"日",null,null,null,null,{"$f":"IF(ISNUMBER(入力!D42),入力!D42,\"\")","v":50000},null,null,null,null,null,null,null,null,null,null,null,null,null,null,null,"円",null,null,null,null,{"$f":"IF(ISNUMBER(入力!D55),入力!D55,\"\")","v":""},null,null,null,null,null,null,null,null,null,null,null,null,null,"円",null,null,null,null,{"$f":"IF(ISNUMBER(入力!D42),入力!G42,\"\")","v":50000},null,null,null,null,null,null,null,null,null,null,null,null,null,null,null,"円",null,15,null,null,{"$f":"IF(ISNUMBER(入力!D41),入力!I43,\"\")","v":50000},null,null,null,null,null,null,null,null,null,null,null,null,null,null,null,"円"]
[null,null,null,null,null,null,null,null,null,null,null,null,null,null,null,null,null,null,null,null,null,null,null,null,null,null,null,null,null,null,null,null,null,null,null,null,null,null,null,null,null,null,null,null,null,null,null,null,null,null,null,null,null,null,null,null,null,null,null,null,null,null,null,null,null,null,null,null,null,null,null,null,null,null,null,null,null,null,null,null,null,null,null,null,null,null,null,null,null,null,null,null,null,null,null,null,null,null,null,null,null,null,null,null,null,null,null,"千円",null,null,null,null,null,null,null,null,null,null,null,{"$f":"IF(ISTEXT(入力!D44),入力!D44,\"\")","v":"基本給減"}]
[]
[null,null,null,null,null,null,null,null,null,null,null,null,null,null,null,null,null,null,null,null,null,null,null,null,null,null,null,null,null,null,null,null,null,null,null,null,null,null,null,null,null,null,null,null,null,null,null,null,null,null,null,null,null,null,null,null,null,null,null,null,null,null,null,null,null,null,null,null,null,null,null,null,null,null,null,null,null,null,null,null,null,null,null,null,null,null,null,null,null,null,null,null,null,null,null,null,null,null,null,null,null,null,null,null,null,"厚",null,{"$f":"IF(ISNUMBER(入力!D41),入力!H49,\"\")","v":88}]
[null,null,null,null,null,null,null,null,null,null,null,null,null,null,null,null,null,null,null,null,null,null,null,null,null,null,null,null,null,null,null,null,null,null,null,null,null,null,null,null,null,null,null,null,null,null,null,null,null,null,null,null,null,null,null,null,null,null,null,null,null,null,null,null,null,null,null,null,null,null,null,null,null,null,null,null,null,null,null,null,null,null,null,null,null,null,null,null,null,null,null,null,null,null,null,null,null,null,null,null,null,null,null,null,null,null,null,null,null,null,null,null,null,null,null,null,null,{"$f":"IF(ISNUMBER(入力!D49),5,\"\")","v":""},null,{"$f":"IF(ISNUMBER(入力!D49),\"健康保険のみ月額変更\",\"\")","v":""}]
[null,null,null,null,null,null,null,null,{"$f":"IF(ISNUMBER(入力!D36),入力!I40,\"\")","v":"2018-02-01"},null,null,null,"月",null,null,null,null,{"$f":"IF(ISNUMBER(入力!D40),入力!D40,\"\")","v":31},null,null,null,"日",null,null,null,null,{"$f":"IF(ISNUMBER(入力!D43),入力!D43,\"\")","v":50000},null,null,null,null,null,null,null,null,null,null,null,null,null,null,null,"円",null,null,null,null,{"$f":"IF(ISNUMBER(入力!D56),入力!D56,\"\")","v":""},null,null,null,null,null,null,null,null,null,null,null,null,null,"円",null,null,null,null,{"$f":"IF(ISNUMBER(入力!D43),入力!G43,\"\")","v":50000},null,null,null,null,null,null,null,null,null,null,null,null,null,null,null,"円",null,16,null,null,{"$f":"IF(ISNUMBER(入力!D53),入力!I45,\"\")","v":""},null,null,null,null,null,null,null,null,null,null,null,null,null,null,null,"円"]
[]
[null,null,null,null,null,null,null,null,null,null,null,null,null,null,null,null,null,null,null,null,null,null,null,null,null,null,null,null,null,null,null,null,null,null,null,null,null,null,null,null,null,null,null,null,null,null,null,null,null,null,null,null,null,null,null,null,null,null,null,null,null,null,null,null,null,null,null,null,null,null,null,null,null,null,null,null,null,null,null,null,null,null,null,null,null,null,null,null,null,null,null,null,null,null,null,null,null,null,null,null,null,null,null,null,null,null,null,null,null,null,null,null,null,null,null,null,null,{"$f":"IF(ISNUMBER(入力!D50),6,\"\")","v":""},null,{"$f":"IF(ISNUMBER(入力!D50),\"その他\",\"\")","v":""},null,null,null,null,{"$f":"IF(ISTEXT(入力!D51),入力!D51,\"\")","v":""}]
[null,null,null,null,null,null,null,null,null,null,null,null,null,null,null,null,null,null,null,null,null,null,null,null,null,null,null,null,null,null,null,null,null,null,null,null,null,null,null,null,null,null,null,null,null,null,null,null,null,null,null,null,null,null,null,null,null,null,null,null,null,null,null,null,null,null,null,null,null,null,null,null,null,null,null,null,null,null,null,null,null,null,null,null,null,null,null,null,null,null,null,null,null,null,null,null,null,null,null,null,null,null,null,null,null,null,null,"千円"]
[]
[]
[]
[]
["３",null,null,null,null,1,null,null,{"$f":"IF(ISNUMBER(入力!D59),入力!D59,\"\")","v":5404},null,null,null,null,null,null,null,null,null,null,null,2,null,null,{"$f":"IF(ISTEXT(入力!D60),入力!D60,\"\")","v":"クリス　ジョンソン"},null,null,null,null,null,null,null,null,null,null,null,null,null,null,null,null,null,null,null,null,null,null,null,null,null,null,null,null,null,null,null,null,null,null,null,null,null,null,null,null,null,null,null,3,null,{"$f":"IF(ISNUMBER(入力!D61),入力!D61,\"\")","v":"1986-02-03"},null,null,null,null,null,null,null,null,null,null,null,null,null,null,null,null,null,null,null,null,null,null,null,null,null,4,null,{"$f":"IF(ISNUMBER(入力!D64),入力!I62,\"\")","v":"2018-05-07"}]
[]
[]
[]
[null,null,null,null,null,null,null,null,null,null,null,null,null,null,null,null,null,null,null,null,null,null,null,null,null,null,null,null,null,null,null,null,null,null,null,null,null,null,null,null,null,null,null,null,null,null,null,null,null,null,null,null,null,null,null,null,null,null,null,null,null,null,null,null,null,null,null,null,null,null,null,null,null,null,null,null,null,null,null,null,null,null,null,null,null,null,null,null,null,null,null,null,null,null,null,null,null,null,null,null,null,null,null,null,null,null,null,null,null,null,null,null,null,null,18,null,null,{"$f":"IF(ISNUMBER(入力!D73),1,\"\")","v":""},null,{"$f":"IF(ISNUMBER(入力!D73),\"70歳以上被用者月額変更\",\"\")","v":""}]
[null,null,null,null,null,5,null,null,"健",null,null,{"$f":"IF(ISNUMBER(入力!D62),入力!G79,\"\")","v":620},null,null,null,null,null,null,null,null,null,"千円",null,null,null,"年",null,null,{"$f":"IF(ISNUMBER(入力!D62),入力!G81,\"\")","v":620},null,null,null,null,null,null,null,null,null,null,null,"千円",null,null,null,6,null,{"$f":"IF(ISNUMBER(入力!D63),入力!D63,\"\")","v":"2017-12-01"},null,null,null,null,null,null,null,null,null,null,null,null,null,null,null,null,7,null,{"$f":"IF(ISNUMBER(入力!D64),入力!D64,\"\")","v":"2018-02-01"},null,null,null,null,"月",null,{"$f":"IF(ISNUMBER(入力!D65),入力!I64,\"\")","v":"1.昇給"},null,null,null,null,null,null,null,null,null,null,null,8,null,{"$f":"IF(ISNUMBER(入力!D80),入力!D80,\"\")","v":""},null,null,null,null,"月",null,{"$f":"IF(ISNUMBER(入力!D81),入力!D81,\"\")","v":""},null,null,null,null,null,null,null,null,null,null,null,null,null,null,null,null,null,null,"円"]
[]
[null,null,null,null,null,null,null,null,null,null,null,null,null,null,null,null,null,null,null,null,null,null,null,null,null,null,null,null,null,null,null,null,null,null,null,null,null,null,null,null,null,null,null,null,null,null,null,null,null,null,null,null,null,null,null,null,null,null,null,null,null,null,null,null,null,null,null,null,null,null,null,null,null,null,null,null,null,null,null,null,null,null,null,null,null,null,null,null,null,null,null,null,null,null,null,null,null,null,null,null,null,null,null,null,null,null,null,null,null,null,null,null,null,null,null,null,null,{"$f":"IF(ISNUMBER(入力!D75),2,\"\")","v":""},null,{"$f":"IF(ISNUMBER(入力!D75),\"二以上勤務\",\"\")","v":""}]
[]
[]
[null,null,null,null,null,9,null,null,{"$f":"IF(ISNUMBER(入力!D64),入力!I66,\"\")","v":"2018-02-01"},null,null,null,"月",null,10,null,null,{"$f":"IF(ISNUMBER(入力!D66),入力!D66,\"\")","v":31},null,null,null,"日",null,11,null,null,{"$f":"IF(ISNUMBER(入力!D69),入力!D69,\"\")","v":1500000},null,null,null,null,null,null,null,null,null,null,null,null,null,null,null,"円",null,12,null,null,{"$f":"IF(ISNUMBER(入力!D82),入力!D82,\"\")","v":""},null,null,null,null,null,null,null,null,null,null,null,null,null,"円",null,13,null,null,{"$f":"IF(ISNUMBER(入力!D69),入力!G69,\"\")","v":1500000},null,null,null,null,null,null,null,null,null,null,null,null,null,null,null,"円",null,14,null,null,{"$f":"IF(ISNUMBER(入力!D69),入力!I70,\"\")","v":4500000},null,null,null,null,null,null,null,null,null,null,null,null,null,null,null,"円",null,"健",null,{"$f":"IF(ISNUMBER(入力!D69),入力!H76,\"\")","v":1390},null,null,null,null,null,null,null,null,null,{"$f":"IF(ISNUMBER(入力!D76),3,\"\")","v":""},null,{"$f":"IF(ISNUMBER(入力!D76),\"短時間労働者(特定適用事業所\",\"\")","v":""}]
[]
[]
[null,null,null,null,null,null,null,null,null,null,null,null,null,null,null,null,null,null,null,null,null,null,null,null,null,null,null,null,null,null,null,null,null,null,null,null,null,null,null,null,null,null,null,null,null,null,null,null,null,null,null,null,null,null,null,null,null,null,null,null,null,null,null,null,null,null,null,null,null,null,null,null,null,null,null,null,null,null,null,null,null,null,null,null,null,null,null,null,null,null,null,null,null,null,null,null,null,null,null,null,null,null,null,null,null,null,null,null,null,null,null,null,null,null,null,null,null,4,null,"昇給・降給の理由"]
[]
[null,null,null,null,null,null,null,null,{"$f":"IF(ISNUMBER(入力!D64),入力!I67,\"\")","v":"2018-03-04"},null,null,null,"月",null,null,null,null,{"$f":"IF(ISNUMBER(入力!D67),入力!D67,\"\")","v":28},null,null,null,"日",null,null,null,null,{"$f":"IF(ISNUMBER(入力!D70),入力!D70,\"\")","v":1500000},null,null,null,null,null,null,null,null,null,null,null,null,null,null,null,"円",null,null,null,null,{"$f":"IF(ISNUMBER(入力!D83),入力!D83,\"\")","v":""},null,null,null,null,null,null,null,null,null,null,null,null,null,"円",null,null,null,null,{"$f":"IF(ISNUMBER(入力!D70),入力!G70,\"\")","v":1500000},null,null,null,null,null,null,null,null,null,null,null,null,null,null,null,"円",null,15,null,null,{"$f":"IF(ISNUMBER(入力!D69),入力!I71,\"\")","v":1500000},null,null,null,null,null,null,null,null,null,null,null,null,null,null,null,"円"]
[null,null,null,null,null,null,null,null,null,null,null,null,null,null,null,null,null,null,null,null,null,null,null,null,null,null,null,null,null,null,null,null,null,null,null,null,null,null,null,null,null,null,null,null,null,null,null,null,null,null,null,null,null,null,null,null,null,null,null,null,null,null,null,null,null,null,null,null,null,null,null,null,null,null,null,null,null,null,null,null,null,null,null,null,null,null,null,null,null,null,null,null,null,null,null,null,null,null,null,null,null,null,null,null,null,null,null,"千円",null,null,null,null,null,null,null,null,null,null,null,{"$f":"IF(ISTEXT(入力!D72),入力!D72,\"\")","v":"基本給増"}]
[]
[null,null,null,null,null,null,null,null,null,null,null,null,null,null,null,null,null,null,null,null,null,null,null,null,null,null,null,null,null,null,null,null,null,null,null,null,null,null,null,null,null,null,null,null,null,null,null,null,null,null,null,null,null,null,null,null,null,null,null,null,null,null,null,null,null,null,null,null,null,null,null,null,null,null,null,null,null,null,null,null,null,null,null,null,null,null,null,null,null,null,null,null,null,null,null,null,null,null,null,null,null,null,null,null,null,"厚",null,{"$f":"IF(ISNUMBER(入力!D69),入力!H77,\"\")","v":650}]
[null,null,null,null,null,null,null,null,null,null,null,null,null,null,null,null,null,null,null,null,null,null,null,null,null,null,null,null,null,null,null,null,null,null,null,null,null,null,null,null,null,null,null,null,null,null,null,null,null,null,null,null,null,null,null,null,null,null,null,null,null,null,null,null,null,null,null,null,null,null,null,null,null,null,null,null,null,null,null,null,null,null,null,null,null,null,null,null,null,null,null,null,null,null,null,null,null,null,null,null,null,null,null,null,null,null,null,null,null,null,null,null,null,null,null,null,null,{"$f":"IF(ISNUMBER(入力!D77),5,\"\")","v":5},null,{"$f":"IF(ISNUMBER(入力!D77),\"健康保険のみ月額変更\",\"\")","v":"健康保険のみ月額変更"}]
[null,null,null,null,null,null,null,null,{"$f":"IF(ISNUMBER(入力!D64),入力!I68,\"\")","v":"2018-04-04"},null,null,null,"月",null,null,null,null,{"$f":"IF(ISNUMBER(入力!D68),入力!D68,\"\")","v":31},null,null,null,"日",null,null,null,null,{"$f":"IF(ISNUMBER(入力!D71),入力!D71,\"\")","v":1500000},null,null,null,null,null,null,null,null,null,null,null,null,null,null,null,"円",null,null,null,null,{"$f":"IF(ISNUMBER(入力!D84),入力!D84,\"\")","v":""},null,null,null,null,null,null,null,null,null,null,null,null,null,"円",null,null,null,null,{"$f":"IF(ISNUMBER(入力!D71),入力!G71,\"\")","v":1500000},null,null,null,null,null,null,null,null,null,null,null,null,null,null,null,"円",null,16,null,null,{"$f":"IF(ISNUMBER(入力!D81),入力!I73,\"\")","v":""},null,null,null,null,null,null,null,null,null,null,null,null,null,null,null,"円"]
[]
[null,null,null,null,null,null,null,null,null,null,null,null,null,null,null,null,null,null,null,null,null,null,null,null,null,null,null,null,null,null,null,null,null,null,null,null,null,null,null,null,null,null,null,null,null,null,null,null,null,null,null,null,null,null,null,null,null,null,null,null,null,null,null,null,null,null,null,null,null,null,null,null,null,null,null,null,null,null,null,null,null,null,null,null,null,null,null,null,null,null,null,null,null,null,null,null,null,null,null,null,null,null,null,null,null,null,null,null,null,null,null,null,null,null,null,null,null,{"$f":"IF(ISNUMBER(入力!D78),6,\"\")","v":""},null,{"$f":"IF(ISNUMBER(入力!D78),\"その他\",\"\")","v":""},null,null,null,null,{"$f":"IF(ISTEXT(入力!D79),入力!D79,\"\")","v":""}]
[null,null,null,null,null,null,null,null,null,null,null,null,null,null,null,null,null,null,null,null,null,null,null,null,null,null,null,null,null,null,null,null,null,null,null,null,null,null,null,null,null,null,null,null,null,null,null,null,null,null,null,null,null,null,null,null,null,null,null,null,null,null,null,null,null,null,null,null,null,null,null,null,null,null,null,null,null,null,null,null,null,null,null,null,null,null,null,null,null,null,null,null,null,null,null,null,null,null,null,null,null,null,null,null,null,null,null,"千円"]
[]
[]
[]
[]
["４",null,null,null,null,1,null,null,{"$f":"IF(ISNUMBER(入力!D87),入力!D87,\"\")","v":5405},null,null,null,null,null,null,null,null,null,null,null,2,null,null,{"$f":"IF(ISTEXT(入力!D88),入力!D88,\"\")","v":"ブラッド　エルドレッド"},null,null,null,null,null,null,null,null,null,null,null,null,null,null,null,null,null,null,null,null,null,null,null,null,null,null,null,null,null,null,null,null,null,null,null,null,null,null,null,null,null,null,null,3,null,{"$f":"IF(ISNUMBER(入力!D89),入力!D89,\"\")","v":"1981-04-08"},null,null,null,null,null,null,null,null,null,null,null,null,null,null,null,null,null,null,null,null,null,null,null,null,null,4,null,{"$f":"IF(ISNUMBER(入力!D92),入力!I90,\"\")","v":"2018-05-07"}]
[]
[]
[]
[null,null,null,null,null,null,null,null,null,null,null,null,null,null,null,null,null,null,null,null,null,null,null,null,null,null,null,null,null,null,null,null,null,null,null,null,null,null,null,null,null,null,null,null,null,null,null,null,null,null,null,null,null,null,null,null,null,null,null,null,null,null,null,null,null,null,null,null,null,null,null,null,null,null,null,null,null,null,null,null,null,null,null,null,null,null,null,null,null,null,null,null,null,null,null,null,null,null,null,null,null,null,null,null,null,null,null,null,null,null,null,null,null,null,18,null,null,{"$f":"IF(ISNUMBER(入力!D101),1,\"\")","v":""},null,{"$f":"IF(ISNUMBER(入力!D101),\"70歳以上被用者月額変更\",\"\")","v":""}]
[null,null,null,null,null,5,null,null,"健",null,null,{"$f":"IF(ISNUMBER(入力!D90),入力!G107,\"\")","v":300},null,null,null,null,null,null,null,null,null,"千円",null,null,null,"年",null,null,{"$f":"IF(ISNUMBER(入力!D90),入力!G109,\"\")","v":300},null,null,null,null,null,null,null,null,null,null,null,"千円",null,null,null,6,null,{"$f":"IF(ISNUMBER(入力!D91),入力!D91,\"\")","v":"2018-01-01"},null,null,null,null,null,null,null,null,null,null,null,null,null,null,null,null,7,null,{"$f":"IF(ISNUMBER(入力!D92),入力!D92,\"\")","v":"2018-02-01"},null,null,null,null,"月",null,{"$f":"IF(ISNUMBER(入力!D93),入力!I92,\"\")","v":"1.昇給"},null,null,null,null,null,null,null,null,null,null,null,8,null,{"$f":"IF(ISNUMBER(入力!D108),入力!D108,\"\")","v":"2018-02-01"},null,null,null,null,"月",null,{"$f":"IF(ISNUMBER(入力!D109),入力!D109,\"\")","v":20000},null,null,null,null,null,null,null,null,null,null,null,null,null,null,null,null,null,null,"円"]
[]
[null,null,null,null,null,null,null,null,null,null,null,null,null,null,null,null,null,null,null,null,null,null,null,null,null,null,null,null,null,null,null,null,null,null,null,null,null,null,null,null,null,null,null,null,null,null,null,null,null,null,null,null,null,null,null,null,null,null,null,null,null,null,null,null,null,null,null,null,null,null,null,null,null,null,null,null,null,null,null,null,null,null,null,null,null,null,null,null,null,null,null,null,null,null,null,null,null,null,null,null,null,null,null,null,null,null,null,null,null,null,null,null,null,null,null,null,null,{"$f":"IF(ISNUMBER(入力!D103),2,\"\")","v":2},null,{"$f":"IF(ISNUMBER(入力!D103),\"二以上勤務\",\"\")","v":"二以上勤務"}]
[]
[]
[null,null,null,null,null,9,null,null,{"$f":"IF(ISNUMBER(入力!D92),入力!I94,\"\")","v":"2018-02-01"},null,null,null,"月",null,10,null,null,{"$f":"IF(ISNUMBER(入力!D94),入力!D94,\"\")","v":31},null,null,null,"日",null,11,null,null,{"$f":"IF(ISNUMBER(入力!D97),入力!D97,\"\")","v":820000},null,null,null,null,null,null,null,null,null,null,null,null,null,null,null,"円",null,12,null,null,{"$f":"IF(ISNUMBER(入力!D110),入力!D110,\"\")","v":""},null,null,null,null,null,null,null,null,null,null,null,null,null,"円",null,13,null,null,{"$f":"IF(ISNUMBER(入力!D97),入力!G97,\"\")","v":820000},null,null,null,null,null,null,null,null,null,null,null,null,null,null,null,"円",null,14,null,null,{"$f":"IF(ISNUMBER(入力!D97),入力!I98,\"\")","v":2420000},null,null,null,null,null,null,null,null,null,null,null,null,null,null,null,"円",null,"健",null,{"$f":"IF(ISNUMBER(入力!D97),入力!H104,\"\")","v":790},null,null,null,null,null,null,null,null,null,{"$f":"IF(ISNUMBER(入力!D104),3,\"\")","v":""},null,{"$f":"IF(ISNUMBER(入力!D104),\"短時間労働者(特定適用事業所\",\"\")","v":""}]
[]
[]
[null,null,null,null,null,null,null,null,null,null,null,null,null,null,null,null,null,null,null,null,null,null,null,null,null,null,null,null,null,null,null,null,null,null,null,null,null,null,null,null,null,null,null,null,null,null,null,null,null,null,null,null,null,null,null,null,null,null,null,null,null,null,null,null,null,null,null,null,null,null,null,null,null,null,null,null,null,null,null,null,null,null,null,null,null,null,null,null,null,null,null,null,null,null,null,null,null,null,null,null,null,null,null,null,null,null,null,null,null,null,null,null,null,null,null,null,null,4,null,"昇給・降給の理由"]
[]
[null,null,null,null,null,null,null,null,{"$f":"IF(ISNUMBER(入力!D92),入力!I95,\"\")","v":"2018-03-04"},null,null,null,"月",null,null,null,null,{"$f":"IF(ISNUMBER(入力!D95),入力!D95,\"\")","v":28},null,null,null,"日",null,null,null,null,{"$f":"IF(ISNUMBER(入力!D98),入力!D98,\"\")","v":800000},null,null,null,null,null,null,null,null,null,null,null,null,null,null,null,"円",null,null,null,null,{"$f":"IF(ISNUMBER(入力!D111),入力!D111,\"\")","v":""},null,null,null,null,null,null,null,null,null,null,null,null,null,"円",null,null,null,null,{"$f":"IF(ISNUMBER(入力!D98),入力!G98,\"\")","v":800000},null,null,null,null,null,null,null,null,null,null,null,null,null,null,null,"円",null,15,null,null,{"$f":"IF(ISNUMBER(入力!D97),入力!I99,\"\")","v":806666},null,null,null,null,null,null,null,null,null,null,null,null,null,null,null,"円"]
[null,null,null,null,null,null,null,null,null,null,null,null,null,null,null,null,null,null,null,null,null,null,null,null,null,null,null,null,null,null,null,null,null,null,null,null,null,null,null,null,null,null,null,null,null,null,null,null,null,null,null,null,null,null,null,null,null,null,null,null,null,null,null,null,null,null,null,null,null,null,null,null,null,null,null,null,null,null,null,null,null,null,null,null,null,null,null,null,null,null,null,null,null,null,null,null,null,null,null,null,null,null,null,null,null,null,null,"千円",null,null,null,null,null,null,null,null,null,null,null,{"$f":"IF(ISTEXT(入力!D100),入力!D100,\"\")","v":""}]
[]
[null,null,null,null,null,null,null,null,null,null,null,null,null,null,null,null,null,null,null,null,null,null,null,null,null,null,null,null,null,null,null,null,null,null,null,null,null,null,null,null,null,null,null,null,null,null,null,null,null,null,null,null,null,null,null,null,null,null,null,null,null,null,null,null,null,null,null,null,null,null,null,null,null,null,null,null,null,null,null,null,null,null,null,null,null,null,null,null,null,null,null,null,null,null,null,null,null,null,null,null,null,null,null,null,null,"厚",null,{"$f":"IF(ISNUMBER(入力!D97),入力!H105,\"\")","v":650}]
[null,null,null,null,null,null,null,null,null,null,null,null,null,null,null,null,null,null,null,null,null,null,null,null,null,null,null,null,null,null,null,null,null,null,null,null,null,null,null,null,null,null,null,null,null,null,null,null,null,null,null,null,null,null,null,null,null,null,null,null,null,null,null,null,null,null,null,null,null,null,null,null,null,null,null,null,null,null,null,null,null,null,null,null,null,null,null,null,null,null,null,null,null,null,null,null,null,null,null,null,null,null,null,null,null,null,null,null,null,null,null,null,null,null,null,null,null,{"$f":"IF(ISNUMBER(入力!D105),5,\"\")","v":""},null,{"$f":"IF(ISNUMBER(入力!D105),\"健康保険のみ月額変更\",\"\")","v":""}]
[null,null,null,null,null,null,null,null,{"$f":"IF(ISNUMBER(入力!D92),入力!I96,\"\")","v":"2018-04-04"},null,null,null,"月",null,null,null,null,{"$f":"IF(ISNUMBER(入力!D96),入力!D96,\"\")","v":31},null,null,null,"日",null,null,null,null,{"$f":"IF(ISNUMBER(入力!D99),入力!D99,\"\")","v":800000},null,null,null,null,null,null,null,null,null,null,null,null,null,null,null,"円",null,null,null,null,{"$f":"IF(ISNUMBER(入力!D112),入力!D112,\"\")","v":""},null,null,null,null,null,null,null,null,null,null,null,null,null,"円",null,null,null,null,{"$f":"IF(ISNUMBER(入力!D99),入力!G99,\"\")","v":800000},null,null,null,null,null,null,null,null,null,null,null,null,null,null,null,"円",null,16,null,null,{"$f":"IF(ISNUMBER(入力!D109),入力!I101,\"\")","v":800000},null,null,null,null,null,null,null,null,null,null,null,null,null,null,null,"円"]
[]
[null,null,null,null,null,null,null,null,null,null,null,null,null,null,null,null,null,null,null,null,null,null,null,null,null,null,null,null,null,null,null,null,null,null,null,null,null,null,null,null,null,null,null,null,null,null,null,null,null,null,null,null,null,null,null,null,null,null,null,null,null,null,null,null,null,null,null,null,null,null,null,null,null,null,null,null,null,null,null,null,null,null,null,null,null,null,null,null,null,null,null,null,null,null,null,null,null,null,null,null,null,null,null,null,null,null,null,null,null,null,null,null,null,null,null,null,null,{"$f":"IF(ISNUMBER(入力!D106),6,\"\")","v":""},null,{"$f":"IF(ISNUMBER(入力!D106),\"その他\",\"\")","v":""},null,null,null,null,{"$f":"IF(ISTEXT(入力!D107),入力!D107,\"\")","v":""}]
[null,null,null,null,null,null,null,null,null,null,null,null,null,null,null,null,null,null,null,null,null,null,null,null,null,null,null,null,null,null,null,null,null,null,null,null,null,null,null,null,null,null,null,null,null,null,null,null,null,null,null,null,null,null,null,null,null,null,null,null,null,null,null,null,null,null,null,null,null,null,null,null,null,null,null,null,null,null,null,null,null,null,null,null,null,null,null,null,null,null,null,null,null,null,null,null,null,null,null,null,null,null,null,null,null,null,null,"千円"]
[]
[]
[]
[]
["５",null,null,null,null,1,null,null,{"$f":"IF(ISNUMBER(入力!D115),入力!D115,\"\")","v":5406},null,null,null,null,null,null,null,null,null,null,null,2,null,null,{"$f":"IF(ISTEXT(入力!D116),入力!D116,\"\")","v":"ジェイ　ジャクソン"},null,null,null,null,null,null,null,null,null,null,null,null,null,null,null,null,null,null,null,null,null,null,null,null,null,null,null,null,null,null,null,null,null,null,null,null,null,null,null,null,null,null,null,3,null,{"$f":"IF(ISNUMBER(入力!D117),入力!D117,\"\")","v":"1993-07-26"},null,null,null,null,null,null,null,null,null,null,null,null,null,null,null,null,null,null,null,null,null,null,null,null,null,4,null,{"$f":"IF(ISNUMBER(入力!D120),入力!I118,\"\")","v":"2018-06-04"}]
[]
[]
[]
[null,null,null,null,null,null,null,null,null,null,null,null,null,null,null,null,null,null,null,null,null,null,null,null,null,null,null,null,null,null,null,null,null,null,null,null,null,null,null,null,null,null,null,null,null,null,null,null,null,null,null,null,null,null,null,null,null,null,null,null,null,null,null,null,null,null,null,null,null,null,null,null,null,null,null,null,null,null,null,null,null,null,null,null,null,null,null,null,null,null,null,null,null,null,null,null,null,null,null,null,null,null,null,null,null,null,null,null,null,null,null,null,null,null,18,null,null,{"$f":"IF(ISNUMBER(入力!D129),1,\"\")","v":""},null,{"$f":"IF(ISNUMBER(入力!D129),\"70歳以上被用者月額変更\",\"\")","v":""}]
[null,null,null,null,null,5,null,null,"健",null,null,{"$f":"IF(ISNUMBER(入力!D118),入力!G135,\"\")","v":58},null,null,null,null,null,null,null,null,null,"千円",null,null,null,"年",null,null,{"$f":"IF(ISNUMBER(入力!D118),入力!G137,\"\")","v":88},null,null,null,null,null,null,null,null,null,null,null,"千円",null,null,null,6,null,{"$f":"IF(ISNUMBER(入力!D119),入力!D119,\"\")","v":"2017-11-01"},null,null,null,null,null,null,null,null,null,null,null,null,null,null,null,null,7,null,{"$f":"IF(ISNUMBER(入力!D120),入力!D120,\"\")","v":"2018-03-01"},null,null,null,null,"月",null,{"$f":"IF(ISNUMBER(入力!D121),入力!I120,\"\")","v":"1.昇給"},null,null,null,null,null,null,null,null,null,null,null,8,null,{"$f":"IF(ISNUMBER(入力!D136),入力!D136,\"\")","v":""},null,null,null,null,"月",null,{"$f":"IF(ISNUMBER(入力!D137),入力!D137,\"\")","v":""},null,null,null,null,null,null,null,null,null,null,null,null,null,null,null,null,null,null,"円"]
[]
[null,null,null,null,null,null,null,null,null,null,null,null,null,null,null,null,null,null,null,null,null,null,null,null,null,null,null,null,null,null,null,null,null,null,null,null,null,null,null,null,null,null,null,null,null,null,null,null,null,null,null,null,null,null,null,null,null,null,null,null,null,null,null,null,null,null,null,null,null,null,null,null,null,null,null,null,null,null,null,null,null,null,null,null,null,null,null,null,null,null,null,null,null,null,null,null,null,null,null,null,null,null,null,null,null,null,null,null,null,null,null,null,null,null,null,null,null,{"$f":"IF(ISNUMBER(入力!D131),2,\"\")","v":""},null,{"$f":"IF(ISNUMBER(入力!D131),\"二以上勤務\",\"\")","v":""}]
[]
[]
[null,null,null,null,null,9,null,null,{"$f":"IF(ISNUMBER(入力!D120),入力!I122,\"\")","v":"2018-03-01"},null,null,null,"月",null,10,null,null,{"$f":"IF(ISNUMBER(入力!D122),入力!D122,\"\")","v":28},null,null,null,"日",null,11,null,null,{"$f":"IF(ISNUMBER(入力!D125),入力!D125,\"\")","v":2000000},null,null,null,null,null,null,null,null,null,null,null,null,null,null,null,"円",null,12,null,null,{"$f":"IF(ISNUMBER(入力!D138),入力!D138,\"\")","v":50000},null,null,null,null,null,null,null,null,null,null,null,null,null,"円",null,13,null,null,{"$f":"IF(ISNUMBER(入力!D125),入力!G125,\"\")","v":2050000},null,null,null,null,null,null,null,null,null,null,null,null,null,null,null,"円",null,14,null,null,{"$f":"IF(ISNUMBER(入力!D125),入力!I126,\"\")","v":6150000},null,null,null,null,null,null,null,null,null,null,null,null,null,null,null,"円",null,"健",null,{"$f":"IF(ISNUMBER(入力!D125),入力!H132,\"\")","v":1390},null,null,null,null,null,null,null,null,null,{"$f":"IF(ISNUMBER(入力!D132),3,\"\")","v":3},null,{"$f":"IF(ISNUMBER(入力!D132),\"短時間労働者(特定適用事業所\",\"\")","v":"短時間労働者(特定適用事業所"}]
[]
[]
[null,null,null,null,null,null,null,null,null,null,null,null,null,null,null,null,null,null,null,null,null,null,null,null,null,null,null,null,null,null,null,null,null,null,null,null,null,null,null,null,null,null,null,null,null,null,null,null,null,null,null,null,null,null,null,null,null,null,null,null,null,null,null,null,null,null,null,null,null,null,null,null,null,null,null,null,null,null,null,null,null,null,null,null,null,null,null,null,null,null,null,null,null,null,null,null,null,null,null,null,null,null,null,null,null,null,null,null,null,null,null,null,null,null,null,null,null,4,null,"昇給・降給の理由"]
[]
[null,null,null,null,null,null,null,null,{"$f":"IF(ISNUMBER(入力!D120),入力!I123,\"\")","v":"2018-04-01"},null,null,null,"月",null,null,null,null,{"$f":"IF(ISNUMBER(入力!D123),入力!D123,\"\")","v":31},null,null,null,"日",null,null,null,null,{"$f":"IF(ISNUMBER(入力!D126),入力!D126,\"\")","v":2000000},null,null,null,null,null,null,null,null,null,null,null,null,null,null,null,"円",null,null,null,null,{"$f":"IF(ISNUMBER(入力!D139),入力!D139,\"\")","v":50000},null,null,null,null,null,null,null,null,null,null,null,null,null,"円",null,null,null,null,{"$f":"IF(ISNUMBER(入力!D126),入力!G126,\"\")","v":2050000},null,null,null,null,null,null,null,null,null,null,null,null,null,null,null,"円",null,15,null,null,{"$f":"IF(ISNUMBER(入力!D125),入力!I127,\"\")","v":2050000},null,null,null,null,null,null,null,null,null,null,null,null,null,null,null,"円"]
[null,null,null,null,null,null,null,null,null,null,null,null,null,null,null,null,null,null,null,null,null,null,null,null,null,null,null,null,null,null,null,null,null,null,null,null,null,null,null,null,null,null,null,null,null,null,null,null,null,null,null,null,null,null,null,null,null,null,null,null,null,null,null,null,null,null,null,null,null,null,null,null,null,null,null,null,null,null,null,null,null,null,null,null,null,null,null,null,null,null,null,null,null,null,null,null,null,null,null,null,null,null,null,null,null,null,null,"千円",null,null,null,null,null,null,null,null,null,null,null,{"$f":"IF(ISTEXT(入力!D128),入力!D128,\"\")","v":"役員就任"}]
[]
[null,null,null,null,null,null,null,null,null,null,null,null,null,null,null,null,null,null,null,null,null,null,null,null,null,null,null,null,null,null,null,null,null,null,null,null,null,null,null,null,null,null,null,null,null,null,null,null,null,null,null,null,null,null,null,null,null,null,null,null,null,null,null,null,null,null,null,null,null,null,null,null,null,null,null,null,null,null,null,null,null,null,null,null,null,null,null,null,null,null,null,null,null,null,null,null,null,null,null,null,null,null,null,null,null,"厚",null,{"$f":"IF(ISNUMBER(入力!D125),入力!H133,\"\")","v":650}]
[null,null,null,null,null,null,null,null,null,null,null,null,null,null,null,null,null,null,null,null,null,null,null,null,null,null,null,null,null,null,null,null,null,null,null,null,null,null,null,null,null,null,null,null,null,null,null,null,null,null,null,null,null,null,null,null,null,null,null,null,null,null,null,null,null,null,null,null,null,null,null,null,null,null,null,null,null,null,null,null,null,null,null,null,null,null,null,null,null,null,null,null,null,null,null,null,null,null,null,null,null,null,null,null,null,null,null,null,null,null,null,null,null,null,null,null,null,{"$f":"IF(ISNUMBER(入力!D133),5,\"\")","v":""},null,{"$f":"IF(ISNUMBER(入力!D133),\"健康保険のみ月額変更\",\"\")","v":""}]
[null,null,null,null,null,null,null,null,{"$f":"IF(ISNUMBER(入力!D120),入力!I124,\"\")","v":"2018-05-02"},null,null,null,"月",null,null,null,null,{"$f":"IF(ISNUMBER(入力!D124),入力!D124,\"\")","v":30},null,null,null,"日",null,null,null,null,{"$f":"IF(ISNUMBER(入力!D127),入力!D127,\"\")","v":2000000},null,null,null,null,null,null,null,null,null,null,null,null,null,null,null,"円",null,null,null,null,{"$f":"IF(ISNUMBER(入力!D140),入力!D140,\"\")","v":50000},null,null,null,null,null,null,null,null,null,null,null,null,null,"円",null,null,null,null,{"$f":"IF(ISNUMBER(入力!D127),入力!G127,\"\")","v":2050000},null,null,null,null,null,null,null,null,null,null,null,null,null,null,null,"円",null,16,null,null,{"$f":"IF(ISNUMBER(入力!D137),入力!I129,\"\")","v":""},null,null,null,null,null,null,null,null,null,null,null,null,null,null,null,"円"]
[]
[null,null,null,null,null,null,null,null,null,null,null,null,null,null,null,null,null,null,null,null,null,null,null,null,null,null,null,null,null,null,null,null,null,null,null,null,null,null,null,null,null,null,null,null,null,null,null,null,null,null,null,null,null,null,null,null,null,null,null,null,null,null,null,null,null,null,null,null,null,null,null,null,null,null,null,null,null,null,null,null,null,null,null,null,null,null,null,null,null,null,null,null,null,null,null,null,null,null,null,null,null,null,null,null,null,null,null,null,null,null,null,null,null,null,null,null,null,{"$f":"IF(ISNUMBER(入力!D134),6,\"\")","v":6},null,{"$f":"IF(ISNUMBER(入力!D134),\"その他\",\"\")","v":"その他"},null,null,null,null,{"$f":"IF(ISTEXT(入力!D135),入力!D135,\"\")","v":"短時間役員"}]
[null,null,null,null,null,null,null,null,null,null,null,null,null,null,null,null,null,null,null,null,null,null,null,null,null,null,null,null,null,null,null,null,null,null,null,null,null,null,null,null,null,null,null,null,null,null,null,null,null,null,null,null,null,null,null,null,null,null,null,null,null,null,null,null,null,null,null,null,null,null,null,null,null,null,null,null,null,null,null,null,null,null,null,null,null,null,null,null,null,null,null,null,null,null,null,null,null,null,null,null,null,null,null,null,null,null,null,"千円"]
[]
[]
[]
[null,null,null,null,null,null,null,null,null,null,null,null,null,null,null,null,null,null,null,null,null,null,null,null,null,null,null,null,null,null,null,null,null,null,null,null,null,null,null,null,null,null,null,null,null,null,null,null,null,null,null,null,null,null,null,null,null,null,null,null,null,null,null,null,null,null,null,null,null,null,null,null,null,null,null,null,null,null,null,null,null,null,null,null,null,null,null,null,null,null,null,null,null,null,null,null,null,null,null,null,null,null,null,null,"大阪自動車整備健康保険組合"]

{"sheet":"健保副","index":4,"n_rows":228,"n_cols":125,"rows_kept":228,"cut":false,"hidden":false,"merged":[[227,104,230,138],[222,117,224,118],[222,119,224,123],[222,124,224,139],[223,107,224,113],[1,14,7,104],[26,76,29,135],[39,76,43,132],[220,63,224,65],[220,66,224,81],[220,82,224,83],[220,84,224,86],[220,87,224,102],[220,103,224,104],[220,23,224,25],[220,26,224,41],[220,42,224,43],[220,44,224,46],[220,47,224,60],[220,61,224,62],[218,105,224,106],[218,107,222,113],[219,117,221,118],[219,119,221,139],[215,5,219,7],[215,8,219,11],[215,12,219,13],[215,14,219,16],[215,17,219,20],[215,21,219,22],[220,5,224,7],[220,8,224,11],[220,12,224,13],[220,14,224,16],[220,17,224,20],[220,21,224,22],[216,107,217,113],[216,117,218,118],[216,119,218,139],[215,87,219,102],[215,103,219,104],[215,23,219,25],[215,26,219,41],[215,42,219,43],[215,44,219,46],[215,47,219,60],[215,61,219,62],[215,63,219,65],[215,66,219,81],[215,82,219,83],[213,117,215,118],[213,119,215,139],[215,84,219,86],[205,65,209,69],[205,70,209,71],[205,5,209,7],[205,8,209,10],[205,11,209,20],[205,21,209,24],[205,25,209,27],[205,28,209,39],[210,61,214,62],[210,63,214,65],[210,66,214,81],[210,21,214,22],[210,23,214,25],[210,26,214,41],[210,42,214,43],[210,44,214,46],[210,47,214,60],[210,5,214,7],[210,8,214,11],[210,12,214,13],[210,14,214,16],[210,17,214,20],[205,40,209,43],[205,44,209,45],[205,46,209,62],[205,63,209,64],[200,95,204,96],[200,97,204,113],[200,114,203,139],[204,114,224,116],[204,117,206,118],[204,119,206,139],[205,72,209,83],[205,84,209,85],[205,86,209,90],[205,91,209,92],[205,93,209,111],[205,112,209,113],[207,117,209,118],[207,119,209,139],[210,82,214,83],[210,84,214,86],[210,87,214,102],[210,103,214,104],[210,105,217,106],[210,107,215,113],[210,117,212,118],[210,119,212,139],[194,119,196,123],[194,124,196,139],[195,107,196,113],[200,0,224,4],[200,5,204,7],[200,8,204,19],[200,20,204,22],[200,23,204,66],[200,67,204,68],[192,63,196,65],[192,66,196,81],[192,82,196,83],[192,84,196,86],[192,87,196,102],[192,103,196,104],[192,23,196,25],[192,26,196,41],[192,42,196,43],[192,44,196,46],[192,47,196,60],[192,61,196,62],[190,105,196,106],[190,107,194,113],[200,69,204,94],[191,119,193,139],[192,5,196,7],[192,8,196,11],[192,12,196,13],[192,14,196,16],[192,17,196,20],[192,21,196,22],[187,63,191,65],[187,66,191,81],[187,82,191,83],[187,84,191,86],[187,87,191,102],[187,103,191,104],[187,23,191,25],[187,26,191,41],[187,42,191,43],[187,44,191,46],[187,47,191,60],[187,61,191,62],[187,5,191,7],[187,8,191,11],[187,12,191,13],[187,14,191,16],[194,117,196,118],[182,84,186,86],[182,87,186,102],[182,21,186,22],[182,23,186,25],[182,26,186,41],[182,42,186,43],[182,44,186,46],[182,47,186,60],[191,117,193,118],[177,65,181,69],[177,70,181,71],[177,5,181,7],[177,8,181,10],[177,11,181,20],[177,21,181,24],[177,25,181,27],[177,28,181,39],[187,17,191,20],[187,21,191,22],[182,61,186,62],[182,63,186,65],[182,66,186,81],[182,5,186,7],[182,8,186,11],[182,12,186,13],[182,14,186,16],[182,17,186,20],[177,40,181,43],[177,44,181,45],[177,46,181,62],[177,63,181,64],[172,97,176,113],[172,114,175,139],[176,114,196,116],[176,117,178,118],[176,119,178,139],[177,72,181,83],[177,84,181,85],[177,86,181,90],[177,91,181,92],[177,93,181,111],[177,112,181,113],[179,117,181,118],[179,119,181,139],[182,103,186,104],[182,105,189,106],[182,107,187,113],[182,117,184,118],[182,119,184,139],[185,117,187,118],[185,119,187,139],[188,107,189,113],[188,117,190,118],[188,119,190,139],[182,82,186,83],[166,124,168,139],[167,107,168,113],[172,0,196,4],[172,5,176,7],[172,8,176,19],[172,20,176,22],[172,23,176,66],[172,67,176,68],[164,63,168,65],[164,66,168,81],[164,82,168,83],[164,84,168,86],[164,87,168,102],[164,103,168,104],[164,23,168,25],[164,26,168,41],[164,42,168,43],[164,44,168,46],[164,47,168,60],[164,61,168,62],[162,105,168,106],[162,107,166,113],[172,69,176,94],[172,95,176,96],[164,5,168,7],[164,8,168,11],[164,12,168,13],[164,14,168,16],[164,17,168,20],[164,21,168,22],[159,63,163,65],[159,66,163,81],[159,82,163,83],[159,23,163,25],[159,26,163,41],[159,42,163,43],[159,44,163,46],[159,47,163,60],[159,61,163,62],[159,5,163,7],[159,8,163,11],[159,12,163,13],[159,14,163,16],[159,17,163,20],[159,21,163,22],[154,103,158,104],[154,105,161,106],[154,107,159,113],[154,117,156,118],[154,119,156,139],[157,117,159,118],[157,119,159,139],[160,107,161,113],[160,117,162,118],[160,119,162,139],[154,66,158,81],[154,82,158,83],[154,84,158,86],[154,87,158,102],[154,21,158,22],[154,23,158,25],[154,26,158,41],[154,42,158,43],[154,44,158,46],[154,47,158,60],[154,5,158,7],[154,8,158,11],[154,12,158,13],[154,14,158,16],[154,17,158,20],[149,40,153,43],[149,44,153,45],[149,46,153,62],[149,63,153,64],[149,5,153,7],[149,8,153,10],[149,11,153,20],[149,21,153,24],[149,25,153,27],[149,28,153,39],[154,61,158,62],[154,63,158,65],[144,69,148,94],[144,95,148,96],[144,97,148,113],[144,114,147,139],[148,114,168,116],[148,117,150,118],[148,119,150,139],[149,72,153,83],[149,84,153,85],[149,86,153,90],[149,91,153,92],[149,93,153,111],[149,112,153,113],[151,117,153,118],[151,119,153,139],[149,65,153,69],[149,70,153,71],[163,117,165,118],[163,119,165,139],[159,84,163,86],[159,87,163,102],[159,103,163,104],[166,117,168,118],[166,119,168,123],[138,117,140,118],[138,119,140,123],[138,124,140,139],[139,107,140,113],[144,0,168,4],[144,5,148,7],[144,8,148,19],[144,20,148,22],[144,23,148,66],[144,67,148,68],[136,63,140,65],[136,66,140,81],[136,82,140,83],[136,84,140,86],[136,87,140,102],[136,103,140,104],[136,23,140,25],[136,26,140,41],[136,42,140,43],[136,44,140,46],[136,47,140,60],[136,61,140,62],[134,105,140,106],[134,107,138,113],[135,117,137,118],[135,119,137,139],[136,5,140,7],[136,8,140,11],[136,12,140,13],[136,14,140,16],[136,17,140,20],[136,21,140,22],[131,63,135,65],[131,66,135,81],[131,82,135,83],[131,84,135,86],[131,87,135,102],[131,103,135,104],[131,23,135,25],[131,26,135,41],[131,42,135,43],[131,44,135,46],[131,47,135,60],[131,61,135,62],[131,5,135,7],[131,8,135,11],[131,12,135,13],[131,14,135,16],[126,82,130,83],[126,84,130,86],[126,87,130,102],[126,21,130,22],[126,23,130,25],[126,26,130,41],[126,42,130,43],[126,44,130,46],[126,47,130,60],[121,65,125,69],[121,70,125,71],[121,5,125,7],[121,8,125,10],[121,11,125,20],[121,21,125,24],[121,25,125,27],[121,28,125,39],[131,17,135,20],[131,21,135,22],[126,61,130,62],[126,63,130,65],[126,66,130,81],[126,5,130,7],[126,8,130,11],[126,12,130,13],[126,14,130,16],[126,17,130,20],[121,40,125,43],[121,44,125,45],[121,46,125,62],[121,63,125,64],[116,95,120,96],[116,97,120,113],[116,114,119,139],[120,114,140,116],[120,117,122,118],[120,119,122,139],[121,72,125,83],[121,84,125,85],[121,86,125,90],[121,91,125,92],[121,93,125,111],[121,112,125,113],[123,117,125,118],[123,119,125,139],[126,103,130,104],[126,105,133,106],[126,107,131,113],[126,117,128,118],[126,119,128,139],[129,117,131,118],[129,119,131,139],[132,107,133,113],[132,117,134,118],[132,119,134,139],[110,119,112,123],[110,124,112,139],[111,107,112,113],[116,0,140,4],[116,5,120,7],[116,8,120,19],[116,20,120,22],[116,23,120,66],[116,67,120,68],[108,63,112,65],[108,66,112,81],[108,82,112,83],[108,84,112,86],[108,87,112,102],[108,103,112,104],[108,23,112,25],[108,26,112,41],[108,42,112,43],[108,44,112,46],[108,47,112,60],[108,61,112,62],[106,105,112,106],[106,107,110,113],[116,69,120,94],[108,5,112,7],[108,8,112,11],[108,12,112,13],[108,14,112,16],[108,17,112,20],[108,21,112,22],[103,63,107,65],[103,66,107,81],[103,82,107,83],[103,23,107,25],[103,26,107,41],[103,42,107,43],[103,44,107,46],[103,47,107,60],[103,61,107,62],[103,5,107,7],[103,8,107,11],[103,12,107,13],[103,14,107,16],[93,11,97,20],[93,21,97,24],[93,25,97,27],[93,28,97,39],[103,17,107,20],[103,21,107,22],[98,103,102,104],[98,105,105,106],[98,107,103,113],[104,107,105,113],[98,61,102,62],[98,63,102,65],[98,66,102,81],[98,82,102,83],[98,84,102,86],[98,87,102,102],[98,21,102,22],[98,23,102,25],[98,26,102,41],[98,42,102,43],[98,44,102,46],[98,47,102,60],[103,84,107,86],[103,87,107,102],[88,95,92,96],[88,97,92,113],[88,114,91,139],[92,114,112,116],[92,117,94,118],[92,119,94,139],[93,72,97,83],[93,84,97,85],[93,86,97,90],[93,91,97,92],[93,93,97,111],[93,112,97,113],[95,117,97,118],[95,119,97,139],[98,117,100,118],[98,119,100,139],[101,117,103,118],[101,119,103,139],[104,117,106,118],[104,119,106,139],[107,117,109,118],[107,119,109,139],[103,103,107,104],[110,117,112,118],[88,0,112,4],[88,5,92,7],[88,8,92,19],[88,20,92,22],[88,23,92,66],[88,67,92,68],[68,0,84,4],[68,5,71,19],[68,20,71,66],[68,67,71,94],[88,69,92,94],[98,5,102,7],[98,8,102,11],[98,12,102,13],[98,14,102,16],[98,17,102,20],[93,40,97,43],[93,44,97,45],[93,46,97,62],[93,63,97,64],[93,65,97,69],[93,70,97,71],[93,5,97,7],[93,8,97,10],[68,114,71,139],[72,5,75,43],[41,5,46,15],[41,16,46,61],[41,62,46,69],[47,5,47,15],[47,16,47,69],[48,5,53,15],[48,16,53,69],[72,44,75,62],[72,63,75,83],[72,84,75,113],[72,114,84,139],[76,5,84,13],[76,14,84,22],[76,23,79,83],[76,84,78,104],[76,105,84,113],[79,84,81,104],[80,23,84,43],[80,44,84,62],[80,63,84,83],[82,84,84,104],[68,95,71,113],[9,0,12,27],[15,0,53,4],[15,5,18,15],[15,16,18,23],[20,5,24,15],[20,16,22,69],[23,16,25,18],[23,19,25,31],[23,32,25,69],[25,5,30,15],[26,16,32,69],[31,5,33,15],[33,16,33,69],[34,5,39,15],[34,16,39,69],[40,5,40,15],[40,16,40,69]]}
[]
[null,null,null,null,null,null,null,null,null,null,null,null,null,null,"健康保険　被保険者標準報酬改定通知書"]
[]
[]
[]
[]
[]
[]
[]
[{"$f":"基本情報登録!C2","v":"2021-04-22"}]
[]
[]
[]
[]
[]
["提出者記入欄",null,null,null,null,"記号",null,null,null,null,null,null,null,null,null,null,{"$f":"基本情報登録!C6","v":"532"}]
[]
[]
[]
[]
[]
[]
[]
[null,null,null,null,null,null,null,null,null,null,null,null,null,null,null,null,"〒",null,null,{"$f":"基本情報登録!C7","v":"542-0066"}]
[]
[null,null,null,null,null,"事業所\n所在地"]
[null,null,null,null,null,null,null,null,null,null,null,null,null,null,null,null,{"$f":"基本情報登録!C8","v":"大阪府大阪市中央区瓦屋町2-3-1"},null,null,null,null,null,null,null,null,null,null,null,null,null,null,null,null,null,null,null,null,null,null,null,null,null,null,null,null,null,null,null,null,null,null,null,null,null,null,null,null,null,null,null,null,null,null,null,null,null,null,null,null,null,null,null,null,null,null,null,"下記のとおり標準報酬を改定されたので通知します。"]
[]
[]
[]
[]
[]
[]
[]
[null,null,null,null,null,"事業所\n名称",null,null,null,null,null,null,null,null,null,null,{"$f":"基本情報登録!C9","v":"大阪自動車整備健康保険組合"}]
[]
[]
[]
[]
[null,null,null,null,null,null,null,null,null,null,null,null,null,null,null,null,null,null,null,null,null,null,null,null,null,null,null,null,null,null,null,null,null,null,null,null,null,null,null,null,null,null,null,null,null,null,null,null,null,null,null,null,null,null,null,null,null,null,null,null,null,null,null,null,null,null,null,null,null,null,null,null,null,null,null,null,"大阪自動車整備健康保険組合理事長"]
[]
[null,null,null,null,null,"事業主\n氏名",null,null,null,null,null,null,null,null,null,null,{"$f":"基本情報登録!C10","v":"理事長　健保　太郎"},null,null,null,null,null,null,null,null,null,null,null,null,null,null,null,null,null,null,null,null,null,null,null,null,null,null,null,null,null,null,null,null,null,null,null,null,null,null,null,null,null,null,null,null,null,"様"]
[]
[]
[]
[]
[]
[]
[null,null,null,null,null,"電話番号",null,null,null,null,null,null,null,null,null,null,{"$f":"基本情報登録!C11","v":"06-6762-6371"}]
[]
[]
[]
[]
[]
[]
[]
[]
[]
[]
[]
[]
[]
[]
[]
[]
[]
[]
[]
["項目名",null,null,null,null,"1保険証番号",null,null,null,null,null,null,null,null,null,null,null,null,null,null,"2被保険者氏名",null,null,null,null,null,null,null,null,null,null,null,null,null,null,null,null,null,null,null,null,null,null,null,null,null,null,null,null,null,null,null,null,null,null,null,null,null,null,null,null,null,null,null,null,null,null,"3生年月日",null,null,null,null,null,null,null,null,null,null,null,null,null,null,null,null,null,null,null,null,null,null,null,null,null,null,null,"4改定年月",null,null,null,null,null,null,null,null,null,null,null,null,null,null,null,null,null,null,"10個人番号(基礎年金番号)"]
[]
[]
[]
[null,null,null,null,null,"5従前の標準報酬月額",null,null,null,null,null,null,null,null,null,null,null,null,null,null,null,null,null,null,null,null,null,null,null,null,null,null,null,null,null,null,null,null,null,null,null,null,null,null,"6従前改定月",null,null,null,null,null,null,null,null,null,null,null,null,null,null,null,null,null,null,"7昇(降)給",null,null,null,null,null,null,null,null,null,null,null,null,null,null,null,null,null,null,null,null,"8遡及支払額",null,null,null,null,null,null,null,null,null,null,null,null,null,null,null,null,null,null,null,null,null,null,null,null,null,null,null,null,null,"18備考"]
[]
[]
[]
[null,null,null,null,null,"9給与\n支払月",null,null,null,null,null,null,null,null,"10給料計算の基礎日数",null,null,null,null,null,null,null,null,"報酬月額",null,null,null,null,null,null,null,null,null,null,null,null,null,null,null,null,null,null,null,null,null,null,null,null,null,null,null,null,null,null,null,null,null,null,null,null,null,null,null,null,null,null,null,null,null,null,null,null,null,null,null,null,null,null,null,null,null,null,null,null,"14総計",null,null,null,null,null,null,null,null,null,null,null,null,null,null,null,null,null,null,null,null,"決定後標準報酬月額"]
[]
[]
[null,null,null,null,null,null,null,null,null,null,null,null,null,null,null,null,null,null,null,null,null,null,null,null,null,null,null,null,null,null,null,null,null,null,null,null,null,null,null,null,null,null,null,null,null,null,null,null,null,null,null,null,null,null,null,null,null,null,null,null,null,null,null,null,null,null,null,null,null,null,null,null,null,null,null,null,null,null,null,null,null,null,null,null,"15平均額"]
[null,null,null,null,null,null,null,null,null,null,null,null,null,null,null,null,null,null,null,null,null,null,null,"11通貨によるものの額",null,null,null,null,null,null,null,null,null,null,null,null,null,null,null,null,null,null,null,null,"12現物によるものの額",null,null,null,null,null,null,null,null,null,null,null,null,null,null,null,null,null,null,"13合計11+12"]
[]
[null,null,null,null,null,null,null,null,null,null,null,null,null,null,null,null,null,null,null,null,null,null,null,null,null,null,null,null,null,null,null,null,null,null,null,null,null,null,null,null,null,null,null,null,null,null,null,null,null,null,null,null,null,null,null,null,null,null,null,null,null,null,null,null,null,null,null,null,null,null,null,null,null,null,null,null,null,null,null,null,null,null,null,null,"16修正平均額"]
[]
[]
[]
[]
[]
["１",null,null,null,null,1,null,null,{"$f":"IF(ISNUMBER(入力!D3),入力!D3,\"\")","v":5402},null,null,null,null,null,null,null,null,null,null,null,2,null,null,{"$f":"IF(ISTEXT(入力!D4),入力!D4,\"\")","v":"大阪健保　整太郎"},null,null,null,null,null,null,null,null,null,null,null,null,null,null,null,null,null,null,null,null,null,null,null,null,null,null,null,null,null,null,null,null,null,null,null,null,null,null,null,null,null,null,null,3,null,{"$f":"IF(ISNUMBER(入力!D5),入力!D5,\"\")","v":"1946-10-10"},null,null,null,null,null,null,null,null,null,null,null,null,null,null,null,null,null,null,null,null,null,null,null,null,null,4,null,{"$f":"IF(ISNUMBER(入力!D8),入力!I6,\"\")","v":"2018-04-06"}]
[]
[]
[]
[null,null,null,null,null,null,null,null,null,null,null,null,null,null,null,null,null,null,null,null,null,null,null,null,null,null,null,null,null,null,null,null,null,null,null,null,null,null,null,null,null,null,null,null,null,null,null,null,null,null,null,null,null,null,null,null,null,null,null,null,null,null,null,null,null,null,null,null,null,null,null,null,null,null,null,null,null,null,null,null,null,null,null,null,null,null,null,null,null,null,null,null,null,null,null,null,null,null,null,null,null,null,null,null,null,null,null,null,null,null,null,null,null,null,18,null,null,{"$f":"IF(ISNUMBER(入力!D17),1,\"\")","v":1},null,{"$f":"IF(ISNUMBER(入力!D17),\"70歳以上被用者月額変更\",\"\")","v":"70歳以上被用者月額変更"}]
[null,null,null,null,null,5,null,null,"健",null,null,{"$f":"IF(ISNUMBER(入力!D6),入力!G23,\"\")","v":710},null,null,null,null,null,null,null,null,null,"千円",null,null,null,"年",null,null,{"$f":"IF(ISNUMBER(入力!D6),入力!G25,\"\")","v":650},null,null,null,null,null,null,null,null,null,null,null,"千円",null,null,null,6,null,{"$f":"IF(ISNUMBER(入力!D7),入力!D7,\"\")","v":"2017-09-01"},null,null,null,null,null,null,null,null,null,null,null,null,null,null,null,null,7,null,{"$f":"IF(ISNUMBER(入力!D8),入力!D8,\"\")","v":"2018-01-01"},null,null,null,null,"月",null,{"$f":"IF(ISNUMBER(入力!D9),入力!I8,\"\")","v":"1.昇給"},null,null,null,null,null,null,null,null,null,null,null,8,null,{"$f":"IF(ISNUMBER(入力!D24),入力!D24,\"\")","v":"2018-01-01"},null,null,null,null,"月",null,{"$f":"IF(ISNUMBER(入力!D25),入力!D25,\"\")","v":""},null,null,null,null,null,null,null,null,null,null,null,null,null,null,null,null,null,null,"円"]
[]
[null,null,null,null,null,null,null,null,null,null,null,null,null,null,null,null,null,null,null,null,null,null,null,null,null,null,null,null,null,null,null,null,null,null,null,null,null,null,null,null,null,null,null,null,null,null,null,null,null,null,null,null,null,null,null,null,null,null,null,null,null,null,null,null,null,null,null,null,null,null,null,null,null,null,null,null,null,null,null,null,null,null,null,null,null,null,null,null,null,null,null,null,null,null,null,null,null,null,null,null,null,null,null,null,null,null,null,null,null,null,null,null,null,null,null,null,null,{"$f":"IF(ISNUMBER(入力!D19),2,\"\")","v":""},null,{"$f":"IF(ISNUMBER(入力!D19),\"二以上勤務\",\"\")","v":""}]
[]
[]
[null,null,null,null,null,9,null,null,{"$f":"IF(ISNUMBER(入力!D8),入力!I10,\"\")","v":"2018-01-01"},null,null,null,"月",null,10,null,null,{"$f":"IF(ISNUMBER(入力!D10),入力!D10,\"\")","v":31},null,null,null,"日",null,11,null,null,{"$f":"IF(ISNUMBER(入力!D13),入力!D13,\"\")","v":1500000},null,null,null,null,null,null,null,null,null,null,null,null,null,null,null,"円",null,12,null,null,{"$f":"IF(ISNUMBER(入力!D26),入力!D26,\"\")","v":""},null,null,null,null,null,null,null,null,null,null,null,null,null,"円",null,13,null,null,{"$f":"IF(ISNUMBER(入力!D13),入力!G13,\"\")","v":1500000},null,null,null,null,null,null,null,null,null,null,null,null,null,null,null,"円",null,14,null,null,{"$f":"IF(ISNUMBER(入力!D13),入力!I14,\"\")","v":4500000},null,null,null,null,null,null,null,null,null,null,null,null,null,null,null,"円",null,"健",null,{"$f":"IF(ISNUMBER(入力!D13),入力!H20,\"\")","v":1390},null,null,null,null,null,null,null,null,null,{"$f":"IF(ISNUMBER(入力!D20),3,\"\")","v":""},null,{"$f":"IF(ISNUMBER(入力!D20),\"短時間労働者(特定適用事業所\",\"\")","v":""}]
[]
[]
[null,null,null,null,null,null,null,null,null,null,null,null,null,null,null,null,null,null,null,null,null,null,null,null,null,null,null,null,null,null,null,null,null,null,null,null,null,null,null,null,null,null,null,null,null,null,null,null,null,null,null,null,null,null,null,null,null,null,null,null,null,null,null,null,null,null,null,null,null,null,null,null,null,null,null,null,null,null,null,null,null,null,null,null,null,null,null,null,null,null,null,null,null,null,null,null,null,null,null,null,null,null,null,null,null,null,null,null,null,null,null,null,null,null,null,null,null,4,null,"昇給・降給の理由"]
[]
[null,null,null,null,null,null,null,null,{"$f":"IF(ISNUMBER(入力!D5),入力!I11,\"\")","v":"2018-02-01"},null,null,null,"月",null,null,null,null,{"$f":"IF(ISNUMBER(入力!D11),入力!D11,\"\")","v":31},null,null,null,"日",null,null,null,null,{"$f":"IF(ISNUMBER(入力!D14),入力!D14,\"\")","v":1500000},null,null,null,null,null,null,null,null,null,null,null,null,null,null,null,"円",null,null,null,null,{"$f":"IF(ISNUMBER(入力!D27),入力!D27,\"\")","v":""},null,null,null,null,null,null,null,null,null,null,null,null,null,"円",null,null,null,null,{"$f":"IF(ISNUMBER(入力!D14),入力!G14,\"\")","v":1500000},null,null,null,null,null,null,null,null,null,null,null,null,null,null,null,"円",null,15,null,null,{"$f":"IF(ISNUMBER(入力!D13),入力!I15,\"\")","v":1500000},null,null,null,null,null,null,null,null,null,null,null,null,null,null,null,"円"]
[null,null,null,null,null,null,null,null,null,null,null,null,null,null,null,null,null,null,null,null,null,null,null,null,null,null,null,null,null,null,null,null,null,null,null,null,null,null,null,null,null,null,null,null,null,null,null,null,null,null,null,null,null,null,null,null,null,null,null,null,null,null,null,null,null,null,null,null,null,null,null,null,null,null,null,null,null,null,null,null,null,null,null,null,null,null,null,null,null,null,null,null,null,null,null,null,null,null,null,null,null,null,null,null,null,null,null,"千円",null,null,null,null,null,null,null,null,null,null,null,{"$f":"IF(ISTEXT(入力!D16),入力!D16,\"\")","v":"基本給増"}]
[]
[null,null,null,null,null,null,null,null,null,null,null,null,null,null,null,null,null,null,null,null,null,null,null,null,null,null,null,null,null,null,null,null,null,null,null,null,null,null,null,null,null,null,null,null,null,null,null,null,null,null,null,null,null,null,null,null,null,null,null,null,null,null,null,null,null,null,null,null,null,null,null,null,null,null,null,null,null,null,null,null,null,null,null,null,null,null,null,null,null,null,null,null,null,null,null,null,null,null,null,null,null,null,null,null,null,"厚",null,{"$f":"IF(ISNUMBER(入力!D13),入力!H21,\"\")","v":650}]
[null,null,null,null,null,null,null,null,null,null,null,null,null,null,null,null,null,null,null,null,null,null,null,null,null,null,null,null,null,null,null,null,null,null,null,null,null,null,null,null,null,null,null,null,null,null,null,null,null,null,null,null,null,null,null,null,null,null,null,null,null,null,null,null,null,null,null,null,null,null,null,null,null,null,null,null,null,null,null,null,null,null,null,null,null,null,null,null,null,null,null,null,null,null,null,null,null,null,null,null,null,null,null,null,null,null,null,null,null,null,null,null,null,null,null,null,null,{"$f":"IF(ISNUMBER(入力!D21),5,\"\")","v":""},null,{"$f":"IF(ISNUMBER(入力!D21),\"健康保険のみ月額変更\",\"\")","v":""}]
[null,null,null,null,null,null,null,null,{"$f":"IF(ISNUMBER(入力!D8),入力!I12,\"\")","v":"2018-03-04"},null,null,null,"月",null,null,null,null,{"$f":"IF(ISNUMBER(入力!D12),入力!D12,\"\")","v":28},null,null,null,"日",null,null,null,null,{"$f":"IF(ISNUMBER(入力!D15),入力!D15,\"\")","v":1500000},null,null,null,null,null,null,null,null,null,null,null,null,null,null,null,"円",null,null,null,null,{"$f":"IF(ISNUMBER(入力!D28),入力!D28,\"\")","v":""},null,null,null,null,null,null,null,null,null,null,null,null,null,"円",null,null,null,null,{"$f":"IF(ISNUMBER(入力!D15),入力!G15,\"\")","v":1500000},null,null,null,null,null,null,null,null,null,null,null,null,null,null,null,"円",null,16,null,null,{"$f":"IF(ISNUMBER(入力!D25),入力!I17,\"\")","v":""},null,null,null,null,null,null,null,null,null,null,null,null,null,null,null,"円"]
[]
[null,null,null,null,null,null,null,null,null,null,null,null,null,null,null,null,null,null,null,null,null,null,null,null,null,null,null,null,null,null,null,null,null,null,null,null,null,null,null,null,null,null,null,null,null,null,null,null,null,null,null,null,null,null,null,null,null,null,null,null,null,null,null,null,null,null,null,null,null,null,null,null,null,null,null,null,null,null,null,null,null,null,null,null,null,null,null,null,null,null,null,null,null,null,null,null,null,null,null,null,null,null,null,null,null,null,null,null,null,null,null,null,null,null,null,null,null,{"$f":"IF(ISNUMBER(入力!D22),6,\"\")","v":""},null,{"$f":"IF(ISNUMBER(入力!D22),\"その他\",\"\")","v":""},null,null,null,null,{"$f":"IF(ISTEXT(入力!D23),入力!D23,\"\")","v":""}]
[null,null,null,null,null,null,null,null,null,null,null,null,null,null,null,null,null,null,null,null,null,null,null,null,null,null,null,null,null,null,null,null,null,null,null,null,null,null,null,null,null,null,null,null,null,null,null,null,null,null,null,null,null,null,null,null,null,null,null,null,null,null,null,null,null,null,null,null,null,null,null,null,null,null,null,null,null,null,null,null,null,null,null,null,null,null,null,null,null,null,null,null,null,null,null,null,null,null,null,null,null,null,null,null,null,null,null,"千円"]
[]
[]
[]
[]
["２",null,null,null,null,1,null,null,{"$f":"IF(ISNUMBER(入力!D31),入力!D31,\"\")","v":5403},null,null,null,null,null,null,null,null,null,null,null,2,null,null,{"$f":"IF(ISTEXT(入力!D32),入力!D32,\"\")","v":"大阪　花"},null,null,null,null,null,null,null,null,null,null,null,null,null,null,null,null,null,null,null,null,null,null,null,null,null,null,null,null,null,null,null,null,null,null,null,null,null,null,null,null,null,null,null,3,null,{"$f":"IF(ISNUMBER(入力!D33),入力!D33,\"\")","v":"1947-12-12"},null,null,null,null,null,null,null,null,null,null,null,null,null,null,null,null,null,null,null,null,null,null,null,null,null,4,null,{"$f":"IF(ISNUMBER(入力!D36),入力!I34,\"\")","v":"2018-03-06"}]
[]
[]
[]
[null,null,null,null,null,null,null,null,null,null,null,null,null,null,null,null,null,null,null,null,null,null,null,null,null,null,null,null,null,null,null,null,null,null,null,null,null,null,null,null,null,null,null,null,null,null,null,null,null,null,null,null,null,null,null,null,null,null,null,null,null,null,null,null,null,null,null,null,null,null,null,null,null,null,null,null,null,null,null,null,null,null,null,null,null,null,null,null,null,null,null,null,null,null,null,null,null,null,null,null,null,null,null,null,null,null,null,null,null,null,null,null,null,null,18,null,null,{"$f":"IF(ISNUMBER(入力!D45),1,\"\")","v":1},null,{"$f":"IF(ISNUMBER(入力!D45),\"70歳以上被用者月額変更\",\"\")","v":"70歳以上被用者月額変更"}]
[null,null,null,null,null,5,null,null,"健",null,null,{"$f":"IF(ISNUMBER(入力!D34),入力!G51,\"\")","v":98},null,null,null,null,null,null,null,null,null,"千円",null,null,null,"年",null,null,{"$f":"IF(ISNUMBER(入力!D34),入力!G53,\"\")","v":98},null,null,null,null,null,null,null,null,null,null,null,"千円",null,null,null,6,null,{"$f":"IF(ISNUMBER(入力!D35),入力!D35,\"\")","v":"2017-09-01"},null,null,null,null,null,null,null,null,null,null,null,null,null,null,null,null,7,null,{"$f":"IF(ISNUMBER(入力!D36),入力!D36,\"\")","v":"2017-12-01"},null,null,null,null,"月",null,{"$f":"IF(ISNUMBER(入力!D37),入力!I36,\"\")","v":"2.降給"},null,null,null,null,null,null,null,null,null,null,null,8,null,{"$f":"IF(ISNUMBER(入力!D52),入力!D52,\"\")","v":""},null,null,null,null,"月",null,{"$f":"IF(ISNUMBER(入力!D53),入力!D53,\"\")","v":""},null,null,null,null,null,null,null,null,null,null,null,null,null,null,null,null,null,null,"円"]
[]
[null,null,null,null,null,null,null,null,null,null,null,null,null,null,null,null,null,null,null,null,null,null,null,null,null,null,null,null,null,null,null,null,null,null,null,null,null,null,null,null,null,null,null,null,null,null,null,null,null,null,null,null,null,null,null,null,null,null,null,null,null,null,null,null,null,null,null,null,null,null,null,null,null,null,null,null,null,null,null,null,null,null,null,null,null,null,null,null,null,null,null,null,null,null,null,null,null,null,null,null,null,null,null,null,null,null,null,null,null,null,null,null,null,null,null,null,null,{"$f":"IF(ISNUMBER(入力!D47),2,\"\")","v":""},null,{"$f":"IF(ISNUMBER(入力!D47),\"二以上勤務\",\"\")","v":""}]
[]
[]
[null,null,null,null,null,9,null,null,{"$f":"IF(ISNUMBER(入力!D36),入力!I38,\"\")","v":"2017-12-01"},null,null,null,"月",null,10,null,null,{"$f":"IF(ISNUMBER(入力!D38),入力!D38,\"\")","v":30},null,null,null,"日",null,11,null,null,{"$f":"IF(ISNUMBER(入力!D41),入力!D41,\"\")","v":50000},null,null,null,null,null,null,null,null,null,null,null,null,null,null,null,"円",null,12,null,null,{"$f":"IF(ISNUMBER(入力!D54),入力!D54,\"\")","v":""},null,null,null,null,null,null,null,null,null,null,null,null,null,"円",null,13,null,null,{"$f":"IF(ISNUMBER(入力!D41),入力!G41,\"\")","v":50000},null,null,null,null,null,null,null,null,null,null,null,null,null,null,null,"円",null,14,null,null,{"$f":"IF(ISNUMBER(入力!D41),入力!I42,\"\")","v":150000},null,null,null,null,null,null,null,null,null,null,null,null,null,null,null,"円",null,"健",null,{"$f":"IF(ISNUMBER(入力!D41),入力!H48,\"\")","v":58},null,null,null,null,null,null,null,null,null,{"$f":"IF(ISNUMBER(入力!D48),3,\"\")","v":""},null,{"$f":"IF(ISNUMBER(入力!D48),\"短時間労働者(特定適用事業所\",\"\")","v":""}]
[]
[]
[null,null,null,null,null,null,null,null,null,null,null,null,null,null,null,null,null,null,null,null,null,null,null,null,null,null,null,null,null,null,null,null,null,null,null,null,null,null,null,null,null,null,null,null,null,null,null,null,null,null,null,null,null,null,null,null,null,null,null,null,null,null,null,null,null,null,null,null,null,null,null,null,null,null,null,null,null,null,null,null,null,null,null,null,null,null,null,null,null,null,null,null,null,null,null,null,null,null,null,null,null,null,null,null,null,null,null,null,null,null,null,null,null,null,null,null,null,4,null,"昇給・降給の理由"]
[]
[null,null,null,null,null,null,null,null,{"$f":"IF(ISNUMBER(入力!D33),入力!I39,\"\")","v":"2018-01-01"},null,null,null,"月",null,null,null,null,{"$f":"IF(ISNUMBER(入力!D39),入力!D39,\"\")","v":31},null,null,null,"日",null,null,null,null,{"$f":"IF(ISNUMBER(入力!D42),入力!D42,\"\")","v":50000},null,null,null,null,null,null,null,null,null,null,null,null,null,null,null,"円",null,null,null,null,{"$f":"IF(ISNUMBER(入力!D55),入力!D55,\"\")","v":""},null,null,null,null,null,null,null,null,null,null,null,null,null,"円",null,null,null,null,{"$f":"IF(ISNUMBER(入力!D42),入力!G42,\"\")","v":50000},null,null,null,null,null,null,null,null,null,null,null,null,null,null,null,"円",null,15,null,null,{"$f":"IF(ISNUMBER(入力!D41),入力!I43,\"\")","v":50000},null,null,null,null,null,null,null,null,null,null,null,null,null,null,null,"円"]
[null,null,null,null,null,null,null,null,null,null,null,null,null,null,null,null,null,null,null,null,null,null,null,null,null,null,null,null,null,null,null,null,null,null,null,null,null,null,null,null,null,null,null,null,null,null,null,null,null,null,null,null,null,null,null,null,null,null,null,null,null,null,null,null,null,null,null,null,null,null,null,null,null,null,null,null,null,null,null,null,null,null,null,null,null,null,null,null,null,null,null,null,null,null,null,null,null,null,null,null,null,null,null,null,null,null,null,"千円",null,null,null,null,null,null,null,null,null,null,null,{"$f":"IF(ISTEXT(入力!D44),入力!D44,\"\")","v":"基本給減"}]
[]
[null,null,null,null,null,null,null,null,null,null,null,null,null,null,null,null,null,null,null,null,null,null,null,null,null,null,null,null,null,null,null,null,null,null,null,null,null,null,null,null,null,null,null,null,null,null,null,null,null,null,null,null,null,null,null,null,null,null,null,null,null,null,null,null,null,null,null,null,null,null,null,null,null,null,null,null,null,null,null,null,null,null,null,null,null,null,null,null,null,null,null,null,null,null,null,null,null,null,null,null,null,null,null,null,null,"厚",null,{"$f":"IF(ISNUMBER(入力!D41),入力!H49,\"\")","v":88}]
[null,null,null,null,null,null,null,null,null,null,null,null,null,null,null,null,null,null,null,null,null,null,null,null,null,null,null,null,null,null,null,null,null,null,null,null,null,null,null,null,null,null,null,null,null,null,null,null,null,null,null,null,null,null,null,null,null,null,null,null,null,null,null,null,null,null,null,null,null,null,null,null,null,null,null,null,null,null,null,null,null,null,null,null,null,null,null,null,null,null,null,null,null,null,null,null,null,null,null,null,null,null,null,null,null,null,null,null,null,null,null,null,null,null,null,null,null,{"$f":"IF(ISNUMBER(入力!D49),5,\"\")","v":""},null,{"$f":"IF(ISNUMBER(入力!D49),\"健康保険のみ月額変更\",\"\")","v":""}]
[null,null,null,null,null,null,null,null,{"$f":"IF(ISNUMBER(入力!D36),入力!I40,\"\")","v":"2018-02-01"},null,null,null,"月",null,null,null,null,{"$f":"IF(ISNUMBER(入力!D40),入力!D40,\"\")","v":31},null,null,null,"日",null,null,null,null,{"$f":"IF(ISNUMBER(入力!D43),入力!D43,\"\")","v":50000},null,null,null,null,null,null,null,null,null,null,null,null,null,null,null,"円",null,null,null,null,{"$f":"IF(ISNUMBER(入力!D56),入力!D56,\"\")","v":""},null,null,null,null,null,null,null,null,null,null,null,null,null,"円",null,null,null,null,{"$f":"IF(ISNUMBER(入力!D43),入力!G43,\"\")","v":50000},null,null,null,null,null,null,null,null,null,null,null,null,null,null,null,"円",null,16,null,null,{"$f":"IF(ISNUMBER(入力!D53),入力!I45,\"\")","v":""},null,null,null,null,null,null,null,null,null,null,null,null,null,null,null,"円"]
[]
[null,null,null,null,null,null,null,null,null,null,null,null,null,null,null,null,null,null,null,null,null,null,null,null,null,null,null,null,null,null,null,null,null,null,null,null,null,null,null,null,null,null,null,null,null,null,null,null,null,null,null,null,null,null,null,null,null,null,null,null,null,null,null,null,null,null,null,null,null,null,null,null,null,null,null,null,null,null,null,null,null,null,null,null,null,null,null,null,null,null,null,null,null,null,null,null,null,null,null,null,null,null,null,null,null,null,null,null,null,null,null,null,null,null,null,null,null,{"$f":"IF(ISNUMBER(入力!D50),6,\"\")","v":""},null,{"$f":"IF(ISNUMBER(入力!D50),\"その他\",\"\")","v":""},null,null,null,null,{"$f":"IF(ISTEXT(入力!D51),入力!D51,\"\")","v":""}]
[null,null,null,null,null,null,null,null,null,null,null,null,null,null,null,null,null,null,null,null,null,null,null,null,null,null,null,null,null,null,null,null,null,null,null,null,null,null,null,null,null,null,null,null,null,null,null,null,null,null,null,null,null,null,null,null,null,null,null,null,null,null,null,null,null,null,null,null,null,null,null,null,null,null,null,null,null,null,null,null,null,null,null,null,null,null,null,null,null,null,null,null,null,null,null,null,null,null,null,null,null,null,null,null,null,null,null,"千円"]
[]
[]
[]
[]
["３",null,null,null,null,1,null,null,{"$f":"IF(ISNUMBER(入力!D59),入力!D59,\"\")","v":5404},null,null,null,null,null,null,null,null,null,null,null,2,null,null,{"$f":"IF(ISTEXT(入力!D60),入力!D60,\"\")","v":"クリス　ジョンソン"},null,null,null,null,null,null,null,null,null,null,null,null,null,null,null,null,null,null,null,null,null,null,null,null,null,null,null,null,null,null,null,null,null,null,null,null,null,null,null,null,null,null,null,3,null,{"$f":"IF(ISNUMBER(入力!D61),入力!D61,\"\")","v":"1986-02-03"},null,null,null,null,null,null,null,null,null,null,null,null,null,null,null,null,null,null,null,null,null,null,null,null,null,4,null,{"$f":"IF(ISNUMBER(入力!D64),入力!I62,\"\")","v":"2018-05-07"}]
[]
[]
[]
[null,null,null,null,null,null,null,null,null,null,null,null,null,null,null,null,null,null,null,null,null,null,null,null,null,null,null,null,null,null,null,null,null,null,null,null,null,null,null,null,null,null,null,null,null,null,null,null,null,null,null,null,null,null,null,null,null,null,null,null,null,null,null,null,null,null,null,null,null,null,null,null,null,null,null,null,null,null,null,null,null,null,null,null,null,null,null,null,null,null,null,null,null,null,null,null,null,null,null,null,null,null,null,null,null,null,null,null,null,null,null,null,null,null,18,null,null,{"$f":"IF(ISNUMBER(入力!D73),1,\"\")","v":""},null,{"$f":"IF(ISNUMBER(入力!D73),\"70歳以上被用者月額変更\",\"\")","v":""}]
[null,null,null,null,null,5,null,null,"健",null,null,{"$f":"IF(ISNUMBER(入力!D62),入力!G79,\"\")","v":620},null,null,null,null,null,null,null,null,null,"千円",null,null,null,"年",null,null,{"$f":"IF(ISNUMBER(入力!D62),入力!G81,\"\")","v":620},null,null,null,null,null,null,null,null,null,null,null,"千円",null,null,null,6,null,{"$f":"IF(ISNUMBER(入力!D63),入力!D63,\"\")","v":"2017-12-01"},null,null,null,null,null,null,null,null,null,null,null,null,null,null,null,null,7,null,{"$f":"IF(ISNUMBER(入力!D64),入力!D64,\"\")","v":"2018-02-01"},null,null,null,null,"月",null,{"$f":"IF(ISNUMBER(入力!D65),入力!I64,\"\")","v":"1.昇給"},null,null,null,null,null,null,null,null,null,null,null,8,null,{"$f":"IF(ISNUMBER(入力!D80),入力!D80,\"\")","v":""},null,null,null,null,"月",null,{"$f":"IF(ISNUMBER(入力!D81),入力!D81,\"\")","v":""},null,null,null,null,null,null,null,null,null,null,null,null,null,null,null,null,null,null,"円"]
[]
[null,null,null,null,null,null,null,null,null,null,null,null,null,null,null,null,null,null,null,null,null,null,null,null,null,null,null,null,null,null,null,null,null,null,null,null,null,null,null,null,null,null,null,null,null,null,null,null,null,null,null,null,null,null,null,null,null,null,null,null,null,null,null,null,null,null,null,null,null,null,null,null,null,null,null,null,null,null,null,null,null,null,null,null,null,null,null,null,null,null,null,null,null,null,null,null,null,null,null,null,null,null,null,null,null,null,null,null,null,null,null,null,null,null,null,null,null,{"$f":"IF(ISNUMBER(入力!D75),2,\"\")","v":""},null,{"$f":"IF(ISNUMBER(入力!D75),\"二以上勤務\",\"\")","v":""}]
[]
[]
[null,null,null,null,null,9,null,null,{"$f":"IF(ISNUMBER(入力!D64),入力!I66,\"\")","v":"2018-02-01"},null,null,null,"月",null,10,null,null,{"$f":"IF(ISNUMBER(入力!D66),入力!D66,\"\")","v":31},null,null,null,"日",null,11,null,null,{"$f":"IF(ISNUMBER(入力!D69),入力!D69,\"\")","v":1500000},null,null,null,null,null,null,null,null,null,null,null,null,null,null,null,"円",null,12,null,null,{"$f":"IF(ISNUMBER(入力!D82),入力!D82,\"\")","v":""},null,null,null,null,null,null,null,null,null,null,null,null,null,"円",null,13,null,null,{"$f":"IF(ISNUMBER(入力!D69),入力!G69,\"\")","v":1500000},null,null,null,null,null,null,null,null,null,null,null,null,null,null,null,"円",null,14,null,null,{"$f":"IF(ISNUMBER(入力!D69),入力!I70,\"\")","v":4500000},null,null,null,null,null,null,null,null,null,null,null,null,null,null,null,"円",null,"健",null,{"$f":"IF(ISNUMBER(入力!D69),入力!H76,\"\")","v":1390},null,null,null,null,null,null,null,null,null,{"$f":"IF(ISNUMBER(入力!D76),3,\"\")","v":""},null,{"$f":"IF(ISNUMBER(入力!D76),\"短時間労働者(特定適用事業所\",\"\")","v":""}]
[]
[]
[null,null,null,null,null,null,null,null,null,null,null,null,null,null,null,null,null,null,null,null,null,null,null,null,null,null,null,null,null,null,null,null,null,null,null,null,null,null,null,null,null,null,null,null,null,null,null,null,null,null,null,null,null,null,null,null,null,null,null,null,null,null,null,null,null,null,null,null,null,null,null,null,null,null,null,null,null,null,null,null,null,null,null,null,null,null,null,null,null,null,null,null,null,null,null,null,null,null,null,null,null,null,null,null,null,null,null,null,null,null,null,null,null,null,null,null,null,4,null,"昇給・降給の理由"]
[]
[null,null,null,null,null,null,null,null,{"$f":"IF(ISNUMBER(入力!D61),入力!I67,\"\")","v":"2018-03-04"},null,null,null,"月",null,null,null,null,{"$f":"IF(ISNUMBER(入力!D67),入力!D67,\"\")","v":28},null,null,null,"日",null,null,null,null,{"$f":"IF(ISNUMBER(入力!D70),入力!D70,\"\")","v":1500000},null,null,null,null,null,null,null,null,null,null,null,null,null,null,null,"円",null,null,null,null,{"$f":"IF(ISNUMBER(入力!D83),入力!D83,\"\")","v":""},null,null,null,null,null,null,null,null,null,null,null,null,null,"円",null,null,null,null,{"$f":"IF(ISNUMBER(入力!D70),入力!G70,\"\")","v":1500000},null,null,null,null,null,null,null,null,null,null,null,null,null,null,null,"円",null,15,null,null,{"$f":"IF(ISNUMBER(入力!D69),入力!I71,\"\")","v":1500000},null,null,null,null,null,null,null,null,null,null,null,null,null,null,null,"円"]
[null,null,null,null,null,null,null,null,null,null,null,null,null,null,null,null,null,null,null,null,null,null,null,null,null,null,null,null,null,null,null,null,null,null,null,null,null,null,null,null,null,null,null,null,null,null,null,null,null,null,null,null,null,null,null,null,null,null,null,null,null,null,null,null,null,null,null,null,null,null,null,null,null,null,null,null,null,null,null,null,null,null,null,null,null,null,null,null,null,null,null,null,null,null,null,null,null,null,null,null,null,null,null,null,null,null,null,"千円",null,null,null,null,null,null,null,null,null,null,null,{"$f":"IF(ISTEXT(入力!D72),入力!D72,\"\")","v":"基本給増"}]
[]
[null,null,null,null,null,null,null,null,null,null,null,null,null,null,null,null,null,null,null,null,null,null,null,null,null,null,null,null,null,null,null,null,null,null,null,null,null,null,null,null,null,null,null,null,null,null,null,null,null,null,null,null,null,null,null,null,null,null,null,null,null,null,null,null,null,null,null,null,null,null,null,null,null,null,null,null,null,null,null,null,null,null,null,null,null,null,null,null,null,null,null,null,null,null,null,null,null,null,null,null,null,null,null,null,null,"厚",null,{"$f":"IF(ISNUMBER(入力!D69),入力!H77,\"\")","v":650}]
[null,null,null,null,null,null,null,null,null,null,null,null,null,null,null,null,null,null,null,null,null,null,null,null,null,null,null,null,null,null,null,null,null,null,null,null,null,null,null,null,null,null,null,null,null,null,null,null,null,null,null,null,null,null,null,null,null,null,null,null,null,null,null,null,null,null,null,null,null,null,null,null,null,null,null,null,null,null,null,null,null,null,null,null,null,null,null,null,null,null,null,null,null,null,null,null,null,null,null,null,null,null,null,null,null,null,null,null,null,null,null,null,null,null,null,null,null,{"$f":"IF(ISNUMBER(入力!D77),5,\"\")","v":5},null,{"$f":"IF(ISNUMBER(入力!D77),\"健康保険のみ月額変更\",\"\")","v":"健康保険のみ月額変更"}]
[null,null,null,null,null,null,null,null,{"$f":"IF(ISNUMBER(入力!D64),入力!I68,\"\")","v":"2018-04-04"},null,null,null,"月",null,null,null,null,{"$f":"IF(ISNUMBER(入力!D68),入力!D68,\"\")","v":31},null,null,null,"日",null,null,null,null,{"$f":"IF(ISNUMBER(入力!D71),入力!D71,\"\")","v":1500000},null,null,null,null,null,null,null,null,null,null,null,null,null,null,null,"円",null,null,null,null,{"$f":"IF(ISNUMBER(入力!D84),入力!D84,\"\")","v":""},null,null,null,null,null,null,null,null,null,null,null,null,null,"円",null,null,null,null,{"$f":"IF(ISNUMBER(入力!D71),入力!G71,\"\")","v":1500000},null,null,null,null,null,null,null,null,null,null,null,null,null,null,null,"円",null,16,null,null,{"$f":"IF(ISNUMBER(入力!D81),入力!I73,\"\")","v":""},null,null,null,null,null,null,null,null,null,null,null,null,null,null,null,"円"]
[]
[null,null,null,null,null,null,null,null,null,null,null,null,null,null,null,null,null,null,null,null,null,null,null,null,null,null,null,null,null,null,null,null,null,null,null,null,null,null,null,null,null,null,null,null,null,null,null,null,null,null,null,null,null,null,null,null,null,null,null,null,null,null,null,null,null,null,null,null,null,null,null,null,null,null,null,null,null,null,null,null,null,null,null,null,null,null,null,null,null,null,null,null,null,null,null,null,null,null,null,null,null,null,null,null,null,null,null,null,null,null,null,null,null,null,null,null,null,{"$f":"IF(ISNUMBER(入力!D78),6,\"\")","v":""},null,{"$f":"IF(ISNUMBER(入力!D78),\"その他\",\"\")","v":""},null,null,null,null,{"$f":"IF(ISTEXT(入力!D79),入力!D79,\"\")","v":""}]
[null,null,null,null,null,null,null,null,null,null,null,null,null,null,null,null,null,null,null,null,null,null,null,null,null,null,null,null,null,null,null,null,null,null,null,null,null,null,null,null,null,null,null,null,null,null,null,null,null,null,null,null,null,null,null,null,null,null,null,null,null,null,null,null,null,null,null,null,null,null,null,null,null,null,null,null,null,null,null,null,null,null,null,null,null,null,null,null,null,null,null,null,null,null,null,null,null,null,null,null,null,null,null,null,null,null,null,"千円"]
[]
[]
[]
[]
["４",null,null,null,null,1,null,null,{"$f":"IF(ISNUMBER(入力!D87),入力!D87,\"\")","v":5405},null,null,null,null,null,null,null,null,null,null,null,2,null,null,{"$f":"IF(ISTEXT(入力!D88),入力!D88,\"\")","v":"ブラッド　エルドレッド"},null,null,null,null,null,null,null,null,null,null,null,null,null,null,null,null,null,null,null,null,null,null,null,null,null,null,null,null,null,null,null,null,null,null,null,null,null,null,null,null,null,null,null,3,null,{"$f":"IF(ISNUMBER(入力!D89),入力!D89,\"\")","v":"1981-04-08"},null,null,null,null,null,null,null,null,null,null,null,null,null,null,null,null,null,null,null,null,null,null,null,null,null,4,null,{"$f":"IF(ISNUMBER(入力!D92),入力!I90,\"\")","v":"2018-05-07"}]
[]
[]
[]
[null,null,null,null,null,null,null,null,null,null,null,null,null,null,null,null,null,null,null,null,null,null,null,null,null,null,null,null,null,null,null,null,null,null,null,null,null,null,null,null,null,null,null,null,null,null,null,null,null,null,null,null,null,null,null,null,null,null,null,null,null,null,null,null,null,null,null,null,null,null,null,null,null,null,null,null,null,null,null,null,null,null,null,null,null,null,null,null,null,null,null,null,null,null,null,null,null,null,null,null,null,null,null,null,null,null,null,null,null,null,null,null,null,null,18,null,null,{"$f":"IF(ISNUMBER(入力!D101),1,\"\")","v":""},null,{"$f":"IF(ISNUMBER(入力!D101),\"70歳以上被用者月額変更\",\"\")","v":""}]
[null,null,null,null,null,5,null,null,"健",null,null,{"$f":"IF(ISNUMBER(入力!D90),入力!G107,\"\")","v":300},null,null,null,null,null,null,null,null,null,"千円",null,null,null,"年",null,null,{"$f":"IF(ISNUMBER(入力!D90),入力!G109,\"\")","v":300},null,null,null,null,null,null,null,null,null,null,null,"千円",null,null,null,6,null,{"$f":"IF(ISNUMBER(入力!D91),入力!D91,\"\")","v":"2018-01-01"},null,null,null,null,null,null,null,null,null,null,null,null,null,null,null,null,7,null,{"$f":"IF(ISNUMBER(入力!D92),入力!D92,\"\")","v":"2018-02-01"},null,null,null,null,"月",null,{"$f":"IF(ISNUMBER(入力!D93),入力!I92,\"\")","v":"1.昇給"},null,null,null,null,null,null,null,null,null,null,null,8,null,{"$f":"IF(ISNUMBER(入力!D108),入力!D108,\"\")","v":"2018-02-01"},null,null,null,null,"月",null,{"$f":"IF(ISNUMBER(入力!D109),入力!D109,\"\")","v":20000},null,null,null,null,null,null,null,null,null,null,null,null,null,null,null,null,null,null,"円"]
[]
[null,null,null,null,null,null,null,null,null,null,null,null,null,null,null,null,null,null,null,null,null,null,null,null,null,null,null,null,null,null,null,null,null,null,null,null,null,null,null,null,null,null,null,null,null,null,null,null,null,null,null,null,null,null,null,null,null,null,null,null,null,null,null,null,null,null,null,null,null,null,null,null,null,null,null,null,null,null,null,null,null,null,null,null,null,null,null,null,null,null,null,null,null,null,null,null,null,null,null,null,null,null,null,null,null,null,null,null,null,null,null,null,null,null,null,null,null,{"$f":"IF(ISNUMBER(入力!D103),2,\"\")","v":2},null,{"$f":"IF(ISNUMBER(入力!D103),\"二以上勤務\",\"\")","v":"二以上勤務"}]
[]
[]
[null,null,null,null,null,9,null,null,{"$f":"IF(ISNUMBER(入力!D92),入力!I94,\"\")","v":"2018-02-01"},null,null,null,"月",null,10,null,null,{"$f":"IF(ISNUMBER(入力!D94),入力!D94,\"\")","v":31},null,null,null,"日",null,11,null,null,{"$f":"IF(ISNUMBER(入力!D97),入力!D97,\"\")","v":820000},null,null,null,null,null,null,null,null,null,null,null,null,null,null,null,"円",null,12,null,null,{"$f":"IF(ISNUMBER(入力!D110),入力!D110,\"\")","v":""},null,null,null,null,null,null,null,null,null,null,null,null,null,"円",null,13,null,null,{"$f":"IF(ISNUMBER(入力!D97),入力!G97,\"\")","v":820000},null,null,null,null,null,null,null,null,null,null,null,null,null,null,null,"円",null,14,null,null,{"$f":"IF(ISNUMBER(入力!D97),入力!I98,\"\")","v":2420000},null,null,null,null,null,null,null,null,null,null,null,null,null,null,null,"円",null,"健",null,{"$f":"IF(ISNUMBER(入力!D97),入力!H104,\"\")","v":790},null,null,null,null,null,null,null,null,null,{"$f":"IF(ISNUMBER(入力!D104),3,\"\")","v":""},null,{"$f":"IF(ISNUMBER(入力!D104),\"短時間労働者(特定適用事業所\",\"\")","v":""}]
[]
[]
[null,null,null,null,null,null,null,null,null,null,null,null,null,null,null,null,null,null,null,null,null,null,null,null,null,null,null,null,null,null,null,null,null,null,null,null,null,null,null,null,null,null,null,null,null,null,null,null,null,null,null,null,null,null,null,null,null,null,null,null,null,null,null,null,null,null,null,null,null,null,null,null,null,null,null,null,null,null,null,null,null,null,null,null,null,null,null,null,null,null,null,null,null,null,null,null,null,null,null,null,null,null,null,null,null,null,null,null,null,null,null,null,null,null,null,null,null,4,null,"昇給・降給の理由"]
[]
[null,null,null,null,null,null,null,null,{"$f":"IF(ISNUMBER(入力!D89),入力!I95,\"\")","v":"2018-03-04"},null,null,null,"月",null,null,null,null,{"$f":"IF(ISNUMBER(入力!D95),入力!D95,\"\")","v":28},null,null,null,"日",null,null,null,null,{"$f":"IF(ISNUMBER(入力!D98),入力!D98,\"\")","v":800000},null,null,null,null,null,null,null,null,null,null,null,null,null,null,null,"円",null,null,null,null,{"$f":"IF(ISNUMBER(入力!D111),入力!D111,\"\")","v":""},null,null,null,null,null,null,null,null,null,null,null,null,null,"円",null,null,null,null,{"$f":"IF(ISNUMBER(入力!D98),入力!G98,\"\")","v":800000},null,null,null,null,null,null,null,null,null,null,null,null,null,null,null,"円",null,15,null,null,{"$f":"IF(ISNUMBER(入力!D97),入力!I99,\"\")","v":806666},null,null,null,null,null,null,null,null,null,null,null,null,null,null,null,"円"]
[null,null,null,null,null,null,null,null,null,null,null,null,null,null,null,null,null,null,null,null,null,null,null,null,null,null,null,null,null,null,null,null,null,null,null,null,null,null,null,null,null,null,null,null,null,null,null,null,null,null,null,null,null,null,null,null,null,null,null,null,null,null,null,null,null,null,null,null,null,null,null,null,null,null,null,null,null,null,null,null,null,null,null,null,null,null,null,null,null,null,null,null,null,null,null,null,null,null,null,null,null,null,null,null,null,null,null,"千円",null,null,null,null,null,null,null,null,null,null,null,{"$f":"IF(ISTEXT(入力!D100),入力!D100,\"\")","v":""}]
[]
[null,null,null,null,null,null,null,null,null,null,null,null,null,null,null,null,null,null,null,null,null,null,null,null,null,null,null,null,null,null,null,null,null,null,null,null,null,null,null,null,null,null,null,null,null,null,null,null,null,null,null,null,null,null,null,null,null,null,null,null,null,null,null,null,null,null,null,null,null,null,null,null,null,null,null,null,null,null,null,null,null,null,null,null,null,null,null,null,null,null,null,null,null,null,null,null,null,null,null,null,null,null,null,null,null,"厚",null,{"$f":"IF(ISNUMBER(入力!D97),入力!H105,\"\")","v":650}]
[null,null,null,null,null,null,null,null,null,null,null,null,null,null,null,null,null,null,null,null,null,null,null,null,null,null,null,null,null,null,null,null,null,null,null,null,null,null,null,null,null,null,null,null,null,null,null,null,null,null,null,null,null,null,null,null,null,null,null,null,null,null,null,null,null,null,null,null,null,null,null,null,null,null,null,null,null,null,null,null,null,null,null,null,null,null,null,null,null,null,null,null,null,null,null,null,null,null,null,null,null,null,null,null,null,null,null,null,null,null,null,null,null,null,null,null,null,{"$f":"IF(ISNUMBER(入力!D105),5,\"\")","v":""},null,{"$f":"IF(ISNUMBER(入力!D105),\"健康保険のみ月額変更\",\"\")","v":""}]
[null,null,null,null,null,null,null,null,{"$f":"IF(ISNUMBER(入力!D92),入力!I96,\"\")","v":"2018-04-04"},null,null,null,"月",null,null,null,null,{"$f":"IF(ISNUMBER(入力!D96),入力!D96,\"\")","v":31},null,null,null,"日",null,null,null,null,{"$f":"IF(ISNUMBER(入力!D99),入力!D99,\"\")","v":800000},null,null,null,null,null,null,null,null,null,null,null,null,null,null,null,"円",null,null,null,null,{"$f":"IF(ISNUMBER(入力!D112),入力!D112,\"\")","v":""},null,null,null,null,null,null,null,null,null,null,null,null,null,"円",null,null,null,null,{"$f":"IF(ISNUMBER(入力!D99),入力!G99,\"\")","v":800000},null,null,null,null,null,null,null,null,null,null,null,null,null,null,null,"円",null,16,null,null,{"$f":"IF(ISNUMBER(入力!D109),入力!I101,\"\")","v":800000},null,null,null,null,null,null,null,null,null,null,null,null,null,null,null,"円"]
[]
[null,null,null,null,null,null,null,null,null,null,null,null,null,null,null,null,null,null,null,null,null,null,null,null,null,null,null,null,null,null,null,null,null,null,null,null,null,null,null,null,null,null,null,null,null,null,null,null,null,null,null,null,null,null,null,null,null,null,null,null,null,null,null,null,null,null,null,null,null,null,null,null,null,null,null,null,null,null,null,null,null,null,null,null,null,null,null,null,null,null,null,null,null,null,null,null,null,null,null,null,null,null,null,null,null,null,null,null,null,null,null,null,null,null,null,null,null,{"$f":"IF(ISNUMBER(入力!D106),6,\"\")","v":""},null,{"$f":"IF(ISNUMBER(入力!D106),\"その他\",\"\")","v":""},null,null,null,null,{"$f":"IF(ISTEXT(入力!D107),入力!D107,\"\")","v":""}]
[null,null,null,null,null,null,null,null,null,null,null,null,null,null,null,null,null,null,null,null,null,null,null,null,null,null,null,null,null,null,null,null,null,null,null,null,null,null,null,null,null,null,null,null,null,null,null,null,null,null,null,null,null,null,null,null,null,null,null,null,null,null,null,null,null,null,null,null,null,null,null,null,null,null,null,null,null,null,null,null,null,null,null,null,null,null,null,null,null,null,null,null,null,null,null,null,null,null,null,null,null,null,null,null,null,null,null,"千円"]
[]
[]
[]
[]
["５",null,null,null,null,1,null,null,{"$f":"IF(ISNUMBER(入力!D115),入力!D115,\"\")","v":5406},null,null,null,null,null,null,null,null,null,null,null,2,null,null,{"$f":"IF(ISTEXT(入力!D116),入力!D116,\"\")","v":"ジェイ　ジャクソン"},null,null,null,null,null,null,null,null,null,null,null,null,null,null,null,null,null,null,null,null,null,null,null,null,null,null,null,null,null,null,null,null,null,null,null,null,null,null,null,null,null,null,null,3,null,{"$f":"IF(ISNUMBER(入力!D117),入力!D117,\"\")","v":"1993-07-26"},null,null,null,null,null,null,null,null,null,null,null,null,null,null,null,null,null,null,null,null,null,null,null,null,null,4,null,{"$f":"IF(ISNUMBER(入力!D120),入力!I118,\"\")","v":"2018-06-04"}]
[]
[]
[]
[null,null,null,null,null,null,null,null,null,null,null,null,null,null,null,null,null,null,null,null,null,null,null,null,null,null,null,null,null,null,null,null,null,null,null,null,null,null,null,null,null,null,null,null,null,null,null,null,null,null,null,null,null,null,null,null,null,null,null,null,null,null,null,null,null,null,null,null,null,null,null,null,null,null,null,null,null,null,null,null,null,null,null,null,null,null,null,null,null,null,null,null,null,null,null,null,null,null,null,null,null,null,null,null,null,null,null,null,null,null,null,null,null,null,18,null,null,{"$f":"IF(ISNUMBER(入力!D129),1,\"\")","v":""},null,{"$f":"IF(ISNUMBER(入力!D129),\"70歳以上被用者月額変更\",\"\")","v":""}]
[null,null,null,null,null,5,null,null,"健",null,null,{"$f":"IF(ISNUMBER(入力!D118),入力!G135,\"\")","v":58},null,null,null,null,null,null,null,null,null,"千円",null,null,null,"年",null,null,{"$f":"IF(ISNUMBER(入力!D118),入力!G137,\"\")","v":88},null,null,null,null,null,null,null,null,null,null,null,"千円",null,null,null,6,null,{"$f":"IF(ISNUMBER(入力!D119),入力!D119,\"\")","v":"2017-11-01"},null,null,null,null,null,null,null,null,null,null,null,null,null,null,null,null,7,null,{"$f":"IF(ISNUMBER(入力!D120),入力!D120,\"\")","v":"2018-03-01"},null,null,null,null,"月",null,{"$f":"IF(ISNUMBER(入力!D121),入力!I120,\"\")","v":"1.昇給"},null,null,null,null,null,null,null,null,null,null,null,8,null,{"$f":"IF(ISNUMBER(入力!D136),入力!D136,\"\")","v":""},null,null,null,null,"月",null,{"$f":"IF(ISNUMBER(入力!D137),入力!D137,\"\")","v":""},null,null,null,null,null,null,null,null,null,null,null,null,null,null,null,null,null,null,"円"]
[]
[null,null,null,null,null,null,null,null,null,null,null,null,null,null,null,null,null,null,null,null,null,null,null,null,null,null,null,null,null,null,null,null,null,null,null,null,null,null,null,null,null,null,null,null,null,null,null,null,null,null,null,null,null,null,null,null,null,null,null,null,null,null,null,null,null,null,null,null,null,null,null,null,null,null,null,null,null,null,null,null,null,null,null,null,null,null,null,null,null,null,null,null,null,null,null,null,null,null,null,null,null,null,null,null,null,null,null,null,null,null,null,null,null,null,null,null,null,{"$f":"IF(ISNUMBER(入力!D131),2,\"\")","v":""},null,{"$f":"IF(ISNUMBER(入力!D131),\"二以上勤務\",\"\")","v":""}]
[]
[]
[null,null,null,null,null,9,null,null,{"$f":"IF(ISNUMBER(入力!D120),入力!I122,\"\")","v":"2018-03-01"},null,null,null,"月",null,10,null,null,{"$f":"IF(ISNUMBER(入力!D122),入力!D122,\"\")","v":28},null,null,null,"日",null,11,null,null,{"$f":"IF(ISNUMBER(入力!D125),入力!D125,\"\")","v":2000000},null,null,null,null,null,null,null,null,null,null,null,null,null,null,null,"円",null,12,null,null,{"$f":"IF(ISNUMBER(入力!D138),入力!D138,\"\")","v":50000},null,null,null,null,null,null,null,null,null,null,null,null,null,"円",null,13,null,null,{"$f":"IF(ISNUMBER(入力!D125),入力!G125,\"\")","v":2050000},null,null,null,null,null,null,null,null,null,null,null,null,null,null,null,"円",null,14,null,null,{"$f":"IF(ISNUMBER(入力!D125),入力!I126,\"\")","v":6150000},null,null,null,null,null,null,null,null,null,null,null,null,null,null,null,"円",null,"健",null,{"$f":"IF(ISNUMBER(入力!D125),入力!H132,\"\")","v":1390},null,null,null,null,null,null,null,null,null,{"$f":"IF(ISNUMBER(入力!D132),3,\"\")","v":3},null,{"$f":"IF(ISNUMBER(入力!D132),\"短時間労働者(特定適用事業所\",\"\")","v":"短時間労働者(特定適用事業所"}]
[]
[]
[null,null,null,null,null,null,null,null,null,null,null,null,null,null,null,null,null,null,null,null,null,null,null,null,null,null,null,null,null,null,null,null,null,null,null,null,null,null,null,null,null,null,null,null,null,null,null,null,null,null,null,null,null,null,null,null,null,null,null,null,null,null,null,null,null,null,null,null,null,null,null,null,null,null,null,null,null,null,null,null,null,null,null,null,null,null,null,null,null,null,null,null,null,null,null,null,null,null,null,null,null,null,null,null,null,null,null,null,null,null,null,null,null,null,null,null,null,4,null,"昇給・降給の理由"]
[]
[null,null,null,null,null,null,null,null,{"$f":"IF(ISNUMBER(入力!D117),入力!I123,\"\")","v":"2018-04-01"},null,null,null,"月",null,null,null,null,{"$f":"IF(ISNUMBER(入力!D123),入力!D123,\"\")","v":31},null,null,null,"日",null,null,null,null,{"$f":"IF(ISNUMBER(入力!D126),入力!D126,\"\")","v":2000000},null,null,null,null,null,null,null,null,null,null,null,null,null,null,null,"円",null,null,null,null,{"$f":"IF(ISNUMBER(入力!D139),入力!D139,\"\")","v":50000},null,null,null,null,null,null,null,null,null,null,null,null,null,"円",null,null,null,null,{"$f":"IF(ISNUMBER(入力!D126),入力!G126,\"\")","v":2050000},null,null,null,null,null,null,null,null,null,null,null,null,null,null,null,"円",null,15,null,null,{"$f":"IF(ISNUMBER(入力!D125),入力!I127,\"\")","v":2050000},null,null,null,null,null,null,null,null,null,null,null,null,null,null,null,"円"]
[null,null,null,null,null,null,null,null,null,null,null,null,null,null,null,null,null,null,null,null,null,null,null,null,null,null,null,null,null,null,null,null,null,null,null,null,null,null,null,null,null,null,null,null,null,null,null,null,null,null,null,null,null,null,null,null,null,null,null,null,null,null,null,null,null,null,null,null,null,null,null,null,null,null,null,null,null,null,null,null,null,null,null,null,null,null,null,null,null,null,null,null,null,null,null,null,null,null,null,null,null,null,null,null,null,null,null,"千円",null,null,null,null,null,null,null,null,null,null,null,{"$f":"IF(ISTEXT(入力!D128),入力!D128,\"\")","v":"役員就任"}]
[]
[null,null,null,null,null,null,null,null,null,null,null,null,null,null,null,null,null,null,null,null,null,null,null,null,null,null,null,null,null,null,null,null,null,null,null,null,null,null,null,null,null,null,null,null,null,null,null,null,null,null,null,null,null,null,null,null,null,null,null,null,null,null,null,null,null,null,null,null,null,null,null,null,null,null,null,null,null,null,null,null,null,null,null,null,null,null,null,null,null,null,null,null,null,null,null,null,null,null,null,null,null,null,null,null,null,"厚",null,{"$f":"IF(ISNUMBER(入力!D125),入力!H133,\"\")","v":650}]
[null,null,null,null,null,null,null,null,null,null,null,null,null,null,null,null,null,null,null,null,null,null,null,null,null,null,null,null,null,null,null,null,null,null,null,null,null,null,null,null,null,null,null,null,null,null,null,null,null,null,null,null,null,null,null,null,null,null,null,null,null,null,null,null,null,null,null,null,null,null,null,null,null,null,null,null,null,null,null,null,null,null,null,null,null,null,null,null,null,null,null,null,null,null,null,null,null,null,null,null,null,null,null,null,null,null,null,null,null,null,null,null,null,null,null,null,null,{"$f":"IF(ISNUMBER(入力!D133),5,\"\")","v":""},null,{"$f":"IF(ISNUMBER(入力!D133),\"健康保険のみ月額変更\",\"\")","v":""}]
[null,null,null,null,null,null,null,null,{"$f":"IF(ISNUMBER(入力!D120),入力!I124,\"\")","v":"2018-05-02"},null,null,null,"月",null,null,null,null,{"$f":"IF(ISNUMBER(入力!D124),入力!D124,\"\")","v":30},null,null,null,"日",null,null,null,null,{"$f":"IF(ISNUMBER(入力!D127),入力!D127,\"\")","v":2000000},null,null,null,null,null,null,null,null,null,null,null,null,null,null,null,"円",null,null,null,null,{"$f":"IF(ISNUMBER(入力!D140),入力!D140,\"\")","v":50000},null,null,null,null,null,null,null,null,null,null,null,null,null,"円",null,null,null,null,{"$f":"IF(ISNUMBER(入力!D127),入力!G127,\"\")","v":2050000},null,null,null,null,null,null,null,null,null,null,null,null,null,null,null,"円",null,16,null,null,{"$f":"IF(ISNUMBER(入力!D137),入力!I129,\"\")","v":""},null,null,null,null,null,null,null,null,null,null,null,null,null,null,null,"円"]
[]
[null,null,null,null,null,null,null,null,null,null,null,null,null,null,null,null,null,null,null,null,null,null,null,null,null,null,null,null,null,null,null,null,null,null,null,null,null,null,null,null,null,null,null,null,null,null,null,null,null,null,null,null,null,null,null,null,null,null,null,null,null,null,null,null,null,null,null,null,null,null,null,null,null,null,null,null,null,null,null,null,null,null,null,null,null,null,null,null,null,null,null,null,null,null,null,null,null,null,null,null,null,null,null,null,null,null,null,null,null,null,null,null,null,null,null,null,null,{"$f":"IF(ISNUMBER(入力!D134),6,\"\")","v":6},null,{"$f":"IF(ISNUMBER(入力!D134),\"その他\",\"\")","v":"その他"},null,null,null,null,{"$f":"IF(ISTEXT(入力!D135),入力!D135,\"\")","v":"短時間役員"}]
[null,null,null,null,null,null,null,null,null,null,null,null,null,null,null,null,null,null,null,null,null,null,null,null,null,null,null,null,null,null,null,null,null,null,null,null,null,null,null,null,null,null,null,null,null,null,null,null,null,null,null,null,null,null,null,null,null,null,null,null,null,null,null,null,null,null,null,null,null,null,null,null,null,null,null,null,null,null,null,null,null,null,null,null,null,null,null,null,null,null,null,null,null,null,null,null,null,null,null,null,null,null,null,null,null,null,null,"千円"]
[]
[]
[]
[null,null,null,null,null,null,null,null,null,null,null,null,null,null,null,null,null,null,null,null,null,null,null,null,null,null,null,null,null,null,null,null,null,null,null,null,null,null,null,null,null,null,null,null,null,null,null,null,null,null,null,null,null,null,null,null,null,null,null,null,null,null,null,null,null,null,null,null,null,null,null,null,null,null,null,null,null,null,null,null,null,null,null,null,null,null,null,null,null,null,null,null,null,null,null,null,null,null,null,null,null,null,null,null,"大阪自動車整備健康保険組合"]

{"sheet":"年金正","index":5,"n_rows":223,"n_cols":125,"rows_kept":223,"cut":false,"hidden":false,"merged":[[210,105,224,113],[222,117,224,118],[222,119,224,123],[222,124,224,139],[15,24,18,31],[1,14,7,79],[98,105,112,113],[126,105,140,113],[154,105,168,113],[182,105,196,113],[220,63,224,65],[220,66,224,81],[220,82,224,83],[220,84,224,86],[220,87,224,102],[220,103,224,104],[220,23,224,25],[220,26,224,41],[220,42,224,43],[220,44,224,46],[220,47,224,60],[220,61,224,62],[219,117,221,118],[219,119,221,139],[220,5,224,7],[220,8,224,11],[220,12,224,13],[220,14,224,16],[220,17,224,20],[220,21,224,22],[215,63,219,65],[215,66,219,81],[215,82,219,83],[215,5,219,7],[215,8,219,11],[215,12,219,13],[215,14,219,16],[215,17,219,20],[215,21,219,22],[210,66,214,81],[210,82,214,83],[210,84,214,86],[210,87,214,102],[215,84,219,86],[215,87,219,102],[215,103,219,104],[215,23,219,25],[215,26,219,41],[215,42,219,43],[215,44,219,46],[215,47,219,60],[215,61,219,62],[210,5,214,7],[210,8,214,11],[210,12,214,13],[210,14,214,16],[210,17,214,20],[205,40,209,43],[205,44,209,45],[205,46,209,62],[205,63,209,64],[205,5,209,7],[205,8,209,10],[205,11,209,20],[205,21,209,24],[205,25,209,27],[205,28,209,39],[210,21,214,22],[210,23,214,25],[210,26,214,41],[210,42,214,43],[210,44,214,46],[210,47,214,60],[210,61,214,62],[210,63,214,65],[200,69,204,94],[200,95,204,96],[200,97,204,113],[200,114,203,139],[204,114,224,116],[204,117,206,118],[204,119,206,139],[205,72,209,83],[205,84,209,85],[205,86,209,90],[207,117,209,118],[207,119,209,139],[205,65,209,69],[205,70,209,71],[205,91,209,92],[205,93,209,111],[205,112,209,113],[210,103,214,104],[210,117,212,118],[210,119,212,139],[213,117,215,118],[213,119,215,139],[216,117,218,118],[216,119,218,139],[194,117,196,118],[194,119,196,123],[194,124,196,139],[200,0,224,4],[200,5,204,7],[200,8,204,19],[200,20,204,22],[200,23,204,66],[200,67,204,68],[192,63,196,65],[192,66,196,81],[192,82,196,83],[192,84,196,86],[192,87,196,102],[192,103,196,104],[192,23,196,25],[192,26,196,41],[192,42,196,43],[192,44,196,46],[192,47,196,60],[192,61,196,62],[191,117,193,118],[191,119,193,139],[192,5,196,7],[187,5,191,7],[187,8,191,11],[187,12,191,13],[187,14,191,16],[187,17,191,20],[187,21,191,22],[192,8,196,11],[192,12,196,13],[192,14,196,16],[192,17,196,20],[192,21,196,22],[182,66,186,81],[182,82,186,83],[182,84,186,86],[182,87,186,102],[187,87,191,102],[187,103,191,104],[187,23,191,25],[187,26,191,41],[187,42,191,43],[187,44,191,46],[187,47,191,60],[187,61,191,62],[187,63,191,65],[187,66,191,81],[187,82,191,83],[187,84,191,86],[188,119,190,139],[182,5,186,7],[182,8,186,11],[182,12,186,13],[182,14,186,16],[182,17,186,20],[177,40,181,43],[177,44,181,45],[177,46,181,62],[177,63,181,64],[177,5,181,7],[177,8,181,10],[177,11,181,20],[177,21,181,24],[177,25,181,27],[177,28,181,39],[182,21,186,22],[182,23,186,25],[182,26,186,41],[182,42,186,43],[182,44,186,46],[182,47,186,60],[182,61,186,62],[182,63,186,65],[164,5,168,7],[172,69,176,94],[172,95,176,96],[172,97,176,113],[172,114,175,139],[176,114,196,116],[176,117,178,118],[176,119,178,139],[177,72,181,83],[177,84,181,85],[177,86,181,90],[179,117,181,118],[179,119,181,139],[177,65,181,69],[177,70,181,71],[177,91,181,92],[177,93,181,111],[177,112,181,113],[182,103,186,104],[182,117,184,118],[182,119,184,139],[185,117,187,118],[185,119,187,139],[188,117,190,118],[159,44,163,46],[159,47,163,60],[159,61,163,62],[166,117,168,118],[166,119,168,123],[166,124,168,139],[172,0,196,4],[172,5,176,7],[172,8,176,19],[172,20,176,22],[172,23,176,66],[172,67,176,68],[164,63,168,65],[164,66,168,81],[164,82,168,83],[164,84,168,86],[164,87,168,102],[164,103,168,104],[164,23,168,25],[164,26,168,41],[164,42,168,43],[164,44,168,46],[164,47,168,60],[164,61,168,62],[154,117,156,118],[154,119,156,139],[157,117,159,118],[157,119,159,139],[160,117,162,118],[160,119,162,139],[154,61,158,62],[154,63,158,65],[154,66,158,81],[154,82,158,83],[154,84,158,86],[154,87,158,102],[159,87,163,102],[159,103,163,104],[159,63,163,65],[159,66,163,81],[159,82,163,83],[159,84,163,86],[163,117,165,118],[163,119,165,139],[149,112,153,113],[154,103,158,104],[135,117,137,118],[135,119,137,139],[136,5,140,7],[144,69,148,94],[144,95,148,96],[144,97,148,113],[144,114,147,139],[148,114,168,116],[148,117,150,118],[148,119,150,139],[149,72,153,83],[149,84,153,85],[149,86,153,90],[151,117,153,118],[151,119,153,139],[154,5,158,7],[154,8,158,11],[154,12,158,13],[154,14,158,16],[159,5,163,7],[159,8,163,11],[159,12,163,13],[144,0,168,4],[144,5,148,7],[144,8,148,19],[144,20,148,22],[144,23,148,66],[149,65,153,69],[154,47,158,60],[149,91,153,92],[149,93,153,111],[159,14,163,16],[159,17,163,20],[159,21,163,22],[154,23,158,25],[154,26,158,41],[154,42,158,43],[154,44,158,46],[164,8,168,11],[164,12,168,13],[164,14,168,16],[164,17,168,20],[164,21,168,22],[159,23,163,25],[159,26,163,41],[159,42,163,43],[154,21,158,22],[136,8,140,11],[136,12,140,13],[136,14,140,16],[136,17,140,20],[136,21,140,22],[144,67,148,68],[136,63,140,65],[136,66,140,81],[136,23,140,25],[136,26,140,41],[136,42,140,43],[136,44,140,46],[136,47,140,60],[136,61,140,62],[154,17,158,20],[149,40,153,43],[149,44,153,45],[149,46,153,62],[149,63,153,64],[136,84,140,86],[131,23,135,25],[131,26,135,41],[131,42,135,43],[131,44,135,46],[131,47,135,60],[131,61,135,62],[149,70,153,71],[149,5,153,7],[149,8,153,10],[149,11,153,20],[149,21,153,24],[149,25,153,27],[149,28,153,39],[136,82,140,83],[132,117,134,118],[132,119,134,139],[131,87,135,102],[126,42,130,43],[126,44,130,46],[126,47,130,60],[121,91,125,92],[121,93,125,111],[121,112,125,113],[126,103,130,104],[126,61,130,62],[126,63,130,65],[126,66,130,81],[126,82,130,83],[126,84,130,86],[126,87,130,102],[121,46,125,62],[121,63,125,64],[121,65,125,69],[121,70,125,71],[131,63,135,65],[131,66,135,81],[131,82,135,83],[131,84,135,86],[116,0,140,4],[116,5,120,7],[116,8,120,19],[116,20,120,22],[116,23,120,66],[116,67,120,68],[121,5,125,7],[121,8,125,10],[121,11,125,20],[121,21,125,24],[121,25,125,27],[121,28,125,39],[131,5,135,7],[131,8,135,11],[131,12,135,13],[131,14,135,16],[131,17,135,20],[131,21,135,22],[126,21,130,22],[126,23,130,25],[126,26,130,41],[108,44,112,46],[108,47,112,60],[108,61,112,62],[131,103,135,104],[138,117,140,118],[138,119,140,123],[138,124,140,139],[136,87,140,102],[136,103,140,104],[116,95,120,96],[116,97,120,113],[116,114,119,139],[120,114,140,116],[120,117,122,118],[120,119,122,139],[121,72,125,83],[121,84,125,85],[121,86,125,90],[123,117,125,118],[123,119,125,139],[126,117,128,118],[126,119,128,139],[129,117,131,118],[129,119,131,139],[103,42,107,43],[103,44,107,46],[103,47,107,60],[103,61,107,62],[108,5,112,7],[116,69,120,94],[126,5,130,7],[126,8,130,11],[126,12,130,13],[126,14,130,16],[126,17,130,20],[121,40,125,43],[121,44,125,45],[108,8,112,11],[108,12,112,13],[108,14,112,16],[108,17,112,20],[108,21,112,22],[108,63,112,65],[108,66,112,81],[108,82,112,83],[108,23,112,25],[108,26,112,41],[108,42,112,43],[103,5,107,7],[103,8,107,11],[103,12,107,13],[103,14,107,16],[103,17,107,20],[103,21,107,22],[98,47,102,60],[93,91,97,92],[93,93,97,111],[93,11,97,20],[93,21,97,24],[93,25,97,27],[93,28,97,39],[98,21,102,22],[98,23,102,25],[98,26,102,41],[98,42,102,43],[98,44,102,46],[103,63,107,65],[103,66,107,81],[103,82,107,83],[103,84,107,86],[103,23,107,25],[103,26,107,41],[98,61,102,62],[98,63,102,65],[98,66,102,81],[98,82,102,83],[98,84,102,86],[98,87,102,102],[103,87,107,102],[103,103,107,104],[107,117,109,118],[108,84,112,86],[88,114,91,139],[92,114,112,116],[92,117,94,118],[92,119,94,139],[93,72,97,83],[93,84,97,85],[93,86,97,90],[95,117,97,118],[95,119,97,139],[104,117,106,118],[104,119,106,139],[110,117,112,118],[110,119,112,123],[110,124,112,139],[108,87,112,102],[108,103,112,104],[93,112,97,113],[98,103,102,104],[98,117,100,118],[98,119,100,139],[101,117,103,118],[101,119,103,139],[107,119,109,139],[80,63,84,83],[82,84,84,104],[88,0,112,4],[88,5,92,7],[88,8,92,19],[88,20,92,22],[88,23,92,66],[88,67,92,68],[88,69,92,94],[88,95,92,96],[88,97,92,113],[98,5,102,7],[98,8,102,11],[98,12,102,13],[98,14,102,16],[98,17,102,20],[93,40,97,43],[93,44,97,45],[93,46,97,62],[93,63,97,64],[93,65,97,69],[93,70,97,71],[93,5,97,7],[93,8,97,10],[40,5,40,15],[40,16,40,69],[50,71,54,101],[55,71,64,130],[55,131,64,139],[68,0,84,4],[68,5,71,19],[68,20,71,66],[68,67,71,94],[68,95,71,113],[68,114,71,139],[72,5,75,43],[72,44,75,62],[72,63,75,83],[72,84,75,113],[72,114,84,139],[76,5,84,13],[76,14,84,22],[76,23,79,83],[76,84,78,104],[76,105,84,113],[79,84,81,104],[80,23,84,43],[80,44,84,62],[9,0,12,27],[15,0,53,4],[15,5,18,15],[15,16,18,23],[20,5,24,15],[20,16,22,69],[20,105,23,139],[23,16,25,18],[23,19,25,31],[41,5,46,15],[41,16,46,61],[41,62,46,69],[47,5,47,15],[47,16,47,69],[48,5,53,15],[48,16,53,69],[23,32,25,69],[24,105,52,139],[25,5,30,15],[26,16,32,69],[31,5,33,15],[33,16,33,69],[34,5,39,15],[34,16,39,69]]}
[]
[null,null,null,null,null,null,null,null,null,null,null,null,null,null,"厚生年金保険　被保険者報酬月額変更届"]
[]
[]
[]
[]
[]
[]
[]
[{"$f":"基本情報登録!C2","v":"2021-04-22"}]
[]
[]
[]
[]
[]
["提出者記入欄",null,null,null,null,"記号",null,null,null,null,null,null,null,null,null,null,{"$f":"基本情報登録!C3","v":"南"},null,null,null,null,null,null,null,{"$f":"基本情報登録!C4","v":"ＷＥＤ"}]
[]
[]
[]
[]
[null,null,null,null,null,null,null,null,null,null,null,null,null,null,null,null,"届書記入の個人番号(基礎年金番号)に誤りがないことを確認しました。",null,null,null,null,null,null,null,null,null,null,null,null,null,null,null,null,null,null,null,null,null,null,null,null,null,null,null,null,null,null,null,null,null,null,null,null,null,null,null,null,null,null,null,null,null,null,null,null,null,null,null,null,null,null,null,null,null,null,null,null,null,null,null,null,null,null,null,null,null,null,null,null,null,null,null,null,null,null,null,null,null,null,null,null,null,null,null,null,"受付印"]
[]
[]
[null,null,null,null,null,null,null,null,null,null,null,null,null,null,null,null,"〒",null,null,{"$f":"基本情報登録!C7","v":"542-0066"}]
[]
[null,null,null,null,null,"事業所\n所在地"]
[null,null,null,null,null,null,null,null,null,null,null,null,null,null,null,null,{"$f":"基本情報登録!C8","v":"大阪府大阪市中央区瓦屋町2-3-1"}]
[]
[]
[]
[]
[]
[]
[]
[null,null,null,null,null,"事業所\n名称",null,null,null,null,null,null,null,null,null,null,{"$f":"基本情報登録!C9","v":"大阪自動車整備健康保険組合"}]
[]
[]
[]
[]
[]
[]
[null,null,null,null,null,"事業主\n氏名",null,null,null,null,null,null,null,null,null,null,{"$f":"基本情報登録!C10","v":"理事長　健保　太郎"}]
[]
[]
[]
[]
[]
[]
[null,null,null,null,null,"電話番号",null,null,null,null,null,null,null,null,null,null,{"$f":"基本情報登録!C11","v":"06-6762-6371"}]
[]
[null,null,null,null,null,null,null,null,null,null,null,null,null,null,null,null,null,null,null,null,null,null,null,null,null,null,null,null,null,null,null,null,null,null,null,null,null,null,null,null,null,null,null,null,null,null,null,null,null,null,null,null,null,null,null,null,null,null,null,null,null,null,null,null,null,null,null,null,null,null,null,"社会保険労務士記載欄"]
[]
[]
[]
[]
[]
[]
[]
[]
[]
[]
[]
[]
[]
[]
[]
[]
[]
["項目名",null,null,null,null,"1年金整理番号",null,null,null,null,null,null,null,null,null,null,null,null,null,null,"2被保険者氏名",null,null,null,null,null,null,null,null,null,null,null,null,null,null,null,null,null,null,null,null,null,null,null,null,null,null,null,null,null,null,null,null,null,null,null,null,null,null,null,null,null,null,null,null,null,null,"3生年月日",null,null,null,null,null,null,null,null,null,null,null,null,null,null,null,null,null,null,null,null,null,null,null,null,null,null,null,"4改定年月",null,null,null,null,null,null,null,null,null,null,null,null,null,null,null,null,null,null,"10個人番号(基礎年金番号)"]
[]
[]
[]
[null,null,null,null,null,"5従前の標準報酬月額",null,null,null,null,null,null,null,null,null,null,null,null,null,null,null,null,null,null,null,null,null,null,null,null,null,null,null,null,null,null,null,null,null,null,null,null,null,null,"6従前改定月",null,null,null,null,null,null,null,null,null,null,null,null,null,null,null,null,null,null,"7昇(降)給",null,null,null,null,null,null,null,null,null,null,null,null,null,null,null,null,null,null,null,null,"8遡及支払額",null,null,null,null,null,null,null,null,null,null,null,null,null,null,null,null,null,null,null,null,null,null,null,null,null,null,null,null,null,"18備考"]
[]
[]
[]
[null,null,null,null,null,"9給与\n支払月",null,null,null,null,null,null,null,null,"10給料計算の基礎日数",null,null,null,null,null,null,null,null,"報酬月額",null,null,null,null,null,null,null,null,null,null,null,null,null,null,null,null,null,null,null,null,null,null,null,null,null,null,null,null,null,null,null,null,null,null,null,null,null,null,null,null,null,null,null,null,null,null,null,null,null,null,null,null,null,null,null,null,null,null,null,null,"14総計"]
[]
[]
[null,null,null,null,null,null,null,null,null,null,null,null,null,null,null,null,null,null,null,null,null,null,null,null,null,null,null,null,null,null,null,null,null,null,null,null,null,null,null,null,null,null,null,null,null,null,null,null,null,null,null,null,null,null,null,null,null,null,null,null,null,null,null,null,null,null,null,null,null,null,null,null,null,null,null,null,null,null,null,null,null,null,null,null,"15平均額"]
[null,null,null,null,null,null,null,null,null,null,null,null,null,null,null,null,null,null,null,null,null,null,null,"11通貨によるものの額",null,null,null,null,null,null,null,null,null,null,null,null,null,null,null,null,null,null,null,null,"12現物によるものの額",null,null,null,null,null,null,null,null,null,null,null,null,null,null,null,null,null,null,"13合計11+12"]
[]
[null,null,null,null,null,null,null,null,null,null,null,null,null,null,null,null,null,null,null,null,null,null,null,null,null,null,null,null,null,null,null,null,null,null,null,null,null,null,null,null,null,null,null,null,null,null,null,null,null,null,null,null,null,null,null,null,null,null,null,null,null,null,null,null,null,null,null,null,null,null,null,null,null,null,null,null,null,null,null,null,null,null,null,null,"16修正平均額"]
[]
[]
[]
[]
[]
["１",null,null,null,null,1,null,null,{"$f":"IF(ISNUMBER(入力!D3),入力!G10,\"\")","v":5555},null,null,null,null,null,null,null,null,null,null,null,2,null,null,{"$f":"IF(ISTEXT(入力!D4),入力!D4,\"\")","v":"大阪健保　整太郎"},null,null,null,null,null,null,null,null,null,null,null,null,null,null,null,null,null,null,null,null,null,null,null,null,null,null,null,null,null,null,null,null,null,null,null,null,null,null,null,null,null,null,null,3,null,{"$f":"IF(ISNUMBER(入力!D5),入力!D5,\"\")","v":"1946-10-10"},null,null,null,null,null,null,null,null,null,null,null,null,null,null,null,null,null,null,null,null,null,null,null,null,null,4,null,{"$f":"IF(ISNUMBER(入力!D8),入力!I6,\"\")","v":"2018-04-06"},null,null,null,null,null,null,null,null,null,null,null,null,null,null,null,null,{"$f":"IF(ISNUMBER(入力!D17),入力!D18,\"\")","v":"123456789012"}]
[]
[]
[]
[null,null,null,null,null,null,null,null,null,null,null,null,null,null,null,null,null,null,null,null,null,null,null,null,null,null,null,null,null,null,null,null,null,null,null,null,null,null,null,null,null,null,null,null,null,null,null,null,null,null,null,null,null,null,null,null,null,null,null,null,null,null,null,null,null,null,null,null,null,null,null,null,null,null,null,null,null,null,null,null,null,null,null,null,null,null,null,null,null,null,null,null,null,null,null,null,null,null,null,null,null,null,null,null,null,null,null,null,null,null,null,null,null,null,18,null,null,{"$f":"IF(ISNUMBER(入力!D17),1,\"\")","v":1},null,{"$f":"IF(ISNUMBER(入力!D17),\"70歳以上被用者月額変更\",\"\")","v":"70歳以上被用者月額変更"}]
[null,null,null,null,null,5,null,null,"健",null,null,{"$f":"IF(ISNUMBER(入力!D6),入力!G23,\"\")","v":710},null,null,null,null,null,null,null,null,null,"千円",null,null,null,"年",null,null,{"$f":"IF(ISNUMBER(入力!D6),入力!G25,\"\")","v":650},null,null,null,null,null,null,null,null,null,null,null,"千円",null,null,null,6,null,{"$f":"IF(ISNUMBER(入力!D7),入力!D7,\"\")","v":"2017-09-01"},null,null,null,null,null,null,null,null,null,null,null,null,null,null,null,null,7,null,{"$f":"IF(ISNUMBER(入力!D8),入力!D8,\"\")","v":"2018-01-01"},null,null,null,null,"月",null,{"$f":"IF(ISNUMBER(入力!D9),入力!I8,\"\")","v":"1.昇給"},null,null,null,null,null,null,null,null,null,null,null,8,null,{"$f":"IF(ISNUMBER(入力!D24),入力!D24,\"\")","v":"2018-01-01"},null,null,null,null,"月",null,{"$f":"IF(ISNUMBER(入力!D25),入力!D25,\"\")","v":""},null,null,null,null,null,null,null,null,null,null,null,null,null,null,null,null,null,null,"円"]
[]
[null,null,null,null,null,null,null,null,null,null,null,null,null,null,null,null,null,null,null,null,null,null,null,null,null,null,null,null,null,null,null,null,null,null,null,null,null,null,null,null,null,null,null,null,null,null,null,null,null,null,null,null,null,null,null,null,null,null,null,null,null,null,null,null,null,null,null,null,null,null,null,null,null,null,null,null,null,null,null,null,null,null,null,null,null,null,null,null,null,null,null,null,null,null,null,null,null,null,null,null,null,null,null,null,null,null,null,null,null,null,null,null,null,null,null,null,null,{"$f":"IF(ISNUMBER(入力!D19),2,\"\")","v":""},null,{"$f":"IF(ISNUMBER(入力!D19),\"二以上勤務\",\"\")","v":""}]
[]
[]
[null,null,null,null,null,9,null,null,{"$f":"IF(ISNUMBER(入力!D8),入力!I10,\"\")","v":"2018-01-01"},null,null,null,"月",null,10,null,null,{"$f":"IF(ISNUMBER(入力!D10),入力!D10,\"\")","v":31},null,null,null,"日",null,11,null,null,{"$f":"IF(ISNUMBER(入力!D13),入力!D13,\"\")","v":1500000},null,null,null,null,null,null,null,null,null,null,null,null,null,null,null,"円",null,12,null,null,{"$f":"IF(ISNUMBER(入力!D26),入力!D26,\"\")","v":""},null,null,null,null,null,null,null,null,null,null,null,null,null,"円",null,13,null,null,{"$f":"IF(ISNUMBER(入力!D13),入力!G13,\"\")","v":1500000},null,null,null,null,null,null,null,null,null,null,null,null,null,null,null,"円",null,14,null,null,{"$f":"IF(ISNUMBER(入力!D13),入力!I14,\"\")","v":4500000},null,null,null,null,null,null,null,null,null,null,null,null,null,null,null,"円",null,null,null,null,null,null,null,null,null,null,null,null,null,{"$f":"IF(ISNUMBER(入力!D20),3,\"\")","v":""},null,{"$f":"IF(ISNUMBER(入力!D20),\"短時間労働者(特定適用事業所\",\"\")","v":""}]
[]
[]
[null,null,null,null,null,null,null,null,null,null,null,null,null,null,null,null,null,null,null,null,null,null,null,null,null,null,null,null,null,null,null,null,null,null,null,null,null,null,null,null,null,null,null,null,null,null,null,null,null,null,null,null,null,null,null,null,null,null,null,null,null,null,null,null,null,null,null,null,null,null,null,null,null,null,null,null,null,null,null,null,null,null,null,null,null,null,null,null,null,null,null,null,null,null,null,null,null,null,null,null,null,null,null,null,null,null,null,null,null,null,null,null,null,null,null,null,null,4,null,"昇給・降給の理由"]
[]
[null,null,null,null,null,null,null,null,{"$f":"IF(ISNUMBER(入力!D5),入力!I11,\"\")","v":"2018-02-01"},null,null,null,"月",null,null,null,null,{"$f":"IF(ISNUMBER(入力!D11),入力!D11,\"\")","v":31},null,null,null,"日",null,null,null,null,{"$f":"IF(ISNUMBER(入力!D14),入力!D14,\"\")","v":1500000},null,null,null,null,null,null,null,null,null,null,null,null,null,null,null,"円",null,null,null,null,{"$f":"IF(ISNUMBER(入力!D27),入力!D27,\"\")","v":""},null,null,null,null,null,null,null,null,null,null,null,null,null,"円",null,null,null,null,{"$f":"IF(ISNUMBER(入力!D14),入力!G14,\"\")","v":1500000},null,null,null,null,null,null,null,null,null,null,null,null,null,null,null,"円",null,15,null,null,{"$f":"IF(ISNUMBER(入力!D13),入力!I15,\"\")","v":1500000},null,null,null,null,null,null,null,null,null,null,null,null,null,null,null,"円"]
[null,null,null,null,null,null,null,null,null,null,null,null,null,null,null,null,null,null,null,null,null,null,null,null,null,null,null,null,null,null,null,null,null,null,null,null,null,null,null,null,null,null,null,null,null,null,null,null,null,null,null,null,null,null,null,null,null,null,null,null,null,null,null,null,null,null,null,null,null,null,null,null,null,null,null,null,null,null,null,null,null,null,null,null,null,null,null,null,null,null,null,null,null,null,null,null,null,null,null,null,null,null,null,null,null,null,null,null,null,null,null,null,null,null,null,null,null,null,null,{"$f":"IF(ISTEXT(入力!D16),入力!D16,\"\")","v":"基本給増"}]
[]
[]
[null,null,null,null,null,null,null,null,null,null,null,null,null,null,null,null,null,null,null,null,null,null,null,null,null,null,null,null,null,null,null,null,null,null,null,null,null,null,null,null,null,null,null,null,null,null,null,null,null,null,null,null,null,null,null,null,null,null,null,null,null,null,null,null,null,null,null,null,null,null,null,null,null,null,null,null,null,null,null,null,null,null,null,null,null,null,null,null,null,null,null,null,null,null,null,null,null,null,null,null,null,null,null,null,null,null,null,null,null,null,null,null,null,null,null,null,null,{"$f":"IF(ISNUMBER(入力!D21),5,\"\")","v":""},null,{"$f":"IF(ISNUMBER(入力!D21),\"健康保険のみ月額変更\",\"\")","v":""}]
[null,null,null,null,null,null,null,null,{"$f":"IF(ISNUMBER(入力!D8),入力!I12,\"\")","v":"2018-03-04"},null,null,null,"月",null,null,null,null,{"$f":"IF(ISNUMBER(入力!D12),入力!D12,\"\")","v":28},null,null,null,"日",null,null,null,null,{"$f":"IF(ISNUMBER(入力!D15),入力!D15,\"\")","v":1500000},null,null,null,null,null,null,null,null,null,null,null,null,null,null,null,"円",null,null,null,null,{"$f":"IF(ISNUMBER(入力!D28),入力!D28,\"\")","v":""},null,null,null,null,null,null,null,null,null,null,null,null,null,"円",null,null,null,null,{"$f":"IF(ISNUMBER(入力!D15),入力!G15,\"\")","v":1500000},null,null,null,null,null,null,null,null,null,null,null,null,null,null,null,"円",null,16,null,null,{"$f":"IF(ISNUMBER(入力!D25),入力!I17,\"\")","v":""},null,null,null,null,null,null,null,null,null,null,null,null,null,null,null,"円"]
[]
[null,null,null,null,null,null,null,null,null,null,null,null,null,null,null,null,null,null,null,null,null,null,null,null,null,null,null,null,null,null,null,null,null,null,null,null,null,null,null,null,null,null,null,null,null,null,null,null,null,null,null,null,null,null,null,null,null,null,null,null,null,null,null,null,null,null,null,null,null,null,null,null,null,null,null,null,null,null,null,null,null,null,null,null,null,null,null,null,null,null,null,null,null,null,null,null,null,null,null,null,null,null,null,null,null,null,null,null,null,null,null,null,null,null,null,null,null,{"$f":"IF(ISNUMBER(入力!D22),6,\"\")","v":""},null,{"$f":"IF(ISNUMBER(入力!D22),\"その他\",\"\")","v":""},null,null,null,null,{"$f":"IF(ISTEXT(入力!D23),入力!D23,\"\")","v":""}]
[]
[]
[]
[]
[]
["２",null,null,null,null,1,null,null,{"$f":"IF(ISNUMBER(入力!D31),入力!G38,\"\")","v":5403},null,null,null,null,null,null,null,null,null,null,null,2,null,null,{"$f":"IF(ISTEXT(入力!D32),入力!D32,\"\")","v":"大阪　花"},null,null,null,null,null,null,null,null,null,null,null,null,null,null,null,null,null,null,null,null,null,null,null,null,null,null,null,null,null,null,null,null,null,null,null,null,null,null,null,null,null,null,null,3,null,{"$f":"IF(ISNUMBER(入力!D33),入力!D33,\"\")","v":"1947-12-12"},null,null,null,null,null,null,null,null,null,null,null,null,null,null,null,null,null,null,null,null,null,null,null,null,null,4,null,{"$f":"IF(ISNUMBER(入力!D36),入力!I34,\"\")","v":"2018-03-06"},null,null,null,null,null,null,null,null,null,null,null,null,null,null,null,null,{"$f":"IF(ISNUMBER(入力!D45),入力!D46,\"\")","v":"987654321098"}]
[]
[]
[]
[null,null,null,null,null,null,null,null,null,null,null,null,null,null,null,null,null,null,null,null,null,null,null,null,null,null,null,null,null,null,null,null,null,null,null,null,null,null,null,null,null,null,null,null,null,null,null,null,null,null,null,null,null,null,null,null,null,null,null,null,null,null,null,null,null,null,null,null,null,null,null,null,null,null,null,null,null,null,null,null,null,null,null,null,null,null,null,null,null,null,null,null,null,null,null,null,null,null,null,null,null,null,null,null,null,null,null,null,null,null,null,null,null,null,18,null,null,{"$f":"IF(ISNUMBER(入力!D45),1,\"\")","v":1},null,{"$f":"IF(ISNUMBER(入力!D45),\"70歳以上被用者月額変更\",\"\")","v":"70歳以上被用者月額変更"}]
[null,null,null,null,null,5,null,null,"健",null,null,{"$f":"IF(ISNUMBER(入力!D34),入力!G51,\"\")","v":98},null,null,null,null,null,null,null,null,null,"千円",null,null,null,"年",null,null,{"$f":"IF(ISNUMBER(入力!D34),入力!G53,\"\")","v":98},null,null,null,null,null,null,null,null,null,null,null,"千円",null,null,null,6,null,{"$f":"IF(ISNUMBER(入力!D35),入力!D35,\"\")","v":"2017-09-01"},null,null,null,null,null,null,null,null,null,null,null,null,null,null,null,null,7,null,{"$f":"IF(ISNUMBER(入力!D36),入力!D36,\"\")","v":"2017-12-01"},null,null,null,null,"月",null,{"$f":"IF(ISNUMBER(入力!D37),入力!I36,\"\")","v":"2.降給"},null,null,null,null,null,null,null,null,null,null,null,8,null,{"$f":"IF(ISNUMBER(入力!D52),入力!D52,\"\")","v":""},null,null,null,null,"月",null,{"$f":"IF(ISNUMBER(入力!D53),入力!D53,\"\")","v":""},null,null,null,null,null,null,null,null,null,null,null,null,null,null,null,null,null,null,"円"]
[]
[null,null,null,null,null,null,null,null,null,null,null,null,null,null,null,null,null,null,null,null,null,null,null,null,null,null,null,null,null,null,null,null,null,null,null,null,null,null,null,null,null,null,null,null,null,null,null,null,null,null,null,null,null,null,null,null,null,null,null,null,null,null,null,null,null,null,null,null,null,null,null,null,null,null,null,null,null,null,null,null,null,null,null,null,null,null,null,null,null,null,null,null,null,null,null,null,null,null,null,null,null,null,null,null,null,null,null,null,null,null,null,null,null,null,null,null,null,{"$f":"IF(ISNUMBER(入力!D47),2,\"\")","v":""},null,{"$f":"IF(ISNUMBER(入力!D47),\"二以上勤務\",\"\")","v":""}]
[]
[]
[null,null,null,null,null,9,null,null,{"$f":"IF(ISNUMBER(入力!D36),入力!I38,\"\")","v":"2017-12-01"},null,null,null,"月",null,10,null,null,{"$f":"IF(ISNUMBER(入力!D38),入力!D38,\"\")","v":30},null,null,null,"日",null,11,null,null,{"$f":"IF(ISNUMBER(入力!D41),入力!D41,\"\")","v":50000},null,null,null,null,null,null,null,null,null,null,null,null,null,null,null,"円",null,12,null,null,{"$f":"IF(ISNUMBER(入力!D54),入力!D54,\"\")","v":""},null,null,null,null,null,null,null,null,null,null,null,null,null,"円",null,13,null,null,{"$f":"IF(ISNUMBER(入力!D41),入力!G41,\"\")","v":50000},null,null,null,null,null,null,null,null,null,null,null,null,null,null,null,"円",null,14,null,null,{"$f":"IF(ISNUMBER(入力!D41),入力!I42,\"\")","v":150000},null,null,null,null,null,null,null,null,null,null,null,null,null,null,null,"円",null,null,null,null,null,null,null,null,null,null,null,null,null,{"$f":"IF(ISNUMBER(入力!D48),3,\"\")","v":""},null,{"$f":"IF(ISNUMBER(入力!D48),\"短時間労働者(特定適用事業所\",\"\")","v":""}]
[]
[]
[null,null,null,null,null,null,null,null,null,null,null,null,null,null,null,null,null,null,null,null,null,null,null,null,null,null,null,null,null,null,null,null,null,null,null,null,null,null,null,null,null,null,null,null,null,null,null,null,null,null,null,null,null,null,null,null,null,null,null,null,null,null,null,null,null,null,null,null,null,null,null,null,null,null,null,null,null,null,null,null,null,null,null,null,null,null,null,null,null,null,null,null,null,null,null,null,null,null,null,null,null,null,null,null,null,null,null,null,null,null,null,null,null,null,null,null,null,4,null,"昇給・降給の理由"]
[]
[null,null,null,null,null,null,null,null,{"$f":"IF(ISNUMBER(入力!D33),入力!I39,\"\")","v":"2018-01-01"},null,null,null,"月",null,null,null,null,{"$f":"IF(ISNUMBER(入力!D39),入力!D39,\"\")","v":31},null,null,null,"日",null,null,null,null,{"$f":"IF(ISNUMBER(入力!D42),入力!D42,\"\")","v":50000},null,null,null,null,null,null,null,null,null,null,null,null,null,null,null,"円",null,null,null,null,{"$f":"IF(ISNUMBER(入力!D55),入力!D55,\"\")","v":""},null,null,null,null,null,null,null,null,null,null,null,null,null,"円",null,null,null,null,{"$f":"IF(ISNUMBER(入力!D42),入力!G42,\"\")","v":50000},null,null,null,null,null,null,null,null,null,null,null,null,null,null,null,"円",null,15,null,null,{"$f":"IF(ISNUMBER(入力!D41),入力!I43,\"\")","v":50000},null,null,null,null,null,null,null,null,null,null,null,null,null,null,null,"円"]
[null,null,null,null,null,null,null,null,null,null,null,null,null,null,null,null,null,null,null,null,null,null,null,null,null,null,null,null,null,null,null,null,null,null,null,null,null,null,null,null,null,null,null,null,null,null,null,null,null,null,null,null,null,null,null,null,null,null,null,null,null,null,null,null,null,null,null,null,null,null,null,null,null,null,null,null,null,null,null,null,null,null,null,null,null,null,null,null,null,null,null,null,null,null,null,null,null,null,null,null,null,null,null,null,null,null,null,null,null,null,null,null,null,null,null,null,null,null,null,{"$f":"IF(ISTEXT(入力!D44),入力!D44,\"\")","v":"基本給減"}]
[]
[]
[null,null,null,null,null,null,null,null,null,null,null,null,null,null,null,null,null,null,null,null,null,null,null,null,null,null,null,null,null,null,null,null,null,null,null,null,null,null,null,null,null,null,null,null,null,null,null,null,null,null,null,null,null,null,null,null,null,null,null,null,null,null,null,null,null,null,null,null,null,null,null,null,null,null,null,null,null,null,null,null,null,null,null,null,null,null,null,null,null,null,null,null,null,null,null,null,null,null,null,null,null,null,null,null,null,null,null,null,null,null,null,null,null,null,null,null,null,{"$f":"IF(ISNUMBER(入力!D49),5,\"\")","v":""},null,{"$f":"IF(ISNUMBER(入力!D49),\"健康保険のみ月額変更\",\"\")","v":""}]
[null,null,null,null,null,null,null,null,{"$f":"IF(ISNUMBER(入力!D36),入力!I40,\"\")","v":"2018-02-01"},null,null,null,"月",null,null,null,null,{"$f":"IF(ISNUMBER(入力!D40),入力!D40,\"\")","v":31},null,null,null,"日",null,null,null,null,{"$f":"IF(ISNUMBER(入力!D43),入力!D43,\"\")","v":50000},null,null,null,null,null,null,null,null,null,null,null,null,null,null,null,"円",null,null,null,null,{"$f":"IF(ISNUMBER(入力!D56),入力!D56,\"\")","v":""},null,null,null,null,null,null,null,null,null,null,null,null,null,"円",null,null,null,null,{"$f":"IF(ISNUMBER(入力!D43),入力!G43,\"\")","v":50000},null,null,null,null,null,null,null,null,null,null,null,null,null,null,null,"円",null,16,null,null,{"$f":"IF(ISNUMBER(入力!D53),入力!I45,\"\")","v":""},null,null,null,null,null,null,null,null,null,null,null,null,null,null,null,"円"]
[]
[null,null,null,null,null,null,null,null,null,null,null,null,null,null,null,null,null,null,null,null,null,null,null,null,null,null,null,null,null,null,null,null,null,null,null,null,null,null,null,null,null,null,null,null,null,null,null,null,null,null,null,null,null,null,null,null,null,null,null,null,null,null,null,null,null,null,null,null,null,null,null,null,null,null,null,null,null,null,null,null,null,null,null,null,null,null,null,null,null,null,null,null,null,null,null,null,null,null,null,null,null,null,null,null,null,null,null,null,null,null,null,null,null,null,null,null,null,{"$f":"IF(ISNUMBER(入力!D50),6,\"\")","v":""},null,{"$f":"IF(ISNUMBER(入力!D50),\"その他\",\"\")","v":""},null,null,null,null,{"$f":"IF(ISTEXT(入力!D51),入力!D51,\"\")","v":""}]
[]
[]
[]
[]
[]
["３",null,null,null,null,1,null,null,{"$f":"IF(ISNUMBER(入力!D59),入力!G66,\"\")","v":5600},null,null,null,null,null,null,null,null,null,null,null,2,null,null,{"$f":"IF(ISTEXT(入力!D60),入力!D60,\"\")","v":"クリス　ジョンソン"},null,null,null,null,null,null,null,null,null,null,null,null,null,null,null,null,null,null,null,null,null,null,null,null,null,null,null,null,null,null,null,null,null,null,null,null,null,null,null,null,null,null,null,3,null,{"$f":"IF(ISNUMBER(入力!D61),入力!D61,\"\")","v":"1986-02-03"},null,null,null,null,null,null,null,null,null,null,null,null,null,null,null,null,null,null,null,null,null,null,null,null,null,4,null,{"$f":"IF(ISNUMBER(入力!D64),入力!I62,\"\")","v":"2018-05-07"},null,null,null,null,null,null,null,null,null,null,null,null,null,null,null,null,{"$f":"IF(ISNUMBER(入力!D73),入力!D74,\"\")","v":""}]
[]
[]
[]
[null,null,null,null,null,null,null,null,null,null,null,null,null,null,null,null,null,null,null,null,null,null,null,null,null,null,null,null,null,null,null,null,null,null,null,null,null,null,null,null,null,null,null,null,null,null,null,null,null,null,null,null,null,null,null,null,null,null,null,null,null,null,null,null,null,null,null,null,null,null,null,null,null,null,null,null,null,null,null,null,null,null,null,null,null,null,null,null,null,null,null,null,null,null,null,null,null,null,null,null,null,null,null,null,null,null,null,null,null,null,null,null,null,null,18,null,null,{"$f":"IF(ISNUMBER(入力!D73),1,\"\")","v":""},null,{"$f":"IF(ISNUMBER(入力!D73),\"70歳以上被用者月額変更\",\"\")","v":""}]
[null,null,null,null,null,5,null,null,"健",null,null,{"$f":"IF(ISNUMBER(入力!D62),入力!G79,\"\")","v":620},null,null,null,null,null,null,null,null,null,"千円",null,null,null,"年",null,null,{"$f":"IF(ISNUMBER(入力!D62),入力!G81,\"\")","v":620},null,null,null,null,null,null,null,null,null,null,null,"千円",null,null,null,6,null,{"$f":"IF(ISNUMBER(入力!D63),入力!D63,\"\")","v":"2017-12-01"},null,null,null,null,null,null,null,null,null,null,null,null,null,null,null,null,7,null,{"$f":"IF(ISNUMBER(入力!D64),入力!D64,\"\")","v":"2018-02-01"},null,null,null,null,"月",null,{"$f":"IF(ISNUMBER(入力!D65),入力!I64,\"\")","v":"1.昇給"},null,null,null,null,null,null,null,null,null,null,null,8,null,{"$f":"IF(ISNUMBER(入力!D80),入力!D80,\"\")","v":""},null,null,null,null,"月",null,{"$f":"IF(ISNUMBER(入力!D81),入力!D81,\"\")","v":""},null,null,null,null,null,null,null,null,null,null,null,null,null,null,null,null,null,null,"円"]
[]
[null,null,null,null,null,null,null,null,null,null,null,null,null,null,null,null,null,null,null,null,null,null,null,null,null,null,null,null,null,null,null,null,null,null,null,null,null,null,null,null,null,null,null,null,null,null,null,null,null,null,null,null,null,null,null,null,null,null,null,null,null,null,null,null,null,null,null,null,null,null,null,null,null,null,null,null,null,null,null,null,null,null,null,null,null,null,null,null,null,null,null,null,null,null,null,null,null,null,null,null,null,null,null,null,null,null,null,null,null,null,null,null,null,null,null,null,null,{"$f":"IF(ISNUMBER(入力!D75),2,\"\")","v":""},null,{"$f":"IF(ISNUMBER(入力!D75),\"二以上勤務\",\"\")","v":""}]
[]
[]
[null,null,null,null,null,9,null,null,{"$f":"IF(ISNUMBER(入力!D64),入力!I66,\"\")","v":"2018-02-01"},null,null,null,"月",null,10,null,null,{"$f":"IF(ISNUMBER(入力!D66),入力!D66,\"\")","v":31},null,null,null,"日",null,11,null,null,{"$f":"IF(ISNUMBER(入力!D69),入力!D69,\"\")","v":1500000},null,null,null,null,null,null,null,null,null,null,null,null,null,null,null,"円",null,12,null,null,{"$f":"IF(ISNUMBER(入力!D82),入力!D82,\"\")","v":""},null,null,null,null,null,null,null,null,null,null,null,null,null,"円",null,13,null,null,{"$f":"IF(ISNUMBER(入力!D69),入力!G69,\"\")","v":1500000},null,null,null,null,null,null,null,null,null,null,null,null,null,null,null,"円",null,14,null,null,{"$f":"IF(ISNUMBER(入力!D69),入力!I70,\"\")","v":4500000},null,null,null,null,null,null,null,null,null,null,null,null,null,null,null,"円",null,null,null,null,null,null,null,null,null,null,null,null,null,{"$f":"IF(ISNUMBER(入力!D76),3,\"\")","v":""},null,{"$f":"IF(ISNUMBER(入力!D76),\"短時間労働者(特定適用事業所\",\"\")","v":""}]
[]
[]
[null,null,null,null,null,null,null,null,null,null,null,null,null,null,null,null,null,null,null,null,null,null,null,null,null,null,null,null,null,null,null,null,null,null,null,null,null,null,null,null,null,null,null,null,null,null,null,null,null,null,null,null,null,null,null,null,null,null,null,null,null,null,null,null,null,null,null,null,null,null,null,null,null,null,null,null,null,null,null,null,null,null,null,null,null,null,null,null,null,null,null,null,null,null,null,null,null,null,null,null,null,null,null,null,null,null,null,null,null,null,null,null,null,null,null,null,null,4,null,"昇給・降給の理由"]
[]
[null,null,null,null,null,null,null,null,{"$f":"IF(ISNUMBER(入力!D61),入力!I67,\"\")","v":"2018-03-04"},null,null,null,"月",null,null,null,null,{"$f":"IF(ISNUMBER(入力!D67),入力!D67,\"\")","v":28},null,null,null,"日",null,null,null,null,{"$f":"IF(ISNUMBER(入力!D70),入力!D70,\"\")","v":1500000},null,null,null,null,null,null,null,null,null,null,null,null,null,null,null,"円",null,null,null,null,{"$f":"IF(ISNUMBER(入力!D83),入力!D83,\"\")","v":""},null,null,null,null,null,null,null,null,null,null,null,null,null,"円",null,null,null,null,{"$f":"IF(ISNUMBER(入力!D70),入力!G70,\"\")","v":1500000},null,null,null,null,null,null,null,null,null,null,null,null,null,null,null,"円",null,15,null,null,{"$f":"IF(ISNUMBER(入力!D69),入力!I71,\"\")","v":1500000},null,null,null,null,null,null,null,null,null,null,null,null,null,null,null,"円"]
[null,null,null,null,null,null,null,null,null,null,null,null,null,null,null,null,null,null,null,null,null,null,null,null,null,null,null,null,null,null,null,null,null,null,null,null,null,null,null,null,null,null,null,null,null,null,null,null,null,null,null,null,null,null,null,null,null,null,null,null,null,null,null,null,null,null,null,null,null,null,null,null,null,null,null,null,null,null,null,null,null,null,null,null,null,null,null,null,null,null,null,null,null,null,null,null,null,null,null,null,null,null,null,null,null,null,null,null,null,null,null,null,null,null,null,null,null,null,null,{"$f":"IF(ISTEXT(入力!D72),入力!D72,\"\")","v":"基本給増"}]
[]
[]
[null,null,null,null,null,null,null,null,null,null,null,null,null,null,null,null,null,null,null,null,null,null,null,null,null,null,null,null,null,null,null,null,null,null,null,null,null,null,null,null,null,null,null,null,null,null,null,null,null,null,null,null,null,null,null,null,null,null,null,null,null,null,null,null,null,null,null,null,null,null,null,null,null,null,null,null,null,null,null,null,null,null,null,null,null,null,null,null,null,null,null,null,null,null,null,null,null,null,null,null,null,null,null,null,null,null,null,null,null,null,null,null,null,null,null,null,null,{"$f":"IF(ISNUMBER(入力!D77),5,\"\")","v":5},null,{"$f":"IF(ISNUMBER(入力!D77),\"健康保険のみ月額変更\",\"\")","v":"健康保険のみ月額変更"}]
[null,null,null,null,null,null,null,null,{"$f":"IF(ISNUMBER(入力!D64),入力!I68,\"\")","v":"2018-04-04"},null,null,null,"月",null,null,null,null,{"$f":"IF(ISNUMBER(入力!D68),入力!D68,\"\")","v":31},null,null,null,"日",null,null,null,null,{"$f":"IF(ISNUMBER(入力!D71),入力!D71,\"\")","v":1500000},null,null,null,null,null,null,null,null,null,null,null,null,null,null,null,"円",null,null,null,null,{"$f":"IF(ISNUMBER(入力!D84),入力!D84,\"\")","v":""},null,null,null,null,null,null,null,null,null,null,null,null,null,"円",null,null,null,null,{"$f":"IF(ISNUMBER(入力!D71),入力!G71,\"\")","v":1500000},null,null,null,null,null,null,null,null,null,null,null,null,null,null,null,"円",null,16,null,null,{"$f":"IF(ISNUMBER(入力!D81),入力!I73,\"\")","v":""},null,null,null,null,null,null,null,null,null,null,null,null,null,null,null,"円"]
[]
[null,null,null,null,null,null,null,null,null,null,null,null,null,null,null,null,null,null,null,null,null,null,null,null,null,null,null,null,null,null,null,null,null,null,null,null,null,null,null,null,null,null,null,null,null,null,null,null,null,null,null,null,null,null,null,null,null,null,null,null,null,null,null,null,null,null,null,null,null,null,null,null,null,null,null,null,null,null,null,null,null,null,null,null,null,null,null,null,null,null,null,null,null,null,null,null,null,null,null,null,null,null,null,null,null,null,null,null,null,null,null,null,null,null,null,null,null,{"$f":"IF(ISNUMBER(入力!D78),6,\"\")","v":""},null,{"$f":"IF(ISNUMBER(入力!D78),\"その他\",\"\")","v":""},null,null,null,null,{"$f":"IF(ISTEXT(入力!D79),入力!D79,\"\")","v":""}]
[]
[]
[]
[]
[]
["４",null,null,null,null,1,null,null,{"$f":"IF(ISNUMBER(入力!D87),入力!G94,\"\")","v":5405},null,null,null,null,null,null,null,null,null,null,null,2,null,null,{"$f":"IF(ISTEXT(入力!D88),入力!D88,\"\")","v":"ブラッド　エルドレッド"},null,null,null,null,null,null,null,null,null,null,null,null,null,null,null,null,null,null,null,null,null,null,null,null,null,null,null,null,null,null,null,null,null,null,null,null,null,null,null,null,null,null,null,3,null,{"$f":"IF(ISNUMBER(入力!D89),入力!D89,\"\")","v":"1981-04-08"},null,null,null,null,null,null,null,null,null,null,null,null,null,null,null,null,null,null,null,null,null,null,null,null,null,4,null,{"$f":"IF(ISNUMBER(入力!D92),入力!I90,\"\")","v":"2018-05-07"},null,null,null,null,null,null,null,null,null,null,null,null,null,null,null,null,{"$f":"IF(ISNUMBER(入力!D101),入力!D102,\"\")","v":""}]
[]
[]
[]
[null,null,null,null,null,null,null,null,null,null,null,null,null,null,null,null,null,null,null,null,null,null,null,null,null,null,null,null,null,null,null,null,null,null,null,null,null,null,null,null,null,null,null,null,null,null,null,null,null,null,null,null,null,null,null,null,null,null,null,null,null,null,null,null,null,null,null,null,null,null,null,null,null,null,null,null,null,null,null,null,null,null,null,null,null,null,null,null,null,null,null,null,null,null,null,null,null,null,null,null,null,null,null,null,null,null,null,null,null,null,null,null,null,null,18,null,null,{"$f":"IF(ISNUMBER(入力!D101),1,\"\")","v":""},null,{"$f":"IF(ISNUMBER(入力!D101),\"70歳以上被用者月額変更\",\"\")","v":""}]
[null,null,null,null,null,5,null,null,"健",null,null,{"$f":"IF(ISNUMBER(入力!D90),入力!G107,\"\")","v":300},null,null,null,null,null,null,null,null,null,"千円",null,null,null,"年",null,null,{"$f":"IF(ISNUMBER(入力!D90),入力!G109,\"\")","v":300},null,null,null,null,null,null,null,null,null,null,null,"千円",null,null,null,6,null,{"$f":"IF(ISNUMBER(入力!D91),入力!D91,\"\")","v":"2018-01-01"},null,null,null,null,null,null,null,null,null,null,null,null,null,null,null,null,7,null,{"$f":"IF(ISNUMBER(入力!D92),入力!D92,\"\")","v":"2018-02-01"},null,null,null,null,"月",null,{"$f":"IF(ISNUMBER(入力!D93),入力!I92,\"\")","v":"1.昇給"},null,null,null,null,null,null,null,null,null,null,null,8,null,{"$f":"IF(ISNUMBER(入力!D108),入力!D108,\"\")","v":"2018-02-01"},null,null,null,null,"月",null,{"$f":"IF(ISNUMBER(入力!D109),入力!D109,\"\")","v":20000},null,null,null,null,null,null,null,null,null,null,null,null,null,null,null,null,null,null,"円"]
[]
[null,null,null,null,null,null,null,null,null,null,null,null,null,null,null,null,null,null,null,null,null,null,null,null,null,null,null,null,null,null,null,null,null,null,null,null,null,null,null,null,null,null,null,null,null,null,null,null,null,null,null,null,null,null,null,null,null,null,null,null,null,null,null,null,null,null,null,null,null,null,null,null,null,null,null,null,null,null,null,null,null,null,null,null,null,null,null,null,null,null,null,null,null,null,null,null,null,null,null,null,null,null,null,null,null,null,null,null,null,null,null,null,null,null,null,null,null,{"$f":"IF(ISNUMBER(入力!D103),2,\"\")","v":2},null,{"$f":"IF(ISNUMBER(入力!D103),\"二以上勤務\",\"\")","v":"二以上勤務"}]
[]
[]
[null,null,null,null,null,9,null,null,{"$f":"IF(ISNUMBER(入力!D92),入力!I94,\"\")","v":"2018-02-01"},null,null,null,"月",null,10,null,null,{"$f":"IF(ISNUMBER(入力!D94),入力!D94,\"\")","v":31},null,null,null,"日",null,11,null,null,{"$f":"IF(ISNUMBER(入力!D97),入力!D97,\"\")","v":820000},null,null,null,null,null,null,null,null,null,null,null,null,null,null,null,"円",null,12,null,null,{"$f":"IF(ISNUMBER(入力!D110),入力!D110,\"\")","v":""},null,null,null,null,null,null,null,null,null,null,null,null,null,"円",null,13,null,null,{"$f":"IF(ISNUMBER(入力!D97),入力!G97,\"\")","v":820000},null,null,null,null,null,null,null,null,null,null,null,null,null,null,null,"円",null,14,null,null,{"$f":"IF(ISNUMBER(入力!D97),入力!I98,\"\")","v":2420000},null,null,null,null,null,null,null,null,null,null,null,null,null,null,null,"円",null,null,null,null,null,null,null,null,null,null,null,null,null,{"$f":"IF(ISNUMBER(入力!D104),3,\"\")","v":""},null,{"$f":"IF(ISNUMBER(入力!D104),\"短時間労働者(特定適用事業所\",\"\")","v":""}]
[]
[]
[null,null,null,null,null,null,null,null,null,null,null,null,null,null,null,null,null,null,null,null,null,null,null,null,null,null,null,null,null,null,null,null,null,null,null,null,null,null,null,null,null,null,null,null,null,null,null,null,null,null,null,null,null,null,null,null,null,null,null,null,null,null,null,null,null,null,null,null,null,null,null,null,null,null,null,null,null,null,null,null,null,null,null,null,null,null,null,null,null,null,null,null,null,null,null,null,null,null,null,null,null,null,null,null,null,null,null,null,null,null,null,null,null,null,null,null,null,4,null,"昇給・降給の理由"]
[]
[null,null,null,null,null,null,null,null,{"$f":"IF(ISNUMBER(入力!D89),入力!I95,\"\")","v":"2018-03-04"},null,null,null,"月",null,null,null,null,{"$f":"IF(ISNUMBER(入力!D95),入力!D95,\"\")","v":28},null,null,null,"日",null,null,null,null,{"$f":"IF(ISNUMBER(入力!D98),入力!D98,\"\")","v":800000},null,null,null,null,null,null,null,null,null,null,null,null,null,null,null,"円",null,null,null,null,{"$f":"IF(ISNUMBER(入力!D111),入力!D111,\"\")","v":""},null,null,null,null,null,null,null,null,null,null,null,null,null,"円",null,null,null,null,{"$f":"IF(ISNUMBER(入力!D98),入力!G98,\"\")","v":800000},null,null,null,null,null,null,null,null,null,null,null,null,null,null,null,"円",null,15,null,null,{"$f":"IF(ISNUMBER(入力!D97),入力!I99,\"\")","v":806666},null,null,null,null,null,null,null,null,null,null,null,null,null,null,null,"円"]
[null,null,null,null,null,null,null,null,null,null,null,null,null,null,null,null,null,null,null,null,null,null,null,null,null,null,null,null,null,null,null,null,null,null,null,null,null,null,null,null,null,null,null,null,null,null,null,null,null,null,null,null,null,null,null,null,null,null,null,null,null,null,null,null,null,null,null,null,null,null,null,null,null,null,null,null,null,null,null,null,null,null,null,null,null,null,null,null,null,null,null,null,null,null,null,null,null,null,null,null,null,null,null,null,null,null,null,null,null,null,null,null,null,null,null,null,null,null,null,{"$f":"IF(ISTEXT(入力!D100),入力!D100,\"\")","v":""}]
[]
[]
[null,null,null,null,null,null,null,null,null,null,null,null,null,null,null,null,null,null,null,null,null,null,null,null,null,null,null,null,null,null,null,null,null,null,null,null,null,null,null,null,null,null,null,null,null,null,null,null,null,null,null,null,null,null,null,null,null,null,null,null,null,null,null,null,null,null,null,null,null,null,null,null,null,null,null,null,null,null,null,null,null,null,null,null,null,null,null,null,null,null,null,null,null,null,null,null,null,null,null,null,null,null,null,null,null,null,null,null,null,null,null,null,null,null,null,null,null,{"$f":"IF(ISNUMBER(入力!D105),5,\"\")","v":""},null,{"$f":"IF(ISNUMBER(入力!D105),\"健康保険のみ月額変更\",\"\")","v":""}]
[null,null,null,null,null,null,null,null,{"$f":"IF(ISNUMBER(入力!D92),入力!I96,\"\")","v":"2018-04-04"},null,null,null,"月",null,null,null,null,{"$f":"IF(ISNUMBER(入力!D96),入力!D96,\"\")","v":31},null,null,null,"日",null,null,null,null,{"$f":"IF(ISNUMBER(入力!D99),入力!D99,\"\")","v":800000},null,null,null,null,null,null,null,null,null,null,null,null,null,null,null,"円",null,null,null,null,{"$f":"IF(ISNUMBER(入力!D112),入力!D112,\"\")","v":""},null,null,null,null,null,null,null,null,null,null,null,null,null,"円",null,null,null,null,{"$f":"IF(ISNUMBER(入力!D99),入力!G99,\"\")","v":800000},null,null,null,null,null,null,null,null,null,null,null,null,null,null,null,"円",null,16,null,null,{"$f":"IF(ISNUMBER(入力!D109),入力!I101,\"\")","v":800000},null,null,null,null,null,null,null,null,null,null,null,null,null,null,null,"円"]
[]
[null,null,null,null,null,null,null,null,null,null,null,null,null,null,null,null,null,null,null,null,null,null,null,null,null,null,null,null,null,null,null,null,null,null,null,null,null,null,null,null,null,null,null,null,null,null,null,null,null,null,null,null,null,null,null,null,null,null,null,null,null,null,null,null,null,null,null,null,null,null,null,null,null,null,null,null,null,null,null,null,null,null,null,null,null,null,null,null,null,null,null,null,null,null,null,null,null,null,null,null,null,null,null,null,null,null,null,null,null,null,null,null,null,null,null,null,null,{"$f":"IF(ISNUMBER(入力!D106),6,\"\")","v":""},null,{"$f":"IF(ISNUMBER(入力!D106),\"その他\",\"\")","v":""},null,null,null,null,{"$f":"IF(ISTEXT(入力!D107),入力!D107,\"\")","v":""}]
[]
[]
[]
[]
[]
["５",null,null,null,null,1,null,null,{"$f":"IF(ISNUMBER(入力!D115),入力!G122,\"\")","v":5800},null,null,null,null,null,null,null,null,null,null,null,2,null,null,{"$f":"IF(ISTEXT(入力!D116),入力!D116,\"\")","v":"ジェイ　ジャクソン"},null,null,null,null,null,null,null,null,null,null,null,null,null,null,null,null,null,null,null,null,null,null,null,null,null,null,null,null,null,null,null,null,null,null,null,null,null,null,null,null,null,null,null,3,null,{"$f":"IF(ISNUMBER(入力!D117),入力!D117,\"\")","v":"1993-07-26"},null,null,null,null,null,null,null,null,null,null,null,null,null,null,null,null,null,null,null,null,null,null,null,null,null,4,null,{"$f":"IF(ISNUMBER(入力!D120),入力!I118,\"\")","v":"2018-06-04"},null,null,null,null,null,null,null,null,null,null,null,null,null,null,null,null,{"$f":"IF(ISNUMBER(入力!D129),入力!D130,\"\")","v":""}]
[]
[]
[]
[null,null,null,null,null,null,null,null,null,null,null,null,null,null,null,null,null,null,null,null,null,null,null,null,null,null,null,null,null,null,null,null,null,null,null,null,null,null,null,null,null,null,null,null,null,null,null,null,null,null,null,null,null,null,null,null,null,null,null,null,null,null,null,null,null,null,null,null,null,null,null,null,null,null,null,null,null,null,null,null,null,null,null,null,null,null,null,null,null,null,null,null,null,null,null,null,null,null,null,null,null,null,null,null,null,null,null,null,null,null,null,null,null,null,18,null,null,{"$f":"IF(ISNUMBER(入力!D129),1,\"\")","v":""},null,{"$f":"IF(ISNUMBER(入力!D129),\"70歳以上被用者月額変更\",\"\")","v":""}]
[null,null,null,null,null,5,null,null,"健",null,null,{"$f":"IF(ISNUMBER(入力!D118),入力!G135,\"\")","v":58},null,null,null,null,null,null,null,null,null,"千円",null,null,null,"年",null,null,{"$f":"IF(ISNUMBER(入力!D118),入力!G137,\"\")","v":88},null,null,null,null,null,null,null,null,null,null,null,"千円",null,null,null,6,null,{"$f":"IF(ISNUMBER(入力!D119),入力!D119,\"\")","v":"2017-11-01"},null,null,null,null,null,null,null,null,null,null,null,null,null,null,null,null,7,null,{"$f":"IF(ISNUMBER(入力!D120),入力!D120,\"\")","v":"2018-03-01"},null,null,null,null,"月",null,{"$f":"IF(ISNUMBER(入力!D121),入力!I120,\"\")","v":"1.昇給"},null,null,null,null,null,null,null,null,null,null,null,8,null,{"$f":"IF(ISNUMBER(入力!D136),入力!D136,\"\")","v":""},null,null,null,null,"月",null,{"$f":"IF(ISNUMBER(入力!D137),入力!D137,\"\")","v":""},null,null,null,null,null,null,null,null,null,null,null,null,null,null,null,null,null,null,"円"]
[]
[null,null,null,null,null,null,null,null,null,null,null,null,null,null,null,null,null,null,null,null,null,null,null,null,null,null,null,null,null,null,null,null,null,null,null,null,null,null,null,null,null,null,null,null,null,null,null,null,null,null,null,null,null,null,null,null,null,null,null,null,null,null,null,null,null,null,null,null,null,null,null,null,null,null,null,null,null,null,null,null,null,null,null,null,null,null,null,null,null,null,null,null,null,null,null,null,null,null,null,null,null,null,null,null,null,null,null,null,null,null,null,null,null,null,null,null,null,{"$f":"IF(ISNUMBER(入力!D131),2,\"\")","v":""},null,{"$f":"IF(ISNUMBER(入力!D131),\"二以上勤務\",\"\")","v":""}]
[]
[]
[null,null,null,null,null,9,null,null,{"$f":"IF(ISNUMBER(入力!D120),入力!I122,\"\")","v":"2018-03-01"},null,null,null,"月",null,10,null,null,{"$f":"IF(ISNUMBER(入力!D122),入力!D122,\"\")","v":28},null,null,null,"日",null,11,null,null,{"$f":"IF(ISNUMBER(入力!D125),入力!D125,\"\")","v":2000000},null,null,null,null,null,null,null,null,null,null,null,null,null,null,null,"円",null,12,null,null,{"$f":"IF(ISNUMBER(入力!D138),入力!D138,\"\")","v":50000},null,null,null,null,null,null,null,null,null,null,null,null,null,"円",null,13,null,null,{"$f":"IF(ISNUMBER(入力!D125),入力!G125,\"\")","v":2050000},null,null,null,null,null,null,null,null,null,null,null,null,null,null,null,"円",null,14,null,null,{"$f":"IF(ISNUMBER(入力!D125),入力!I126,\"\")","v":6150000},null,null,null,null,null,null,null,null,null,null,null,null,null,null,null,"円",null,null,null,null,null,null,null,null,null,null,null,null,null,{"$f":"IF(ISNUMBER(入力!D132),3,\"\")","v":3},null,{"$f":"IF(ISNUMBER(入力!D132),\"短時間労働者(特定適用事業所\",\"\")","v":"短時間労働者(特定適用事業所"}]
[]
[]
[null,null,null,null,null,null,null,null,null,null,null,null,null,null,null,null,null,null,null,null,null,null,null,null,null,null,null,null,null,null,null,null,null,null,null,null,null,null,null,null,null,null,null,null,null,null,null,null,null,null,null,null,null,null,null,null,null,null,null,null,null,null,null,null,null,null,null,null,null,null,null,null,null,null,null,null,null,null,null,null,null,null,null,null,null,null,null,null,null,null,null,null,null,null,null,null,null,null,null,null,null,null,null,null,null,null,null,null,null,null,null,null,null,null,null,null,null,4,null,"昇給・降給の理由"]
[]
[null,null,null,null,null,null,null,null,{"$f":"IF(ISNUMBER(入力!D117),入力!I123,\"\")","v":"2018-04-01"},null,null,null,"月",null,null,null,null,{"$f":"IF(ISNUMBER(入力!D123),入力!D123,\"\")","v":31},null,null,null,"日",null,null,null,null,{"$f":"IF(ISNUMBER(入力!D126),入力!D126,\"\")","v":2000000},null,null,null,null,null,null,null,null,null,null,null,null,null,null,null,"円",null,null,null,null,{"$f":"IF(ISNUMBER(入力!D139),入力!D139,\"\")","v":50000},null,null,null,null,null,null,null,null,null,null,null,null,null,"円",null,null,null,null,{"$f":"IF(ISNUMBER(入力!D126),入力!G126,\"\")","v":2050000},null,null,null,null,null,null,null,null,null,null,null,null,null,null,null,"円",null,15,null,null,{"$f":"IF(ISNUMBER(入力!D125),入力!I127,\"\")","v":2050000},null,null,null,null,null,null,null,null,null,null,null,null,null,null,null,"円"]
[null,null,null,null,null,null,null,null,null,null,null,null,null,null,null,null,null,null,null,null,null,null,null,null,null,null,null,null,null,null,null,null,null,null,null,null,null,null,null,null,null,null,null,null,null,null,null,null,null,null,null,null,null,null,null,null,null,null,null,null,null,null,null,null,null,null,null,null,null,null,null,null,null,null,null,null,null,null,null,null,null,null,null,null,null,null,null,null,null,null,null,null,null,null,null,null,null,null,null,null,null,null,null,null,null,null,null,null,null,null,null,null,null,null,null,null,null,null,null,{"$f":"IF(ISTEXT(入力!D128),入力!D128,\"\")","v":"役員就任"}]
[]
[]
[null,null,null,null,null,null,null,null,null,null,null,null,null,null,null,null,null,null,null,null,null,null,null,null,null,null,null,null,null,null,null,null,null,null,null,null,null,null,null,null,null,null,null,null,null,null,null,null,null,null,null,null,null,null,null,null,null,null,null,null,null,null,null,null,null,null,null,null,null,null,null,null,null,null,null,null,null,null,null,null,null,null,null,null,null,null,null,null,null,null,null,null,null,null,null,null,null,null,null,null,null,null,null,null,null,null,null,null,null,null,null,null,null,null,null,null,null,{"$f":"IF(ISNUMBER(入力!D133),5,\"\")","v":""},null,{"$f":"IF(ISNUMBER(入力!D133),\"健康保険のみ月額変更\",\"\")","v":""}]
[null,null,null,null,null,null,null,null,{"$f":"IF(ISNUMBER(入力!D120),入力!I124,\"\")","v":"2018-05-02"},null,null,null,"月",null,null,null,null,{"$f":"IF(ISNUMBER(入力!D124),入力!D124,\"\")","v":30},null,null,null,"日",null,null,null,null,{"$f":"IF(ISNUMBER(入力!D127),入力!D127,\"\")","v":2000000},null,null,null,null,null,null,null,null,null,null,null,null,null,null,null,"円",null,null,null,null,{"$f":"IF(ISNUMBER(入力!D140),入力!D140,\"\")","v":50000},null,null,null,null,null,null,null,null,null,null,null,null,null,"円",null,null,null,null,{"$f":"IF(ISNUMBER(入力!D127),入力!G127,\"\")","v":2050000},null,null,null,null,null,null,null,null,null,null,null,null,null,null,null,"円",null,16,null,null,{"$f":"IF(ISNUMBER(入力!D137),入力!I129,\"\")","v":""},null,null,null,null,null,null,null,null,null,null,null,null,null,null,null,"円"]
[]
[null,null,null,null,null,null,null,null,null,null,null,null,null,null,null,null,null,null,null,null,null,null,null,null,null,null,null,null,null,null,null,null,null,null,null,null,null,null,null,null,null,null,null,null,null,null,null,null,null,null,null,null,null,null,null,null,null,null,null,null,null,null,null,null,null,null,null,null,null,null,null,null,null,null,null,null,null,null,null,null,null,null,null,null,null,null,null,null,null,null,null,null,null,null,null,null,null,null,null,null,null,null,null,null,null,null,null,null,null,null,null,null,null,null,null,null,null,{"$f":"IF(ISNUMBER(入力!D134),6,\"\")","v":6},null,{"$f":"IF(ISNUMBER(入力!D134),\"その他\",\"\")","v":"その他"},null,null,null,null,{"$f":"IF(ISTEXT(入力!D135),入力!D135,\"\")","v":"短時間役員"}]